Workbook

Sheet Title Page
A1: U.S. EPA Office of Ground Water and Drinking Water
A2: Work Breakdown Structure (WBS) Model for Ultraviolet Photolysis/Advanced Oxidation Process Treatment
A3: Release Date: March 2023
A4: · The primary purpose of this model is to assist EPA in estimating national compliance costs.
A5: · As such, the costs are intended to be representative of the central tendency of typical facilities.
A6: · The default settings, however, do not account for all of the site-specific factors that could affect the cost of any given individual facility or project.
A7: · Still, other uses of the model might be reasonable if sufficient care is taken by the user to account for site- or project-specific factors.
A8: · The model results are point estimates shown to the nearest $1, but this precision is not meant to imply that the results are accurate to $1.
A9: · Instead, users should review all documentation, modify inputs/assumptions as appropriate to their specific purpose, and form their own informed opinions about the accuracy and suitability of the results.
A10: · Use of this model requires Excel 2007 or later.
A11: · The model should be opened as Read-only, so that any changes you make are saved under a new file name.
A12: · To function properly, macros ("active content") must be enabled. If a security warning appears, click "options" and "enable this content."
A13: · For further information see the following document distributed with this file:
A14: USEPA. 2023. Work Breakdown Structure-Based Cost Model for Ultraviolet Photolysis/Advanced Oxidation Process Drinking Water Treatment. Office of Water.
A15: · To begin using the model, go to the INPUT sheet.

Sheet Index
A1: INDEX
A2: This page provides an index to all user-adjustable inputs and assumptions. Click on a variable name to go directly to the adjustable cells.
A4: User-adjustable Input or Assumption | B4: Variable Name and Link
A5: Number of check valves per oxidant metering pump | B5: acid_chv_pump
A6: Additional building after… | B6: add_2nd_building
A7: Add-on (pre- or post-treatment) | B7: addon_I
A8: Ventilation air change rate for offices | B8: Air_changes_office
A9: Ventilation air change rate for pump room | B9: Air_changes_pump
A10: Ventilation air change rate for reactors | B10: Air_changes_reactor
A11: Ventilation air change rate for storage | B11: Air_changes_storage
A12: Automatic cleaning system effectiveness check frequency | B12: autoclean_eff_freq
A13: Average Flow | B13: average_flow_I
A14: Ballast efficiency | B14: ballast_efficiency
A15: Ballast life | B15: ballast_life
A16: Bedding depth below pipe | B16: bedding_depth
A17: Bedding depth surrounding the pipe | B17: bedding_pct
A18: Pump efficiency | B18: booster_pump_efficiency
A19: Pump head | B19: booster_pump_head
A20: Cost for parts & maintenance for pumps | B20: booster_pump_maintenance
A21: Borehole depth for deep basins | B21: bore_depth_max
A22: Borehole depth for shallow basins | B22: bore_depth_min
A23: Technology footprint above which boreholes are needed | B23: bore_need
A24: Builder's risk insurance percentage | B24: br_ins_pct
A25: Building height | B25: Building_height
A26: Ceiling clearance for storage tanks | B26: ceiling_clearance
A27: Chemical pipe length multiplier | B27: chem_pipe_mult
A28: Chlorine solution strength for NaOCl | B28: chlorine_strength_Na
A29: City Index for Total Capital Cost | B29: City_Index
A30: Desired chlorine dose | B30: Cl2_I
A31: Administrative LOE as a percent of average technical labor | B31: Clerical_percent
A32: Chemical tank mixer horsepower | B32: cmix_hp_per
A33: Control panel access space | B33: cntrl_space
A34: Coefficient of passive pressure | B34: Coeff_Kp
A35: Technology complexity factor | B35: complexity
A36: Component level | B36: component_level_I
A37: Concrete thickness | B37: conc_thick
A38: Annual cooling degree days | B38: cool_DD
A39: Cooling ventilation/infiltration load | B39: cool_viload
A40: Cooling table for buildings 500 square feet or greater | B40: cooling_table
A41: Cooling table for buildings less than 500 ft2 | B41: cooling_table_shed
A42: Heat pump heating coefficient of performance | B42: COP
A43: Days of H2O2 storage | B43: cstore_days
A44: Cost estimating method | B44: curve
A45: Number of check valves per booster pump | B45: cvalve_pump
A46: Include a separate day tank if daily volume is x or greater | B46: day_tank_needed
A47: Design Flow | B47: design_flow_I
A48: Mid-efficiency oil furnace efficiency | B48: diesel_eff
A49: Heating Oil Heat Content | B49: diesel_heat_content
A50: Standard oil furnace efficiency | B50: diesel_non_eff
A51: Dose safety factor | B51: dose_SF_I
A52: Drain pipe length multiplier | B52: drain_pipe_mult
A53: Select UV energy input type | B53: EE_type_I
A54: Electrical energy dose (EED) | B54: EED_I
A55: Electrical energy per order contaminant removal (EE/O) | B55: EEO_I
A56: Air conditioning EER | B56: EER
A57: pH meters for treated water line | B57: eff_pH_meter
A58: Temperature meters for treated water line | B58: eff_temp_meter
A59: Turbidity meters for treated water line | B59: eff_turb_meters
A60: Number of electrical enclosures | B60: elec_encl
A61: Electrical percentage | B61: elect_pct
A62: Engineering percentage for large systems | B62: eng_pct_large
A63: Engineering percentage for medium systems | B63: eng_pct_medium
A64: Engineering percentage for small systems | B64: eng_pct_small
A65: Excavation depth | B65: excavation_depth
A66: Excavation for proper hydraulic profile | B66: excavation_I
A67: Number of mechanical ventilation days per year first building (large system) | B67: fan_days_build1_large
A68: Number of mechanical ventilation days per year first building (medium system) | B68: fan_days_build1_medium
A69: Number of mechanical ventilation days per year first building (small system) | B69: fan_days_build1_small
A70: Number of mechanical ventilation days per year 2nd building (large system) | B70: fan_days_build2_large
A71: Number of mechanical ventilation days per year 2nd building (medium system) | B71: fan_days_build2_medium
A72: Number of mechanical ventilation days per year 2nd building (small system) | B72: fan_days_build2_small
A73: Pressure drop across the fan | B73: Fan_pressure_drop
A74: Financing percentage | B74: finance_pct
A75: Financing percentage for small systems | B75: finance_pct_small
A76: Fire truck buffer requirements | B76: fire_buffer
A77: Flow distribution | B77: flow_dist_I
A78: Flow meters for influent and treated water line | B78: fm_in
A79: Flow meters for influent and treated water line in add-on scenario | B79: fm_in_addon
A80: Flow meters per treatment line for active flow control option | B80: fm_treat
A81: Flow meters per treatment line for passive flow control option | B81: fm_treat_passive
A82: Frost depth | B82: frost
A83: Natural gas condensing furnace efficiency | B83: gas_eff
A84: Natural gas non-condensing furnace efficiency | B84: gas_non_eff
A85: Diluted H2O2 concentration to be fed | B85: H2O2_dilute_conc
A86: Percent grade of H2O2 | B86: H2O2_grade
A87: Desired hydrogen peroxide dose | B87: H2O2_I
A88: Specific gravity of H2O2 at the indicated grade | B88: H2O2_sg
A89: Miles to hazardous solid waste disposal site | B89: haz_miles
A90: Annual heating degree days | B90: heat_DD
A91: Heating ventilation/infiltration load | B91: heat_viload
A92: Heating table for buildings 500 square feet or greater | B92: heating_table
A93: Heating table for buildings less than 500 ft2 | B93: heating_table_shed
A94: Linear feet bored per day | B94: hole_per_day
A95: Boreholes per job | B95: hole_per_job
A96: Borehole needed every x square feet | B96: hole_per_sf
A97: Heat pump cooling EER | B97: hp_EER
A98: Instrumentation and control percentage | B98: i_c_pct
A99: Number of manual valves on influent and treated water line | B99: in_man
A100: Number of manual valves on influent and treated water line in add-on scenario | B100: in_man_addon
A101: Influent and treated water pipe length multiplier | B101: in_out_pipe_mult
A102: Include architectural fee? | B102: include_arch
A103: Include architectural fee for small systems? | B103: include_arch_small
A104: Include performance bond cost? | B104: include_bond
A105: Include buildings? | B105: include_buildings_I
A106: Include construction management cost? | B106: include_cm
A107: Include mixers for chemical tanks | B107: include_cmix
A108: Include contingency costs for high cost systems? | B108: include_conting_high
A109: Include contingency costs for low cost systems? | B109: include_conting_low
A110: Include contingency costs for medium cost systems? | B110: include_conting_medium
A111: Include geotechnical costs for high cost systems? | B111: include_geo_high
A112: Include geotechnical costs for low cost systems? | B112: include_geo_low
A113: Include geotechnical costs for medium cost systems? | B113: include_geo_medium
A114: Include HVAC? | B114: include_HVAC_I
A115: Include land? | B115: include_land_I
A116: Include NEPA compliance costs? | B116: include_NEPA
A117: Include concrete pad in total capital cost? | B117: include_pad
A118: Include permit costs? | B118: include_permits
A119: Include pilot study costs? | B119: include_pilot
A120: Include pilot study costs in add-on scenario? | B120: include_pilot_addon
A121: Number of booster pumps | B121: include_pumps_I
A122: Include secondary containment | B122: include_sec_cont
A123: Include sitework costs? | B123: include_sitework
A124: Include standby power costs? | B124: include_standby
A125: Include standby power costs in add-on scenario? | B125: include_standby_addon
A126: Include standby power costs for small systems? | B126: include_standby_small
A127: Include yard piping costs? | B127: include_yardpipe
A128: Include yard piping costs in add-on scenario? | B128: include_yardpipe_addon
A129: pH meters for influent line | B129: inf_pH_meter
A130: Temperature meters for influent line | B130: inf_temp_meter
A131: Turbidity meters for influent line | B131: Inf_turb_meters
A132: Installation, Transportatation, and O&P percentage | B132: inst_pct
A133: Labor for automatic cleaning system effectiveness check | B133: labor_autoclean_eff
A134: Labor for UV sensor calibration checks | B134: labor_calibration_sensor
A135: Labor for UVT analyzer calibration checks | B135: labor_calibration_UVT
A136: Labor required to replace ballast | B136: labor_per_ballast
A137: Labor required to replace lamps | B137: labor_per_lamp
A138: Labor for UV sensor replacement | B138: labor_per_sensor
A139: Labor for quartz sleeve visual inspection | B139: labor_per_sleeve_inspect
A140: Labor for monitoring and reporting | B140: labor_report
A141: Lamp life - MP | B141: lamp_life_MP
A142: Legal percentage | B142: legal_pct
A143: Alarms per chemical cleaning tank | B143: level_switch
A144: Lighting power per sf, high-quality buildings | B144: lighting_power_high
A145: Lighting power per sf, low-quality buildings and sheds | B145: lighting_power_low
A146: Lighting power per sf, mid-quality buildings | B146: lighting_power_mid
A147: Major or high alarm system for component failure | B147: major_alarm
A148: Managerial LOE as a percent of average technical labor | B148: Manager_percent
A149: System Automation | B149: manual_I
A150: Maximum number of redundant reactors for entire facility | B150: max_rd_reac
A151: Maximum allowable removal | B151: max_removal
A152: Maximum access space per tank for large systems | B152: max_space_tank_large
A153: Maximum access space per tank for small systems | B153: max_space_tank_small
A154: Minimum average flow as percentage of design | B154: min_avg_flow
A155: Minimum chemical feed pump size | B155: min_chem_flow
A156: Minimum chemical tank mixer horsepower | B156: min_cmix_hp
A157: Minimum number of boreholes | B157: min_holes
A158: Minimum allowable removal | B158: min_removal
A159: Minimum standby power generator size | B159: min_standby
A160: Minimum trench depth to top of pipe | B160: min_trench_depth
A161: Minor alarm for indicating equipment failure | B161: minor_alarm
A162: Miscellaneous allowance percentage | B162: misc_pct
A163: Mobilization percentage for large systems | B163: mob_pct_large
A164: Mobilization percentage for medium systems | B164: mob_pct_medium
A165: Mobilization percentage for small systems | B165: mob_pct_small
A166: Frequency of checking lamp output variability-MP lamps | B166: MP_variability_freq
A167: Density of bulk NaOCl solution | B167: NaOCl_dens
A168: Days of NaOCl storage | B168: NaOCl_store
A169: Include cooling in standby power | B169: need_cool
A170: Include heating in standby power | B170: need_heat
A171: Buffer space around other sides of buildings | B171: non_fire_buffer
A172: Miles to non-hazardous solid waste disposal site | B172: non_haz_miles
A173: Number of redundant chemical metering pumps | B173: NRD_cm_pump
A174: Redundant reactors to be added | B174: NRD_I
A175: Redundant booster pumps | B175: NRD_pump
A176: Redundant UVT monitors for direct photolysis | B176: NRD_UVT_mon
A177: City Index for Total O&M Cost | B177: OM_City_Index
A178: Concrete pad thickness | B178: pad_thick
A179: Concrete pad thickness for small systems | B179: pad_thick_small
A180: Safety factor for passive flow distribution | B180: passive_flow_sf
A181: Test pit depth | B181: pit_depth
A182: Test pit length | B182: pit_length
A183: Test pit width | B183: pit_width
A184: Number of CPUs in add-on scenario | B184: plc_cpu_addon
A185: Number of CPUs in stand-alone system | B185: plc_cpu_standalone
A186: Ethernet modules in add-on scenario | B186: plc_ethernet_addon
A187: Ethernet modules in stand-alone system | B187: plc_ethernet_standalone
A188: Operator interfaces in add-on scenario | B188: plc_interface_addon
A189: Operator interfaces in stand-alone system | B189: plc_interface_standalone
A190: Include PLC rack/power supplies in add-on scenario | B190: plc_rack_addon
A191: I/O port table | B191: port_table
A192: Include printers in add-on scenario | B192: printer_addon
A193: Printers per x computer workstations | B193: printer_ratio
A194: Process pipe length multiplier | B194: proc_pipe_mult
A195: Pump safety factor | B195: pump_safety_factor
A196: R-value for ceilings | B196: R_ceiling
A197: R-value for walls | B197: R_wall
A198: Operating UV reactors per redundant reactor | B198: rd_reac_freq
A199: Labor for reactor inspection for manual systems | B199: reactor_insp_labor
A200: Reduction factor | B200: Reduction
A201: Number of reference UV intensity sensors | B201: ref_sensors
... 53 more rows

Sheet INPUT
A1: ULTRAVIOLET PHOTOLYSIS/AOP SYSTEM DESIGN AND COSTS
E3: STEP 1:
E4: Select Contaminant | H4: =IF(contam_type=4,"For other contaminants, the buttons shown in Step 2 will enter flows only, and clear all other inputs. The user will need to enter the appropriate inputs manually","") -> 
H5: =IF(contam_type=4,"Advanced users can change this behavior by entering inputs on the Standard Inputs sheet","") -> 
E6: STEP 2:
E7: Select Process Type | H7: =IF(photo_aop=3,"AOP using UV and chlorine generally is effective only at influent pH of 6.5 or lower","") -> 
E9: STEP 3:
E10: Select Lamp Type
C13: ='Standard Inputs'!AD9 -> FALSE | D13: ='Standard Inputs'!AE9 -> FALSE | E13: STEP 4: | H13: =IF(C13,"<- Using this design",IF(D13,"<- You modified this design","")) ->  | I13: The standard design buttons are for EPA's use in estimating national costs, but other users might find them useful as a starting point. See documentation for more information
C14: ='Standard Inputs'!AD10 -> FALSE | D14: ='Standard Inputs'!AE10 -> FALSE | E14: Select one of the eight standard designs at right OR select "CLEAR FOR MANUAL ENTRY"
C15: ='Standard Inputs'!AD11 -> FALSE | D15: ='Standard Inputs'!AE11 -> FALSE
C16: ='Standard Inputs'!AD12 -> FALSE | D16: ='Standard Inputs'!AE12 -> FALSE
C17: ='Standard Inputs'!AD13 -> TRUE | D17: ='Standard Inputs'!AE13 -> TRUE | H17: <- Using this design
C18: ='Standard Inputs'!AD14 -> FALSE | D18: ='Standard Inputs'!AE14 -> FALSE
C19: ='Standard Inputs'!AD15 -> FALSE | D19: ='Standard Inputs'!AE15 -> FALSE
C20: ='Standard Inputs'!AD16 -> FALSE | D20: ='Standard Inputs'!AE16 -> FALSE
H21: =IF(OR('Standard Inputs'!AB9:AC16),"","Using a manual design") -> 
E22: STEP 5:
B23: inputs current? | C23: ='Standard Inputs'!AB203 -> TRUE | E23: (Optional for standard designs) | G23: =IF(photo_aop_name="","Technology unavailable for this contaminant",IF(C24,IF(C23,"Input Complete -- Results Ready","Input Complete -- Press 'Generate Results'"),"Input Incomplete -- Check for Error Messages Below")) -> Input Complete -- Results Ready | I23: Verify that this box reads "Input Complete" before proceeding
B24: inputs OK? | C24: =AND(input_checks) -> TRUE | E24: Enter or change values in the gold and blue cells below, under "Manual Inputs"
E26: STEP 6:
I27: ="Resulting Costs (in year "&TEXT(current_year_cl,0)&" dollars, see OUTPUT sheet for details)" -> Resulting Costs (in year 2021 dollars, see OUTPUT sheet for details)
E28: =IF(G23="input complete -- results ready","Results are ready (no need to click button)","Click here to generate results -->") -> Results are ready (no need to click button) | I28: ="Direct Capital Cost: "&IF(input_status<>"Input Complete -- Results Ready",input_status,IF(Missing_Cost,"Missing cost!",IF(cost_buildup_error,"Cost buildup error!",IF(AND(C23:C24),IF(ISERROR(direct_cost),"Calculation error!",TEXT(direct_cost,"$0,0")))))) -> Direct Capital Cost: $3,175,877
I29: ="Total Capital Cost: "&IF(input_status<>"Input Complete -- Results Ready",input_status,IF(Missing_Cost,"Missing cost!",IF(cost_buildup_error,"Cost buildup error!",IF(AND(C23:C24),IF(ISERROR(system_cost),"Calculation error!",TEXT(system_cost,"$0,0")))))) -> Total Capital Cost: $5,085,455
I30: ="Annualized Capital Cost: "&IF(input_status<>"Input Complete -- Results Ready",input_status,IF(Missing_Cost,"Missing Price!",IF(cost_buildup_error,"Cost buildup error!",IF(ISERROR(Annualized_Capital_Cost),"Calculation error!",TEXT(Annualized_Capital_Cost,"$0,0")&" per year"&" (over "&useful_life&" years at "&Discount_rate*100&"%)")))) -> Annualized Capital Cost: $414,203 per year (over 29 years at 7%)
I31: ="Annual O&M Cost: "&IF(AND(C23:C24),IF(ISERROR(OM_cost),"Calculation error!",TEXT(OM_cost,"$0,0")&" per year"),input_status) -> Annual O&M Cost: $487,993 per year
I32: ="Total Annualized Cost: "&IF(input_status<>"Input Complete -- Results Ready",input_status,IF(Missing_Cost,"Missing Price!",IF(cost_buildup_error,"Cost buildup error!",IF(AND(C23:C24),IF(ISERROR(Annualized_Cost),"Calculation error!",TEXT(Annualized_Cost,"$0,0")&" per year ("&TEXT(TAC_pct_cap,"0%")&" capital, "&TEXT(TAC_pct_OM,"0%")&" O&M)"))))) -> Total Annualized Cost: $902,196 per year (46% capital, 54% O&M)
E33: MANUAL INPUTS | I33: =IF(input_status="Input Incomplete -- check for error messages below","",IF(Missing_Cost,"A price is not available for at least one required component. See Use? column on OUTPUT sheet.",IF(cost_buildup_error,"There is an Excel error in the price for at least one component. Please see the Use? column on OUTPUT sheet.",""))) -> 
E34: Cells in gold are required; cells in blue are optional
B35: Used? | C35: Valid input? | D35: Invalid reason? | H35: Select units
C36: =AND(df_units<>"",design_flow_I>0) -> TRUE | D36: =IF(C36,"OK","Flow inputs incomplete") -> OK | E36: Design Flow | F36: design_flow_I | G36: 2.152 | H36: MGD
C37: =AND(af_units<>"",average_flow_I>0,average_flow<=design_flow,average_flow>=design_flow*min_avg_flow) -> TRUE | D37: =IF(C37,"OK",IF(average_flow>design_flow,"The average flow should not be greater than design flow",IF(average_flow<design_flow*min_avg_flow,"The average flow must be at least "&min_avg_flow&"times design flow","Flow inputs incomplete"))) -> OK | E37: Average Flow | F37: average_flow_I | G37: 0.819 | H37: MGD
C38: =AND(C36:C37) -> TRUE | D38: =IF(C38,"OK",IF(NOT(C36),D36,IF(NOT(C37),D37))) -> OK | H38: =IF(C38,"Flow input OK",D38) -> Flow input OK
E40: Contaminant removal as percent | F40: Removal_percent_I | G40: 0.9 | I40: ="Allowable values from " & TEXT(min_removal,"0.0%") & " to " & TEXT(max_removal,"0.0%") -> Allowable values from 10.0% to 99.9%
E41: For information: Log removal | G41: =IF(Removal_percent_I="","",TEXT(removal_required,"0.00") & " log") -> 1.00 log
C42: =IF(ISERROR(removal_required),FALSE,IF(OR(Removal_percent_I<min_removal,Removal_percent_I>max_removal),FALSE,TRUE)) -> TRUE | D42: =IF(C42,"OK","Please enter a contaminant removal percentage between " & TEXT(min_removal,"0.0%") & " and " & TEXT(max_removal,"0.0%")) -> OK | H42: =IF(C42,"Contaminant removal input OK",D42) -> Contaminant removal input OK
B44: =CHOOSE(photo_aop,FALSE,TRUE,FALSE) -> TRUE | C44: =IF(B44=FALSE,TRUE,IF(H2O2_I>0,TRUE, FALSE)) -> TRUE | E44: Desired hydrogen peroxide dose | F44: H2O2_I | G44: 10 | H44: mg/L | I44: =CHOOSE(photo_aop,"Direct photolysis does not use chemical oxidants","Default AOP(UV/H2O2) value is 10 mg/L","") -> Default AOP(UV/H2O2) value is 10 mg/L
B45: =CHOOSE(photo_aop,FALSE,FALSE,TRUE) -> FALSE | C45: =IF(B45=FALSE,TRUE,IF(Cl2_I>0,TRUE, FALSE)) -> TRUE | E45: Desired chlorine dose | F45: Cl2_I | H45: mg/L as free chlorine | I45: =CHOOSE(photo_aop,"Direct photolysis does not use chemical oxidants","","") -> 
B46: =CHOOSE(photo_aop,FALSE,TRUE,TRUE) -> TRUE | C46: =IF(B46=FALSE,TRUE,IF(dose_SF_I>=1,TRUE,FALSE)) -> TRUE | E46: Dose safety factor | F46: dose_SF_I | G46: 1 | H46: injected dose/desired dose | I46: =CHOOSE(photo_aop,"Direct photolysis does not use chemical oxidants","","Additional chlorine injection may be required depending on ammonia concentration in influent water") -> 
E47: For information: Injected dose | G47: =IF(NOT(C48),"",CHOOSE(photo_aop,0,H2O2_conc_need,Cl2_conc_need)) -> 10 | H47: =CHOOSE(photo_aop,"mg/L","mg/L hydrogen peroxide","mg/L chlorine") -> mg/L hydrogen peroxide
C48: =AND(C44:C46) -> TRUE | D48: =IF(C48,"OK",IF(NOT(C44),"Enter a hydrogen peroxide dose greater than 0",IF(NOT(C45),"Enter a free chlorine dose greater than 0","Enter a safety factor of 1 or greater"))) -> OK | H48: =IF(C48,"Oxidant dose input OK",D48) -> Oxidant dose input OK
C50: =IF(ISERROR(EE_type),FALSE,IF(ISNUMBER(EE_type),TRUE,FALSE)) -> TRUE | D50: =IF(C50, "OK", "Please choose UV energy input type.") -> OK | E50: Select UV energy input type | F50: EE_type_I | G50: Electrical energy per order (EE/O) | H50: <-- pick one
B51: =IF(EE_type=1,TRUE,FALSE) -> TRUE | C51: =IF(B51=FALSE,TRUE,IF(EEO_I>0,TRUE, FALSE)) -> TRUE | E51: Electrical energy per order contaminant removal (EE/O) | F51: EEO_I | G51: 7.4 | H51: kWh/1000 gal/order | I51: =IF(EEO_Range="user","See EEO References Sheet for available data",IF(EEO_Range="NA","No EE/O data found for this contaminant/technology pair","Literature reports EE/O in the range of "&EEO_Range&" kWh/1000 gal/order")) -> Literature reports EE/O in the range of 2.3 - 11.4 kWh/1000 gal/order
B52: =IF(EE_type=2,TRUE,FALSE) -> FALSE | C52: =IF(B52=FALSE,TRUE,IF(EED_I>0,TRUE,FALSE)) -> TRUE | E52: Electrical energy dose (EED) | F52: EED_I | H52: kWh/1000 gal | I52: =IF(EED_Range="NA","No EED data found for this contaminant/technology pair",IF(OR(EED_high<=0,EED_low<=0),"EED data not available for removal less than 0.17 log","Literature reports EED in the range of "&EED_Range&" kWh/1000 gal")) -> No EED data found for this contaminant/technology pair
C53: =AND(C49:C52) -> TRUE | D53: =IF(C53,"OK",IF(NOT(C50),"Please choose UV energy input type.",IF(NOT(C51),"Enter an EE/O greater than 0","Enter an EED greater than 0"))) -> OK | H53: =IF(C53,"UV energy input OK",D53) -> UV energy input OK
C55: =IF(ISERROR(flow_dist),FALSE,IF(ISNUMBER(flow_dist),TRUE,FALSE)) -> TRUE | D55: =IF(C55, "OK", "Please choose active or passive flow distribution.") -> OK | E55: Flow distribution | F55: flow_dist_I | G55: active flow | H55: <-- pick one | I55: Active flow provides greatest hydraulic control
C56: =IF(ISERROR(ups),FALSE,IF(ISNUMBER(ups),TRUE,FALSE)) -> TRUE | D56: =IF(C56,"OK","Please choose whether to include a UPS") -> OK | E56: Include UPS for UV power supply | F56: UPS_I | G56: no | H56: <-- pick one | I56: Most facilities do not use UPS for their UV systems
C57: =IF(ISERROR(excavation),FALSE,IF(ISNUMBER(excavation),TRUE,FALSE)) -> TRUE | D57: =IF(C57,"OK","Please choose whether to excavate") -> OK | E57: Excavation for proper hydraulic profile | F57: excavation_I | G57: no | H57: <-- pick one | I57: ="Choose yes to lower hydraulic profile by " & excavation_depth & " feet" -> Choose yes to lower hydraulic profile by 5 feet
C58: =AND(C55:C57) -> TRUE | D58: =IF(C58,"OK",IF(NOT(C55),D55,IF(NOT(C56),D56,IF(NOT(C57),D57)))) -> OK | H58: =IF(C58,"System configuration inputs OK",D58) -> System configuration inputs OK
C60: =IF(ISBLANK(include_pumps_I),TRUE,IF(ISNUMBER(include_pumps_I),IF(AND(include_pumps_I>=0,include_pumps_I=ROUND(include_pumps_I,0)),IF(ISERROR(pump_rating),FALSE,IF(pump_rating>max_pump_size,FALSE,TRUE)),FALSE),FALSE)) -> TRUE | D60: =IF(C60,"OK","Please enter a whole number of booster pumps, or leave the entry blank") -> OK | E60: Number of booster pumps | F60: include_pumps_I | G60: 0 | H60: pumps | I60: Enter 0 to exclude booster pumps (i.e., use existing pumps). Clear cell to accept model defaults (no pumps for systems <1 MGD, otherwise sized per average and design flows)
E61: For information: # of booster pumps | G61: =IF(ISERROR(booster_pumps),"",booster_pumps) -> 0 | H61: pumps
C62: =IF(ISBLANK(NRD_I),TRUE,IF(ISNUMBER(NRD_I),IF(AND(NRD_I>=0,NRD_I=ROUND(NRD_I,0)),TRUE,FALSE),FALSE)) -> TRUE | D62: =IF(C62,"OK","Please enter a whole number of redundant reactors, or leave the entry blank") -> OK | E62: Redundant reactors to be added | F62: NRD_I | H62: units | I62: Enter 0 to exclude redundant reactors. Leave blank to accept redundancy frequency specified in critical design assumptions.
C63: =NOT(ISERROR(component_level)) -> TRUE | D63: =IF(C63,"OK","Invalid component level") -> OK | E63: Component level | F63: component_level_I | H63: <-- pick or leave blank | I63: Leave blank to use low cost components
C64: =IF(ISERROR(manual),FALSE,IF(AND(flow_dist=1,manual<>3),FALSE,TRUE)) -> TRUE | D64: =IF(C64,"OK",IF(AND(flow_dist=1,manual<>3),"Active flow control requires full automation","Invalid system automation input")) -> OK | E64: System Automation | F64: manual_I | G64: fully automated | H64: <-- pick or leave blank | I64: Leave blank to allow model to pick based on component level or flow distribution
E65: Include buildings? | F65: include_buildings_I | H65: <-- pick or leave blank | I65: Leave blank to include buildings
E66: Include HVAC? | F66: include_HVAC_I | H66: <-- pick or leave blank | I66: Leave blank to allow model to pick based on component level and building type
E67: Include land? | F67: include_land_I | H67: <-- pick or leave blank | I67: Leave blank to include land
E68: For information: Component Level | G68: =IF(component_level=2,"high cost",IF(component_level=1,"mid cost","low cost")) -> low cost
E69: Automation | G69: =IF(manual=1,"manual",IF(manual=2,"semi-automated",IF(manual=3,"fully automated"))) -> fully automated
E70: Add-on (pre- or post-treatment) | F70: addon_I | H70: <-- pick or leave blank | I70: Select to calculate costs for UVAOP as a pre- or post-treatment for another base technology
C71: =AND(C60,C62:C64) -> TRUE | D71: =IF(C71,"OK",IF(NOT(C60),D60,IF(NOT(C62),D62,IF(NOT(C63),D63,IF(NOT(C64),D64))))) -> OK | H71: =IF(C71,"Optional inputs OK",D71) -> Optional inputs OK
H72: =IF(OR(H71="input incomplete",H71="Optional Inputs OK"),"",IF(pump_rating>max_pump_size,"Hint: increase number of pumps or leave that input blank","")) -> 

Sheet OUTPUT
A1: OUTPUT SUMMARY
B2: Parameter | C2: Value | D2: Units
B3: Technology | C3: UVAOP
B4: Contaminant | C4: =VLOOKUP(contam_type,contam_table,2) -> 1,4 Dioxane
B5: Process Type | C5: =photo_aop_name -> AOP (UV/H2O2)
B6: Lamp Type | C6: =VLOOKUP(lamp_type,lamp_type_lookup2,2) -> MP
B7: System Size Category | C7: =IF(design_flow<1,"small","large") -> large
B8: Design Flow | C8: =design_flow -> 2.152 | D8: =df_units -> MGD
B9: Average Flow | C9: =average_flow -> 0.819 | D9: =af_units -> MGD
B10: Contaminant Removal | C10: =Removal_percent_I -> 0.9 | D10: ="(" & TEXT(removal_required,"0.0") & " log)" -> (1.0 log)
B11: Injected oxidant dose (including safety factor) | C11: =H2O2_conc_need -> 10 | D11: mg/L
B12: Electrical Energy per Order (EE/O) | C12: =EEO_I -> 7.4 | D12: kW/1000 gal/order
B13: Flow Distribution | C13: =flow_dist_I -> active flow
B14: Include UPS? | C14: =UPS_I -> no
B15: Include excavation for proper hydraulic profile? | C15: =excavation_I -> no
B16: Total UV power at design flow | C16: =total_reactor_power -> 663.5333333 | D16: kW
B17: Component Level | C17: =CHOOSE(N(component_level)+1,"low cost","mid cost","high cost") -> low cost
B18: System automation | C18: =IF(manual=1,"manual",IF(manual=2,"semi-automated",IF(manual=3,"fully automated"))) -> fully automated
B19: ="Resulting Costs (in year "&TEXT(current_year_cl,0)&" dollars)" -> Resulting Costs (in year 2021 dollars)
B20: Direct Capital Cost | C20: =IF(input_status<>"input complete -- results ready","Action required",IF(Missing_Cost,"Missing cost!",IF(cost_buildup_error,"Error in buildup!",direct_cost))) -> 3175877.077 | D20: Details | E20: =IF(input_status<>"input complete -- results ready",IF(input_complete,"Press Generate Results","Check INPUT sheet for errors"),IF(Missing_Cost,"A price is not available for at least one required component. See Use? column below.",IF(cost_buildup_error,"There is an Excel error in the price for at least one component. See Use? column below.",""))) -> 
B21: Add-on Cost | C21: =IF(input_status<>"input complete -- results ready","Action required",addon_cost) -> 71066.46906 | D21: Details
B22: Indirect Capital Cost | C22: =IF(input_status<>"input complete -- results ready","Action required",C244) -> 1838511.196 | D22: Details
B23: Total Capital Cost | C23: =IF(input_status<>"input complete -- results ready","Action required",IF(Missing_Cost,"Missing cost!",IF(cost_buildup_error,"Error in buildup!",system_cost))) -> 5085454.742 | D23: Details
B24: ="Annualized Capital Cost "&IF(OR(input_status<>"input complete -- results ready",Missing_Cost,cost_buildup_error),"","(per year over "&useful_life&" years at "&Discount_rate*100&"%)") -> Annualized Capital Cost (per year over 29 years at 7%) | C24: =IF(input_status<>"input complete -- results ready","Action required",Annualized_Capital_Cost) -> 414203.4325 | D24: Details
B25: Annual O&M Cost (per year) | C25: =IF(input_status<>"input complete -- results ready","Action required",OM_cost) -> 487992.5956 | D25: Details
B26: ="Total Annualized Cost (per year"&IF(OR(input_status<>"input complete -- results ready",ISERROR(OR(TAC_pct_cap,TAC_pct_OM))),"",", "&TEXT(TAC_pct_cap,"0%")&" capital, "&TEXT(TAC_pct_OM,"0%")&" O&M")&")" -> Total Annualized Cost (per year, 46% capital, 54% O&M) | C26: =IF(input_status<>"input complete -- results ready","Action required",IF(Missing_Cost,"Missing cost!",IF(cost_buildup_error,"Error in buildup!",Annualized_Cost))) -> 902196.0282 | D26: Details
B27: Annualized cost per 1,000 gallons average flow | C27: =IF(input_status<>"input complete -- results ready","Action required",IF(Missing_Cost,"Missing cost!",IF(cost_buildup_error,"Error in buildup!",C306))) -> 3.018034115
B28: Annualized cost per household per year | C28: =IF(input_status<>"input complete -- results ready","Action required",IF(Missing_Cost,"Missing cost!",IF(cost_buildup_error,"Error in buildup!",C307))) -> 395.5187416
A30: Direct Capital Cost Details (items in italics, without a 1 in the "Use?" column, represent alternate costs and are excluded from total)
A31: WBS # | B31: Item | C31: Design Quanitity | E31: Design Size | G31: Size used in estimate | I31: Unit Cost | J31: Total Cost | K31: Useful Life | L31: Use? | M31: Full Line Item Name | N31: Priority selection | W31: Useful Life
N32: Small (<1 mgd) | Q32: Medium (1-10 mgd) | T32: Large (>10 mgd)
N33: Low | O33: Mid | P33: High | Q33: Low | R33: Mid | S33: High | T33: Low | U33: Mid | V33: High | W33: Count? | X33: Depreciation
A34: 1 | B34: UV System
A35: 1.1 | B35: Reactors
A36: 1.1.1 | B36: UV AOP Reactor | C36: =tot_num_reactors -> 9 | D36: units | E36: =reactor_power -> 90 | F36: kW | G36: =IF(curve=1,reactor_power,VLOOKUP(UV_reactor_power,UV_AOP_reactor_cost_cl,2)) -> 90 | H36: =F36 -> kW | I36: =IF(curve=1,UVAOP_reactor_eq,VLOOKUP(reactor_power,UV_AOP_reactor_cost_cl,3)) -> 308340.6392 | J36: =IF(OR(I36="NA",I36="contact vendor"),"--",C36*I36) -> 2775065.753 | K36: =VLOOKUP(reactor_power,UV_AOP_reactor_cost_cl,IF(ss_cat="large",4,5)) -> 25 | L36: 1 | M36: =$B$35&" - "&B36 -> Reactors - UV AOP Reactor | N36: 1 | O36: 1 | P36: 1 | Q36: 1 | R36: 1 | S36: 1 | T36: 1 | U36: 1 | V36: 1 | W36: =IF(ISERROR(K36*L36),0,IF(K36<1,0,L36)) -> 1 | X36: =IF(W36,J36/K36,0) -> 111002.6301
A37: 2 | B37: Oxidant Tanks | W37: 0 | X37: 0
A38: 2.1 | B38: Hydrogen Peroxide Storage Tanks | W38: 0 | X38: 0
A39: 2.1.1 | B39: Plastic/XLPE | C39: =IF(H2O2_used,chem_tanks,0) -> 1 | D39: units | E39: =IF(C39=0,"NA",chem_tank_vol) -> 412.9411765 | F39: =IF(C39=0,"","gal") -> gal | G39: =IF(C39=0,"NA",IF(curve=1,chem_tank_vol,VLOOKUP(chem_tank_vol,pl_cst_cost_cl,2))) -> 412.9411765 | H39: =IF(C39=0,"","gal") -> gal | I39: =IF(C39=0,"NA",IF(curve=1,pl_cst_eq_acid,VLOOKUP(chem_tank_vol,pl_cst_cost_cl,3))) -> 1207.799181 | J39: =IF(OR(I39="NA",I39="contact vendor"),"--",C39*I39) -> 1207.799181 | K39: =IF(C39=0,"NA",VLOOKUP(chem_tank_vol,pl_cst_cost_cl,IF(ss_cat="large",4,5))) -> 10 | L39: 1 | M39: =$B$38&" - "&B39 -> Hydrogen Peroxide Storage Tanks - Plastic/XLPE | N39: 1 | O39: 2 | P39: 2 | Q39: 1 | R39: 2 | S39: 2 | T39: 1 | U39: 2 | V39: 2 | W39: 1 | X39: 120.7799181
A40: 2.1.1 | B40: Stainless Steel | C40: =IF(H2O2_used,chem_tanks,0) -> 1 | D40: units | E40: =IF(C40=0,"NA",chem_tank_vol) -> 412.9411765 | F40: =IF(C40=0,"","gal") -> gal | G40: =IF(C40=0,"NA",IF(curve=1,chem_tank_vol,VLOOKUP(chem_tank_vol,ss_cst_cost_cl,2))) -> 412.9411765 | H40: =IF(C40=0,"","gal") -> gal | I40: =IF(C40=0,"NA",IF(curve=1,ss_cst_eq_acid,VLOOKUP(chem_tank_vol,ss_cst_cost_cl,3))) -> 4611.826864 | J40: =IF(OR(I40="NA",I40="contact vendor"),"--",C40*I40) -> 4611.826864 | K40: =IF(C40=0,"NA",VLOOKUP(chem_tank_vol,ss_cst_cost_cl,IF(ss_cat="large",4,5))) -> 35 | L40: 0 | M40: =$B$38&" - "&B40 -> Hydrogen Peroxide Storage Tanks - Stainless Steel | N40: 2 | O40: 1 | P40: 1 | Q40: 2 | R40: 1 | S40: 1 | T40: 2 | U40: 1 | V40: 1 | W40: 0 | X40: 0
A41: 2.1.2 | B41: Secondary Containment - Concrete Curbing | C41: =IF(OR(H2O2_used=FALSE,include_sec_cont=0,chem_tanks=0),0,chem_stor_curb_concrete) -> 3 | D41: cy | E41: NA | G41: NA | I41: =IF(C41=0,"NA",VLOOKUP(0,conc_basin_cost_cl,3)) -> 739.6055887 | J41: =IF(C41=0,"--",IF(I41="contact vendor","--",C41*I41)) -> 2218.816766 | K41: =IF(C41=0,"NA",VLOOKUP(0,conc_basin_cost_cl,IF(ss_cat="large",4,5))) -> 40 | L41: 1 | M41: =$B$38&" - "&B41 -> Hydrogen Peroxide Storage Tanks - Secondary Containment - Concrete Curbing | N41: 1 | O41: 1 | P41: 1 | Q41: 1 | R41: 1 | S41: 1 | T41: 1 | U41: 1 | V41: 1 | W41: =IF(ISERROR(K41*L41),0,IF(K41<1,0,L41)) -> 1 | X41: =IF(W41,J41/K41,0) -> 55.47041916
A42: 2.1.3 | B42: Secondary Containment - Chemical Resistant Coating | C42: =IF(OR(H2O2_used=FALSE,include_sec_cont=0,chem_tanks=0),0,chem_stor_coating_gal) -> 2 | D42: gal | E42: NA | G42: NA | I42: =IF(C42=0,"NA",VLOOKUP(0,conc_coating_cost_cl,3)) -> 389.13 | J42: =IF(C42=0,"--",IF(I42="contact vendor","--",C42*I42)) -> 778.26 | K42: =IF(C42=0,"NA",VLOOKUP(0,conc_coating_cost_cl,IF(ss_cat="large",4,5))) -> 10 | L42: 1 | M42: =$B$38&" - "&B42 -> Hydrogen Peroxide Storage Tanks - Secondary Containment - Chemical Resistant Coating | N42: 1 | O42: 1 | P42: 1 | Q42: 1 | R42: 1 | S42: 1 | T42: 1 | U42: 1 | V42: 1 | W42: =IF(ISERROR(K42*L42),0,IF(K42<1,0,L42)) -> 1 | X42: =IF(W42,J42/K42,0) -> 77.826
A43: 2.2 | B43: Hydrogen Peroxide Day Tanks | W43: 0 | X43: 0
A44: 2.2.1 | B44: Plastic/XLPE | C44: =IF(H2O2_used,day_tanks,0) -> 1 | D44: units | E44: =IF(C44=0,"NA",day_tank_vol) -> 36.16806723 | F44: =IF(C44=0,"","gal") -> gal | G44: =IF(C44=0,"NA",IF(curve=1,day_tank_vol,VLOOKUP(day_tank_vol,pl_cst_cost_cl,2))) -> 36.16806723 | H44: =IF(C44=0,"","gal") -> gal | I44: =IF(C44=0,"NA",IF(curve=1,pl_day_eq,VLOOKUP(day_tank_vol,pl_cst_cost_cl,3))) -> 751.7798821 | J44: =IF(OR(I44="NA",I44="contact vendor"),"--",C44*I44) -> 751.7798821 | K44: =IF(C44=0,"NA",VLOOKUP(day_tank_vol,pl_cst_cost_cl,IF(ss_cat="large",4,5))) -> 10 | L44: 1 | M44: =$B$43&" - "&B44 -> Hydrogen Peroxide Day Tanks - Plastic/XLPE | N44: 1 | O44: 2 | P44: 2 | Q44: 1 | R44: 2 | S44: 2 | T44: 1 | U44: 2 | V44: 2 | W44: 1 | X44: 75.17798821
A45: 2.2.1 | B45: Stainless Steel | C45: =IF(H2O2_used,day_tanks,0) -> 1 | D45: units | E45: =IF(C45=0,"NA",day_tank_vol) -> 36.16806723 | F45: =IF(C45=0,"","gal") -> gal | G45: =IF(C45=0,"NA",IF(curve=1,day_tank_vol,VLOOKUP(day_tank_vol,ss_cst_cost_cl,2))) -> 36.16806723 | H45: =IF(C45=0,"","gal") -> gal | I45: =IF(C45=0,"NA",IF(curve=1,ss_day_eq,VLOOKUP(day_tank_vol,ss_cst_cost_cl,3))) -> 780.8462463 | J45: =IF(OR(I45="NA",I45="contact vendor"),"--",C45*I45) -> 780.8462463 | K45: =IF(C45=0,"NA",VLOOKUP(day_tank_vol,ss_cst_cost_cl,IF(ss_cat="large",4,5))) -> 35 | L45: 0 | M45: =$B$43&" - "&B45 -> Hydrogen Peroxide Day Tanks - Stainless Steel | N45: 2 | O45: 1 | P45: 1 | Q45: 2 | R45: 1 | S45: 1 | T45: 2 | U45: 1 | V45: 1 | W45: 0 | X45: 0
A46: 2.2.2 | B46: Secondary Containment - Concrete Curbing | C46: =IF(OR(H2O2_used=FALSE,include_sec_cont=0,day_tanks=0),0,chem_day_curb_concrete) -> 1 | D46: cy | E46: NA | G46: NA | I46: =IF(C46=0,"NA",VLOOKUP(0,conc_basin_cost_cl,3)) -> 739.6055887 | J46: =IF(C46=0,"--",IF(I46="contact vendor","--",C46*I46)) -> 739.6055887 | K46: =IF(C46=0,"NA",VLOOKUP(0,conc_basin_cost_cl,IF(ss_cat="large",4,5))) -> 40 | L46: 1 | M46: =$B$43&" - "&B46 -> Hydrogen Peroxide Day Tanks - Secondary Containment - Concrete Curbing | N46: 1 | O46: 1 | P46: 1 | Q46: 1 | R46: 1 | S46: 1 | T46: 1 | U46: 1 | V46: 1 | W46: =IF(ISERROR(K46*L46),0,IF(K46<1,0,L46)) -> 1 | X46: =IF(W46,J46/K46,0) -> 18.49013972
A47: 2.2.3 | B47: Secondary Containment - Chemical Resistant Coating | C47: =IF(OR(H2O2_used=FALSE,include_sec_cont=0,day_tanks=0),0,chem_day_coating_gal) -> 1 | D47: gal | E47: NA | G47: NA | I47: =IF(C47=0,"NA",VLOOKUP(0,conc_coating_cost_cl,3)) -> 389.13 | J47: =IF(C47=0,"--",IF(I47="contact vendor","--",C47*I47)) -> 389.13 | K47: =IF(C47=0,"NA",VLOOKUP(0,conc_coating_cost_cl,IF(ss_cat="large",4,5))) -> 10 | L47: 1 | M47: =$B$43&" - "&B47 -> Hydrogen Peroxide Day Tanks - Secondary Containment - Chemical Resistant Coating | N47: 1 | O47: 1 | P47: 1 | Q47: 1 | R47: 1 | S47: 1 | T47: 1 | U47: 1 | V47: 1 | W47: =IF(ISERROR(K47*L47),0,IF(K47<1,0,L47)) -> 1 | X47: =IF(W47,J47/K47,0) -> 38.913
A48: 2.3 | B48: Sodium Hypochlorite Storage Tanks | W48: =IF(ISERROR(K48*L48),0,IF(K48<1,0,L48)) -> 0 | X48: =IF(W48,J48/K48,0) -> 0
A49: 2.3.1 | B49: Plastic/XLPE | C49: =IF(Cl2_used,chem_tanks,0) -> 0 | D49: units | E49: =IF(C49=0,"NA",chem_tank_vol) -> NA | F49: =IF(C49=0,"","gal") ->  | G49: =IF(C49=0,"NA",IF(curve=1,chem_tank_vol,VLOOKUP(chem_tank_vol,pl_cst_cost_cl,2))) -> NA | H49: =IF(C49=0,"","gal") ->  | I49: =IF(C49=0,"NA",IF(curve=1,pl_cst_eq_acid,VLOOKUP(chem_tank_vol,pl_cst_cost_cl,3))) -> NA | J49: =IF(OR(I49="NA",I49="contact vendor"),"--",C49*I49) -> -- | K49: =IF(C49=0,"NA",VLOOKUP(chem_tank_vol,pl_cst_cost_cl,IF(ss_cat="large",4,5))) -> NA | M49: =$B$48&" - "&B49 -> Sodium Hypochlorite Storage Tanks - Plastic/XLPE | N49: 1 | O49: 2 | P49: 2 | Q49: 1 | R49: 2 | S49: 2 | T49: 1 | U49: 2 | V49: 2 | W49: 0 | X49: 0
A50: 2.3.1 | B50: Fiberglass | C50: =IF(Cl2_used,chem_tanks,0) -> 0 | D50: units | E50: =IF(C50=0,"NA",chem_tank_vol) -> NA | F50: =IF(C50=0,"","gal") ->  | G50: =IF(C50=0,"NA",IF(curve=1,chem_tank_vol,VLOOKUP(chem_tank_vol,fg_cst_cost_cl,2))) -> NA | H50: =IF(C50=0,"","gal") ->  | I50: =IF(C50=0,"NA",IF(curve=1,fg_cst_eq_acid,VLOOKUP(chem_tank_vol,fg_cst_cost_cl,3))) -> NA | J50: =IF(OR(I50="NA",I50="contact vendor"),"--",C50*I50) -> -- | K50: =IF(C50=0,"NA",VLOOKUP(chem_tank_vol,fg_cst_cost_cl,IF(ss_cat="large",4,5))) -> NA | M50: =$B$48&" - "&B50 -> Sodium Hypochlorite Storage Tanks - Fiberglass | N50: 2 | O50: 1 | P50: 1 | Q50: 2 | R50: 1 | S50: 1 | T50: 2 | U50: 1 | V50: 1 | W50: 0 | X50: 0
A51: 2.3.2 | B51: Secondary Containment - Concrete Curbing | C51: =IF(OR(Cl2_used=FALSE,include_sec_cont=0,chem_tanks=0),0,chem_stor_curb_concrete) -> 0 | D51: cy | E51: NA | G51: NA | I51: =IF(C51=0,"NA",VLOOKUP(0,conc_basin_cost_cl,3)) -> NA | J51: =IF(C51=0,"--",IF(I51="contact vendor","--",C51*I51)) -> -- | K51: =IF(C51=0,"NA",VLOOKUP(0,conc_basin_cost_cl,IF(ss_cat="large",4,5))) -> NA | M51: =$B$48&" - "&B51 -> Sodium Hypochlorite Storage Tanks - Secondary Containment - Concrete Curbing | N51: 1 | O51: 1 | P51: 1 | Q51: 1 | R51: 1 | S51: 1 | T51: 1 | U51: 1 | V51: 1 | W51: =IF(ISERROR(K51*L51),0,IF(K51<1,0,L51)) -> 0 | X51: =IF(W51,J51/K51,0) -> 0
A52: 2.3.3 | B52: Secondary Containment - Chemical Resistant Coating | C52: =IF(OR(Cl2_used=FALSE,include_sec_cont=0,chem_tanks=0),0,chem_stor_coating_gal) -> 0 | D52: gal | E52: NA | G52: NA | I52: =IF(C52=0,"NA",VLOOKUP(0,conc_coating_cost_cl,3)) -> NA | J52: =IF(C52=0,"--",IF(I52="contact vendor","--",C52*I52)) -> -- | K52: =IF(C52=0,"NA",VLOOKUP(0,conc_coating_cost_cl,IF(ss_cat="large",4,5))) -> NA | M52: =$B$48&" - "&B52 -> Sodium Hypochlorite Storage Tanks - Secondary Containment - Chemical Resistant Coating | N52: 1 | O52: 1 | P52: 1 | Q52: 1 | R52: 1 | S52: 1 | T52: 1 | U52: 1 | V52: 1 | W52: =IF(ISERROR(K52*L52),0,IF(K52<1,0,L52)) -> 0 | X52: =IF(W52,J52/K52,0) -> 0
A53: 2.4 | B53: Sodium Hypochlorite Day Tanks | W53: 0 | X53: 0
A54: 2.4.1 | B54: Plastic/XLPE | C54: =IF(Cl2_used,day_tanks,0) -> 0 | D54: units | E54: =IF(C54=0,"NA",day_tank_vol) -> NA | F54: =IF(C54=0,"","gal") ->  | G54: =IF(C54=0,"NA",IF(curve=1,day_tank_vol,VLOOKUP(day_tank_vol,pl_cst_cost_cl,2))) -> NA | H54: =IF(C54=0,"","gal") ->  | I54: =IF(C54=0,"NA",IF(curve=1,pl_day_eq,VLOOKUP(day_tank_vol,pl_cst_cost_cl,3))) -> NA | J54: =IF(OR(I54="NA",I54="contact vendor"),"--",C54*I54) -> -- | K54: =IF(C54=0,"NA",VLOOKUP(day_tank_vol,pl_cst_cost_cl,IF(ss_cat="large",4,5))) -> NA | M54: =$B$53&" - "&B54 -> Sodium Hypochlorite Day Tanks - Plastic/XLPE | N54: 1 | O54: 2 | P54: 2 | Q54: 1 | R54: 2 | S54: 2 | T54: 1 | U54: 2 | V54: 2 | W54: 0 | X54: 0
A55: 2.4.1 | B55: Fiberglass | C55: =IF(Cl2_used,day_tanks,0) -> 0 | D55: units | E55: =IF(C55=0,"NA",day_tank_vol) -> NA | F55: =IF(C55=0,"","gal") ->  | G55: =IF(C55=0,"NA",IF(curve=1,day_tank_vol,VLOOKUP(day_tank_vol,fg_cst_cost_cl,2))) -> NA | H55: =IF(C55=0,"","gal") ->  | I55: =IF(C55=0,"NA",IF(curve=1,fg_day_eq,VLOOKUP(day_tank_vol,fg_cst_cost_cl,3))) -> NA | J55: =IF(OR(I55="NA",I55="contact vendor"),"--",C55*I55) -> -- | K55: =IF(C55=0,"NA",VLOOKUP(day_tank_vol,fg_cst_cost_cl,IF(ss_cat="large",4,5))) -> NA | M55: =$B$53&" - "&B55 -> Sodium Hypochlorite Day Tanks - Fiberglass | N55: 2 | O55: 1 | P55: 1 | Q55: 2 | R55: 1 | S55: 1 | T55: 2 | U55: 1 | V55: 1 | W55: 0 | X55: 0
A56: 2.4.2 | B56: Secondary Containment - Concrete Curbing | C56: =IF(OR(Cl2_used=FALSE,include_sec_cont=0,day_tanks=0),0,chem_day_curb_concrete) -> 0 | D56: cy | E56: NA | G56: NA | I56: =IF(C56=0,"NA",VLOOKUP(0,conc_basin_cost_cl,3)) -> NA | J56: =IF(C56=0,"--",IF(I56="contact vendor","--",C56*I56)) -> -- | K56: =IF(C56=0,"NA",VLOOKUP(0,conc_basin_cost_cl,IF(ss_cat="large",4,5))) -> NA | M56: =$B$53&" - "&B56 -> Sodium Hypochlorite Day Tanks - Secondary Containment - Concrete Curbing | N56: 1 | O56: 1 | P56: 1 | Q56: 1 | R56: 1 | S56: 1 | T56: 1 | U56: 1 | V56: 1 | W56: =IF(ISERROR(K56*L56),0,IF(K56<1,0,L56)) -> 0 | X56: =IF(W56,J56/K56,0) -> 0
A57: 2.4.3 | B57: Secondary Containment - Chemical Resistant Coating | C57: =IF(OR(Cl2_used=FALSE,include_sec_cont=0,day_tanks=0),0,chem_day_coating_gal) -> 0 | D57: gal | E57: NA | G57: NA | I57: =IF(C57=0,"NA",VLOOKUP(0,conc_coating_cost_cl,3)) -> NA | J57: =IF(C57=0,"--",IF(I57="contact vendor","--",C57*I57)) -> -- | K57: =IF(C57=0,"NA",VLOOKUP(0,conc_coating_cost_cl,IF(ss_cat="large",4,5))) -> NA | M57: =$B$53&" - "&B57 -> Sodium Hypochlorite Day Tanks - Secondary Containment - Chemical Resistant Coating | N57: 1 | O57: 1 | P57: 1 | Q57: 1 | R57: 1 | S57: 1 | T57: 1 | U57: 1 | V57: 1 | W57: =IF(ISERROR(K57*L57),0,IF(K57<1,0,L57)) -> 0 | X57: =IF(W57,J57/K57,0) -> 0
A58: 3 | B58: Piping | W58: 0 | X58: 0
A59: 3.1 | B59: Influent and Treated Water Piping | W59: 0 | X59: 0
A60: 3.1.1 | B60: Ductile Iron | C60: =in_out_pipe_length -> 120 | D60: lf | E60: =IF(in_out_pipe_diam=0,"NA",in_out_pipe_diam) -> 10 | F60: =IF(in_out_pipe_diam=0,"","in. diam") -> in. diam | G60: =IF(in_out_pipe_diam=0,"NA",IF(curve=1,in_out_pipe_diam,VLOOKUP(in_out_pipe_diam,di_pipe_cost_cl,2))) -> 10 | H60: =IF(in_out_pipe_diam=0,"","in. diam") -> in. diam | I60: =IF(curve=1,di_pipe_eq_in_out,VLOOKUP(in_out_pipe_diam,di_pipe_cost_cl,3)) -> 141.7375468 | J60: =IF(OR(I60="NA",I60="contact vendor"),"--",C60*I60) -> 17008.50561 | K60: =VLOOKUP(in_out_pipe_diam,di_pipe_cost_cl,IF(ss_cat="large",4,5)) -> 40 | L60: 0 | M60: =$B$59&" - "&B60 -> Influent and Treated Water Piping - Ductile Iron | N60: 3 | O60: 3 | P60: 3 | Q60: 3 | R60: 3 | S60: 3 | T60: 3 | U60: 3 | V60: 3 | W60: 0 | X60: 0
A61: 3.1.1 | B61: CPVC | C61: =in_out_pipe_length -> 120 | D61: lf | E61: =IF(in_out_pipe_diam=0,"NA",in_out_pipe_diam) -> 10 | F61: =IF(in_out_pipe_diam=0,"","in. diam") -> in. diam | G61: =IF(in_out_pipe_diam=0,"NA",IF(curve=1,in_out_pipe_diam,VLOOKUP(in_out_pipe_diam,cpvc_pipe_cost_cl,2))) -> 10 | H61: =IF(in_out_pipe_diam=0,"","in. diam") -> in. diam | I61: =IF(curve=1,cpvc_pipe_eq_in_out,VLOOKUP(in_out_pipe_diam,cpvc_pipe_cost_cl,3)) -> 110.9736794 | J61: =IF(OR(I61="NA",I61="contact vendor"),"--",C61*I61) -> 13316.84153 | K61: =VLOOKUP(in_out_pipe_diam,cpvc_pipe_cost_cl,IF(ss_cat="large",4,5)) -> 22 | L61: 0 | M61: =$B$59&" - "&B61 -> Influent and Treated Water Piping - CPVC | N61: 2 | O61: 1 | P61: 4 | Q61: 2 | R61: 1 | S61: 4 | T61: 2 | U61: 1 | V61: 4 | W61: 0 | X61: 0
A62: 3.1.1 | B62: PVC | C62: =in_out_pipe_length -> 120 | D62: lf | E62: =IF(in_out_pipe_diam=0,"NA",in_out_pipe_diam) -> 10 | F62: =IF(in_out_pipe_diam=0,"","in. diam") -> in. diam | G62: =IF(in_out_pipe_diam=0,"NA",IF(curve=1,in_out_pipe_diam,VLOOKUP(in_out_pipe_diam,pvc_pipe_cost_cl,2))) -> 10 | H62: =IF(in_out_pipe_diam=0,"","in. diam") -> in. diam | I62: =IF(curve=1,pvc_pipe_eq_in_out,VLOOKUP(in_out_pipe_diam,pvc_pipe_cost_cl,3)) -> 19.14819226 | J62: =IF(OR(I62="NA",I62="contact vendor"),"--",C62*I62) -> 2297.783072 | K62: =VLOOKUP(in_out_pipe_diam,pvc_pipe_cost_cl,IF(ss_cat="large",4,5)) -> 22 | L62: 1 | M62: =$B$59&" - "&B62 -> Influent and Treated Water Piping - PVC | N62: 1 | O62: 2 | P62: 5 | Q62: 1 | R62: 2 | S62: 5 | T62: 1 | U62: 2 | V62: 5 | W62: 1 | X62: 104.4446851
A63: 3.1.1 | B63: Stainless Steel | C63: =in_out_pipe_length -> 120 | D63: lf | E63: =IF(in_out_pipe_diam=0,"NA",in_out_pipe_diam) -> 10 | F63: =IF(in_out_pipe_diam=0,"","in. diam") -> in. diam | G63: =IF(in_out_pipe_diam=0,"NA",IF(curve=1,in_out_pipe_diam,VLOOKUP(in_out_pipe_diam,ss_pipe_cost_cl,2))) -> 10 | H63: =IF(in_out_pipe_diam=0,"","in. diam") -> in. diam | I63: =IF(curve=1,ss_pipe_eq_in_out,VLOOKUP(in_out_pipe_diam,ss_pipe_cost_cl,3)) -> 366.9497963 | J63: =IF(OR(I63="NA",I63="contact vendor"),"--",C63*I63) -> 44033.97556 | K63: =VLOOKUP(in_out_pipe_diam,ss_pipe_cost_cl,IF(ss_cat="large",4,5)) -> 45 | L63: 0 | M63: =$B$59&" - "&B63 -> Influent and Treated Water Piping - Stainless Steel | N63: 5 | O63: 5 | P63: 1 | Q63: 5 | R63: 5 | S63: 1 | T63: 5 | U63: 5 | V63: 1 | W63: 0 | X63: 0
A64: 3.1.1 | B64: Steel | C64: =in_out_pipe_length -> 120 | D64: lf | E64: =IF(in_out_pipe_diam=0,"NA",in_out_pipe_diam) -> 10 | F64: =IF(in_out_pipe_diam=0,"","in. diam") -> in. diam | G64: =IF(in_out_pipe_diam=0,"NA",IF(curve=1,in_out_pipe_diam,VLOOKUP(in_out_pipe_diam,st_pipe_cost_cl,2))) -> 10 | H64: =IF(in_out_pipe_diam=0,"","in. diam") -> in. diam | I64: =IF(curve=1,st_pipe_eq_in_out,VLOOKUP(in_out_pipe_diam,st_pipe_cost_cl,3)) -> 174.2794994 | J64: =IF(OR(I64="NA",I64="contact vendor"),"--",C64*I64) -> 20913.53993 | K64: =VLOOKUP(in_out_pipe_diam,st_pipe_cost_cl,IF(ss_cat="large",4,5)) -> 35 | L64: 0 | M64: =$B$59&" - "&B64 -> Influent and Treated Water Piping - Steel | N64: 4 | O64: 4 | P64: 2 | Q64: 4 | R64: 4 | S64: 2 | T64: 4 | U64: 4 | V64: 2 | W64: 0 | X64: 0
A65: 3.2 | B65: Process Piping | W65: 0 | X65: 0
A66: 3.2.1 | B66: Ductile Iron | C66: =proc_pipe_length -> 120 | D66: lf | E66: =proc_pipe_diam -> 10 | F66: =IF(proc_pipe_diam=0,"","in. diam") -> in. diam | G66: =IF(proc_pipe_diam=0,"NA",IF(curve=1,proc_pipe_diam,VLOOKUP(proc_pipe_diam,di_pipe_cost_cl,2))) -> 10 | H66: =IF(proc_pipe_diam=0,"","in. diam") -> in. diam | I66: =IF(curve=1,di_pipe_eq_proc,VLOOKUP(proc_pipe_diam,di_pipe_cost_cl,3)) -> 141.7375468 | J66: =IF(OR(I66="NA",I66="contact vendor"),"--",C66*I66) -> 17008.50561 | K66: =VLOOKUP(proc_pipe_diam,di_pipe_cost_cl,IF(ss_cat="large",4,5)) -> 40 | L66: 0 | M66: =$B$65&" - "&B66 -> Process Piping - Ductile Iron | N66: 3 | O66: 3 | P66: 3 | Q66: 3 | R66: 3 | S66: 3 | T66: 3 | U66: 3 | V66: 3 | W66: 0 | X66: 0
A67: 3.2.1 | B67: CPVC | C67: =proc_pipe_length -> 120 | D67: lf | E67: =proc_pipe_diam -> 10 | F67: =IF(proc_pipe_diam=0,"","in. diam") -> in. diam | G67: =IF(proc_pipe_diam=0,"NA",IF(curve=1,proc_pipe_diam,VLOOKUP(proc_pipe_diam,cpvc_pipe_cost_cl,2))) -> 10 | H67: =IF(proc_pipe_diam=0,"","in. diam") -> in. diam | I67: =IF(curve=1,cpvc_pipe_eq_proc,VLOOKUP(proc_pipe_diam,cpvc_pipe_cost_cl,3)) -> 110.9736794 | J67: =IF(OR(I67="NA",I67="contact vendor"),"--",C67*I67) -> 13316.84153 | K67: =VLOOKUP(proc_pipe_diam,cpvc_pipe_cost_cl,IF(ss_cat="large",4,5)) -> 22 | L67: 0 | M67: =$B$65&" - "&B67 -> Process Piping - CPVC | N67: 2 | O67: 1 | P67: 4 | Q67: 2 | R67: 1 | S67: 4 | T67: 2 | U67: 1 | V67: 4 | W67: 0 | X67: 0
A68: 3.2.1 | B68: PVC | C68: =proc_pipe_length -> 120 | D68: lf | E68: =proc_pipe_diam -> 10 | F68: =IF(proc_pipe_diam=0,"","in. diam") -> in. diam | G68: =IF(proc_pipe_diam=0,"NA",IF(curve=1,proc_pipe_diam,VLOOKUP(proc_pipe_diam,pvc_pipe_cost_cl,2))) -> 10 | H68: =IF(proc_pipe_diam=0,"","in. diam") -> in. diam | I68: =IF(curve=1,pvc_pipe_eq_proc,VLOOKUP(proc_pipe_diam,pvc_pipe_cost_cl,3)) -> 19.14819226 | J68: =IF(OR(I68="NA",I68="contact vendor"),"--",C68*I68) -> 2297.783072 | K68: =VLOOKUP(proc_pipe_diam,pvc_pipe_cost_cl,IF(ss_cat="large",4,5)) -> 22 | L68: 1 | M68: =$B$65&" - "&B68 -> Process Piping - PVC | N68: 1 | O68: 2 | P68: 5 | Q68: 1 | R68: 2 | S68: 5 | T68: 1 | U68: 2 | V68: 5 | W68: 1 | X68: 104.4446851
A69: 3.2.1 | B69: Stainless Steel | C69: =proc_pipe_length -> 120 | D69: lf | E69: =proc_pipe_diam -> 10 | F69: =IF(proc_pipe_diam=0,"","in. diam") -> in. diam | G69: =IF(proc_pipe_diam=0,"NA",IF(curve=1,proc_pipe_diam,VLOOKUP(proc_pipe_diam,ss_pipe_cost_cl,2))) -> 10 | H69: =IF(proc_pipe_diam=0,"","in. diam") -> in. diam | I69: =IF(curve=1,ss_pipe_eq_proc,VLOOKUP(proc_pipe_diam,ss_pipe_cost_cl,3)) -> 366.9497963 | J69: =IF(OR(I69="NA",I69="contact vendor"),"--",C69*I69) -> 44033.97556 | K69: =VLOOKUP(proc_pipe_diam,ss_pipe_cost_cl,IF(ss_cat="large",4,5)) -> 45 | L69: 0 | M69: =$B$65&" - "&B69 -> Process Piping - Stainless Steel | N69: 5 | O69: 5 | P69: 1 | Q69: 5 | R69: 5 | S69: 1 | T69: 5 | U69: 5 | V69: 1 | W69: 0 | X69: 0
A70: 3.2.1 | B70: Steel | C70: =proc_pipe_length -> 120 | D70: lf | E70: =proc_pipe_diam -> 10 | F70: =IF(proc_pipe_diam=0,"","in. diam") -> in. diam | G70: =IF(proc_pipe_diam=0,"NA",IF(curve=1,proc_pipe_diam,VLOOKUP(proc_pipe_diam,st_pipe_cost_cl,2))) -> 10 | H70: =IF(proc_pipe_diam=0,"","in. diam") -> in. diam | I70: =IF(curve=1,st_pipe_eq_proc,VLOOKUP(proc_pipe_diam,st_pipe_cost_cl,3)) -> 174.2794994 | J70: =IF(OR(I70="NA",I70="contact vendor"),"--",C70*I70) -> 20913.53993 | K70: =VLOOKUP(proc_pipe_diam,st_pipe_cost_cl,IF(ss_cat="large",4,5)) -> 35 | L70: 0 | M70: =$B$65&" - "&B70 -> Process Piping - Steel | N70: 4 | O70: 4 | P70: 2 | Q70: 4 | R70: 4 | S70: 2 | T70: 4 | U70: 4 | V70: 2 | W70: 0 | X70: 0
A71: 3.3 | B71: Dilute Hydrogen Peroxide Piping | W71: 0 | X71: 0
A72: 3.3.1 | B72: CPVC | C72: =IF(H2O2_used,acid_pipe_length,0) -> 60 | D72: lf | E72: =IF(C72=0,"NA",acid_pipe_diam) -> 0.5 | F72: =IF(C72=0,"","in. diam") -> in. diam | G72: =IF(C72=0,"NA",IF(curve=1,acid_pipe_diam,VLOOKUP(acid_pipe_diam,cpvc_pipe_cost_cl,2))) -> 0.5 | H72: =IF(C72=0,"","in. diam") -> in. diam | I72: =IF(C72=0,"NA",IF(curve=1,cpvc_pipe_eq_acid,VLOOKUP(acid_pipe_diam,cpvc_pipe_cost_cl,3))) -> 2.593344082 | J72: =IF(OR(I72="NA",I72="contact vendor"),"--",C72*I72) -> 155.600645 | K72: =IF(C72=0,"NA",VLOOKUP(acid_pipe_diam,cpvc_pipe_cost_cl,IF(ss_cat="large",4,5))) -> 22 | L72: 0 | M72: =$B$71&" - "&B72 -> Dilute Hydrogen Peroxide Piping - CPVC | N72: 2 | O72: 1 | P72: 2 | Q72: 2 | R72: 1 | S72: 2 | T72: 2 | U72: 1 | V72: 2 | W72: 0 | X72: 0
A73: 3.3.1 | B73: PVC | C73: =IF(H2O2_used,acid_pipe_length,0) -> 60 | D73: lf | E73: =IF(C73=0,"NA",acid_pipe_diam) -> 0.5 | F73: =IF(C73=0,"","in. diam") -> in. diam | G73: =IF(C73=0,"NA",IF(curve=1,acid_pipe_diam,VLOOKUP(acid_pipe_diam,pvc_pipe_cost_cl,2))) -> 0.5 | H73: =IF(C73=0,"","in. diam") -> in. diam | I73: =IF(C73=0,"NA",IF(curve=1,pvc_pipe_eq_acid,VLOOKUP(acid_pipe_diam,pvc_pipe_cost_cl,3))) -> 1.852484879 | J73: =IF(OR(I73="NA",I73="contact vendor"),"--",C73*I73) -> 111.1490927 | K73: =IF(C73=0,"NA",VLOOKUP(acid_pipe_diam,pvc_pipe_cost_cl,IF(ss_cat="large",4,5))) -> 22 | L73: 1 | M73: =$B$71&" - "&B73 -> Dilute Hydrogen Peroxide Piping - PVC | N73: 1 | O73: 2 | P73: 3 | Q73: 1 | R73: 2 | S73: 3 | T73: 1 | U73: 2 | V73: 3 | W73: 1 | X73: 5.052231488
A74: 3.3.1 | B74: Stainless Steel | C74: =IF(H2O2_used,acid_pipe_length,0) -> 60 | D74: lf | E74: =IF(C74=0,"NA",acid_pipe_diam) -> 0.5 | F74: =IF(C74=0,"","in. diam") -> in. diam | G74: =IF(C74=0,"NA",IF(curve=1,acid_pipe_diam,VLOOKUP(acid_pipe_diam,ss_pipe_cost_cl,2))) -> 0.5 | H74: =IF(C74=0,"","in. diam") -> in. diam | I74: =IF(C74=0,"NA",IF(curve=1,ss_pipe_eq_acid,VLOOKUP(acid_pipe_diam,ss_pipe_cost_cl,3))) -> 16.35807022 | J74: =IF(OR(I74="NA",I74="contact vendor"),"--",C74*I74) -> 981.484213 | K74: =IF(C74=0,"NA",VLOOKUP(acid_pipe_diam,ss_pipe_cost_cl,IF(ss_cat="large",4,5))) -> 45 | L74: 0 | M74: =$B$71&" - "&B74 -> Dilute Hydrogen Peroxide Piping - Stainless Steel | N74: 3 | O74: 3 | P74: 1 | Q74: 3 | R74: 3 | S74: 1 | T74: 3 | U74: 3 | V74: 1 | W74: 0 | X74: 0
A75: 3.4 | B75: Sodium Hypochlorite Piping | W75: =IF(ISERROR(K75*L75),0,IF(K75<1,0,L75)) -> 0 | X75: =IF(W75,J75/K75,0) -> 0
A76: 3.4.1 | B76: PVC | C76: =IF(Cl2_used,acid_pipe_length,0) -> 0 | D76: lf | E76: =IF(C76=0,"NA",acid_pipe_diam) -> NA | F76: =IF(C76=0,"","in. diam") ->  | G76: =IF(C76=0,"NA",IF(curve=1,acid_pipe_diam,VLOOKUP(acid_pipe_diam,pvc_pipe_cost_cl,2))) -> NA | H76: =IF(C76=0,"","in. diam") ->  | I76: =IF(C76=0,"NA",IF(curve=1,pvc_pipe_eq_acid,VLOOKUP(acid_pipe_diam,pvc_pipe_cost_cl,3))) -> NA | J76: =IF(OR(I76="NA",I76="contact vendor"),"--",C76*I76) -> -- | K76: =IF(C76=0,"NA",VLOOKUP(acid_pipe_diam,pvc_pipe_cost_cl,IF(ss_cat="large",4,5))) -> NA | M76: =$B$75&" - "&B76 -> Sodium Hypochlorite Piping - PVC | N76: 1 | O76: 1 | P76: 1 | Q76: 1 | R76: 1 | S76: 1 | T76: 1 | U76: 1 | V76: 1 | W76: =IF(ISERROR(K76*L76),0,IF(K76<1,0,L76)) -> 0 | X76: =IF(W76,J76/K76,0) -> 0
A77: 3.5 | B77: Drain Piping | W77: 0 | X77: 0
A78: 3.5.1 | B78: Ductile Iron | C78: =drain_pipe_length -> 60 | D78: lf | E78: =IF(drain_pipe_diam=0,"NA",drain_pipe_diam) -> 1.5 | F78: =IF(drain_pipe_diam=0,"","in. diam") -> in. diam | G78: =IF(drain_pipe_diam=0,"NA",IF(curve=1,drain_pipe_diam,VLOOKUP(drain_pipe_diam,di_pipe_cost_cl,2))) -> 1.5 | H78: =IF(drain_pipe_diam=0,"","in. diam") -> in. diam | I78: =IF(curve=1,di_pipe_eq_drain,VLOOKUP(drain_pipe_diam,di_pipe_cost_cl,3)) -> contact vendor | J78: =IF(OR(I78="NA",I78="contact vendor"),"--",C78*I78) -> -- | K78: =VLOOKUP(drain_pipe_diam,di_pipe_cost_cl,IF(ss_cat="large",4,5)) -> 40 | L78: 0 | M78: =$B$77&" - "&B78 -> Drain Piping - Ductile Iron | N78: 3 | O78: 3 | P78: 3 | Q78: 3 | R78: 3 | S78: 3 | T78: 3 | U78: 3 | V78: 3 | W78: =IF(ISERROR(K78*L78),0,IF(K78<1,0,L78)) -> 0 | X78: =IF(W78,J78/K78,0) -> 0
A79: 3.5.1 | B79: CPVC | C79: =drain_pipe_length -> 60 | D79: lf | E79: =IF(drain_pipe_diam=0,"NA",drain_pipe_diam) -> 1.5 | F79: =IF(drain_pipe_diam=0,"","in. diam") -> in. diam | G79: =IF(drain_pipe_diam=0,"NA",IF(curve=1,drain_pipe_diam,VLOOKUP(drain_pipe_diam,cpvc_pipe_cost_cl,2))) -> 1.5 | H79: =IF(drain_pipe_diam=0,"","in. diam") -> in. diam | I79: =IF(curve=1,cpvc_pipe_eq_drain,VLOOKUP(drain_pipe_diam,cpvc_pipe_cost_cl,3)) -> 7.013311728 | J79: =IF(OR(I79="NA",I79="contact vendor"),"--",C79*I79) -> 420.7987037 | K79: =VLOOKUP(drain_pipe_diam,cpvc_pipe_cost_cl,IF(ss_cat="large",4,5)) -> 22 | L79: 0 | M79: =$B$77&" - "&B79 -> Drain Piping - CPVC | N79: 2 | O79: 1 | P79: 4 | Q79: 2 | R79: 1 | S79: 4 | T79: 2 | U79: 1 | V79: 4 | W79: 0 | X79: 0
A80: 3.5.1 | B80: PVC | C80: =drain_pipe_length -> 60 | D80: lf | E80: =IF(drain_pipe_diam=0,"NA",drain_pipe_diam) -> 1.5 | F80: =IF(drain_pipe_diam=0,"","in. diam") -> in. diam | G80: =IF(drain_pipe_diam=0,"NA",IF(curve=1,drain_pipe_diam,VLOOKUP(in_out_pipe_diam,pvc_pipe_cost_cl,2))) -> 1.5 | H80: =IF(drain_pipe_diam=0,"","in. diam") -> in. diam | I80: =IF(curve=1,pvc_pipe_eq_drain,VLOOKUP(drain_pipe_diam,pvc_pipe_cost_cl,3)) -> 2.847676267 | J80: =IF(OR(I80="NA",I80="contact vendor"),"--",C80*I80) -> 170.860576 | K80: =VLOOKUP(drain_pipe_diam,pvc_pipe_cost_cl,IF(ss_cat="large",4,5)) -> 22 | L80: 1 | M80: =$B$77&" - "&B80 -> Drain Piping - PVC | N80: 1 | O80: 2 | P80: 5 | Q80: 1 | R80: 2 | S80: 5 | T80: 1 | U80: 2 | V80: 5 | W80: 1 | X80: 7.766389818
A81: 3.5.1 | B81: Stainless Steel | C81: =drain_pipe_length -> 60 | D81: lf | E81: =IF(drain_pipe_diam=0,"NA",drain_pipe_diam) -> 1.5 | F81: =IF(drain_pipe_diam=0,"","in. diam") -> in. diam | G81: =IF(drain_pipe_diam=0,"NA",IF(curve=1,drain_pipe_diam,VLOOKUP(in_out_pipe_diam,ss_pipe_cost_cl,2))) -> 1.5 | H81: =IF(drain_pipe_diam=0,"","in. diam") -> in. diam | I81: =IF(curve=1,ss_pipe_eq_drain,VLOOKUP(drain_pipe_diam,ss_pipe_cost_cl,3)) -> 70.2752489 | J81: =IF(OR(I81="NA",I81="contact vendor"),"--",C81*I81) -> 4216.514934 | K81: =VLOOKUP(drain_pipe_diam,ss_pipe_cost_cl,IF(ss_cat="large",4,5)) -> 45 | L81: 0 | M81: =$B$77&" - "&B81 -> Drain Piping - Stainless Steel | N81: 5 | O81: 5 | P81: 1 | Q81: 5 | R81: 5 | S81: 1 | T81: 5 | U81: 5 | V81: 1 | W81: 0 | X81: 0
A82: 3.5.1 | B82: Steel | C82: =drain_pipe_length -> 60 | D82: lf | E82: =IF(drain_pipe_diam=0,"NA",drain_pipe_diam) -> 1.5 | F82: =IF(drain_pipe_diam=0,"","in. diam") -> in. diam | G82: =IF(drain_pipe_diam=0,"NA",IF(curve=1,drain_pipe_diam,VLOOKUP(in_out_pipe_diam,st_pipe_cost_cl,2))) -> 1.5 | H82: =IF(drain_pipe_diam=0,"","in. diam") -> in. diam | I82: =IF(curve=1,st_pipe_eq_drain,VLOOKUP(drain_pipe_diam,st_pipe_cost_cl,3)) -> 30.20656151 | J82: =IF(OR(I82="NA",I82="contact vendor"),"--",C82*I82) -> 1812.393691 | K82: =VLOOKUP(drain_pipe_diam,st_pipe_cost_cl,IF(ss_cat="large",4,5)) -> 35 | L82: 0 | M82: =$B$77&" - "&B82 -> Drain Piping - Steel | N82: 4 | O82: 4 | P82: 2 | Q82: 4 | R82: 4 | S82: 2 | T82: 4 | U82: 4 | V82: 2 | W82: 0 | X82: 0
A83: 4 | B83: Valves | W83: 0 | X83: 0
A84: 4.1 | B84: Motor/Air Operated (on/off) | W84: 0 | X84: 0
A85: 4.1.1 | B85: Process - Polypropylene/PVC | C85: =tot_proc_MOVs -> 10 | D85: units | E85: =IF(C85=0,"NA",proc_valve_size) -> 10 | F85: =IF(C85=0,"","in. diam") -> in. diam | G85: =IF(C85=0,"NA",IF(curve=1,proc_valve_size,VLOOKUP(proc_valve_size,pp_mov_cost_cl,2))) -> 10 | H85: =IF(C85=0,"","in. diam") -> in. diam | I85: =IF(C85=0,"NA",IF(curve=1,pp_mov_eq_main,VLOOKUP(proc_valve_size,pp_mov_cost_cl,3))) -> 3696.539289 | J85: =IF(OR(I85="NA",I85="contact vendor"),"--",C85*I85) -> 36965.39289 | K85: =IF(C85=0,"NA",VLOOKUP(proc_valve_size,pp_mov_cost_cl,IF(ss_cat="large",4,5))) -> 25 | L85: 1 | M85: =$B$84&" "&$B$83&" - "&B85 -> Motor/Air Operated (on/off) Valves - Process - Polypropylene/PVC | N85: 1 | O85: 2 | P85: 3 | Q85: 1 | R85: 2 | S85: 3 | T85: 1 | U85: 2 | V85: 3 | W85: 1 | X85: 1478.615716
A86: 4.1.1 | B86: Process - Stainless Steel | C86: =tot_proc_MOVs -> 10 | D86: units | E86: =IF(C86=0,"NA",proc_valve_size) -> 10 | F86: in. diam | G86: =IF(C86=0,"NA",IF(curve=1,proc_valve_size,VLOOKUP(proc_valve_size,ss_mov_cost_cl,2))) -> 10 | H86: in. diam | I86: =IF(C86=0,"NA",IF(curve=1,ss_mov_eq_main,VLOOKUP(proc_valve_size,ss_mov_cost_cl,3))) -> 6940.003754 | J86: 69400.03754 | K86: =IF(C86=0,"NA",VLOOKUP(proc_valve_size,ss_mov_cost_cl,IF(ss_cat="large",4,5))) -> 25 | L86: 0 | M86: Motor/Air Operated (on/off) Valves - Process - Stainless Steel | N86: 3 | O86: 3 | P86: 1 | Q86: 3 | R86: 3 | S86: 1 | T86: 3 | U86: 3 | V86: 1 | W86: 0 | X86: 0
A87: 4.1.1 | B87: Process - Cast Iron | C87: =tot_proc_MOVs -> 10 | D87: units | E87: =IF(C87=0,"NA",proc_valve_size) -> 10 | F87: in. diam | G87: =IF(C87=0,"NA",IF(curve=1,proc_valve_size,VLOOKUP(proc_valve_size,ci_mov_cost_cl,2))) -> 10 | H87: in. diam | I87: =IF(C87=0,"NA",IF(curve=1,ci_mov_eq_main,VLOOKUP(proc_valve_size,ci_mov_cost_cl,3))) -> 11881.07226 | J87: 118810.7226 | K87: =IF(C87=0,"NA",VLOOKUP(proc_valve_size,ci_mov_cost_cl,IF(ss_cat="large",4,5))) -> 25 | L87: 0 | M87: Motor/Air Operated (on/off) Valves - Process - Cast Iron | N87: 2 | O87: 1 | P87: 2 | Q87: 2 | R87: 1 | S87: 2 | T87: 2 | U87: 1 | V87: 2 | W87: 0 | X87: 0
A88: 4.1.2 | B88: Hydrogen Peroxide Line - Polypropylene/PVC | C88: =IF(H2O2_used,tot_acid_MOVs,0) -> 5 | D88: units | E88: =IF(C88=0,"NA",acid_valve_size) -> 0.5 | F88: in. diam | G88: =IF(C88=0,"NA",IF(curve=1,acid_valve_size,VLOOKUP(acid_valve_size,pp_mov_cost_cl,2))) -> 0.5 | H88: in. diam | I88: =IF(C88=0,"NA",IF(curve=1,pp_mov_eq_acid,VLOOKUP(acid_valve_size,pp_mov_cost_cl,3))) -> 656.0631953 | J88: 3280.315977 | K88: =IF(C88=0,"NA",VLOOKUP(E88,pp_mov_cost_cl,IF(ss_cat="large",4,5))) -> 25 | L88: 1 | M88: Motor/Air Operated (on/off) Valves - Hydrogen Peroxide Line - Polypropylene/PVC | N88: 1 | O88: 2 | P88: 2 | Q88: 1 | R88: 2 | S88: 2 | T88: 1 | U88: 2 | V88: 2 | W88: 1 | X88: 131.2126391
A89: 4.1.2 | B89: Hydrogen Peroxide Line - Stainless Steel | C89: =IF(H2O2_used,tot_acid_MOVs,0) -> 5 | D89: units | E89: =IF(C89=0,"NA",acid_valve_size) -> 0.5 | F89: in. diam | G89: =IF(C89=0,"NA",IF(curve=1,acid_valve_size,VLOOKUP(acid_valve_size,ss_mov_cost_cl,2))) -> 0.5 | H89: in. diam | I89: =IF(C89=0,"NA",IF(curve=1,ss_mov_eq_acid,VLOOKUP(acid_valve_size,ss_mov_cost_cl,3))) -> 1419.488948 | J89: 7097.444738 | K89: =IF(C89=0,"NA",VLOOKUP(E89,ss_mov_cost_cl,IF(ss_cat="large",4,5))) -> 25 | L89: 0 | M89: Motor/Air Operated (on/off) Valves - Hydrogen Peroxide Line - Stainless Steel | N89: 2 | O89: 1 | P89: 1 | Q89: 2 | R89: 1 | S89: 1 | T89: 2 | U89: 1 | V89: 1 | W89: 0 | X89: 0
A90: 4.1.3 | B90: Sodium Hypochlorite Line - Polypropylene/PVC | C90: =IF(Cl2_used,tot_acid_MOVs,0) -> 0 | D90: units | E90: =IF(C90=0,"NA",acid_valve_size) -> NA | G90: =IF(C90=0,"NA",IF(curve=1,acid_valve_size,VLOOKUP(acid_valve_size,pp_mov_cost_cl,2))) -> NA | I90: =IF(C90=0,"NA",IF(curve=1,pp_mov_eq_acid,VLOOKUP(acid_valve_size,pp_mov_cost_cl,3))) -> NA | J90: -- | K90: =IF(C90=0,"NA",VLOOKUP(E90,pp_mov_cost_cl,IF(ss_cat="large",4,5))) -> NA | M90: Motor/Air Operated (on/off) Valves - Sodium Hypochlorite Line - Polypropylene/PVC | N90: 1 | O90: 1 | P90: 1 | Q90: 1 | R90: 1 | S90: 1 | T90: 1 | U90: 1 | V90: 1 | W90: =IF(ISERROR(K90*L90),0,IF(K90<1,0,L90)) -> 0 | X90: =IF(W90,J90/K90,0) -> 0
A91: 4.2 | B91: Manual | W91: 0 | X91: 0
A92: 4.2.1 | B92: Influent and Treated Water - Polypropylene/PVC | C92: =tot_man_valves -> 2 | D92: units | E92: =IF(C92=0,"NA",in_valve_size) -> 10 | F92: =IF(C92=0,"","in. diam") -> in. diam | G92: =IF(C92=0,"NA",IF(curve=1,in_valve_size,VLOOKUP(in_valve_size,pp_man_cost_cl,2))) -> 10 | H92: =IF(C92=0,"","in. diam") -> in. diam | I92: =IF(C92=0,"NA",IF(curve=1,pp_man_eq,VLOOKUP(in_valve_size,pp_man_cost_cl,3))) -> 1775.357092 | J92: =IF(OR(I92="NA",I92="contact vendor"),"--",C92*I92) -> 3550.714185 | K92: =IF(C92=0,"NA",VLOOKUP(in_valve_size,pp_man_cost_cl,IF(ss_cat="large",4,5))) -> 25 | L92: 1 | M92: =$B$91&" "&$B$83&" - "&B92 -> Manual Valves - Influent and Treated Water - Polypropylene/PVC | N92: 1 | O92: 2 | P92: 3 | Q92: 1 | R92: 2 | S92: 3 | T92: 2 | U92: 1 | V92: 2 | W92: 1 | X92: 142.0285674
A93: 4.2.1 | B93: Influent and Treated Water - Stainless Steel | C93: =tot_man_valves -> 2 | D93: units | E93: =IF(C93=0,"NA",in_valve_size) -> 10 | F93: =IF(C93=0,"","in. diam") -> in. diam | G93: =IF(C93=0,"NA",IF(curve=1,in_valve_size,VLOOKUP(in_valve_size,ss_man_cost_cl,2))) -> 10 | H93: =IF(C93=0,"","in. diam") -> in. diam | I93: =IF(C93=0,"NA",IF(curve=1,ss_man_eq,VLOOKUP(in_valve_size,ss_man_cost_cl,3))) -> 2292.588843 | J93: 4585.177686 | K93: =IF(C93=0,"NA",VLOOKUP(in_valve_size,ss_man_cost_cl,IF(ss_cat="large",4,5))) -> 25 | L93: 0 | M93: Manual Valves - Influent and Treated Water - Stainless Steel | N93: 3 | O93: 3 | P93: 1 | Q93: 3 | R93: 3 | S93: 1 | T93: 3 | U93: 3 | V93: 1 | W93: 0 | X93: 0
A94: 4.2.1 | B94: Influent and Treated Water - Cast Iron | C94: =tot_man_valves -> 2 | D94: units | E94: =IF(C94=0,"NA",in_valve_size) -> 10 | F94: =IF(C94=0,"","in. diam") -> in. diam | G94: =IF(C94=0,"NA",IF(curve=1,in_valve_size,VLOOKUP(in_valve_size,ci_bfv_cost_cl,2))) -> 10 | H94: =IF(C94=0,"","in. diam") -> in. diam | I94: =IF(C94=0,"NA",IF(curve=1,ci_bfv_eq,VLOOKUP(in_valve_size,ci_bfv_cost_cl,3))) -> 2467.667392 | J94: 4935.334783 | K94: =IF(C94=0,"NA",VLOOKUP(in_valve_size,ci_bfv_cost_cl,IF(ss_cat="large",4,5))) -> 25 | L94: 0 | M94: Manual Valves - Influent and Treated Water - Cast Iron | N94: 2 | O94: 1 | P94: 2 | Q94: 2 | R94: 1 | S94: 2 | T94: 1 | U94: 2 | V94: 3 | W94: 0 | X94: 0
A95: 4.2.2 | B95: Process - Polypropylene/PVC | C95: =tot_proc_man -> 9 | D95: units | E95: =proc_valve_size -> 10 | F95: in. diam | G95: =IF(curve=1,proc_valve_size,VLOOKUP(proc_valve_size,pp_man_cost_cl,2)) -> 10 | H95: in. diam | I95: =IF(C95=0,"NA",IF(curve=1,pp_man_eq_main,VLOOKUP(proc_valve_size,pp_man_cost_cl,3))) -> 1775.357092 | J95: 15978.21383 | K95: =IF(C95=0,"NA",VLOOKUP(E95,pp_man_cost_cl,IF(ss_cat="large",4,5))) -> 25 | L95: 1 | M95: Manual Valves - Process - Polypropylene/PVC | N95: 1 | O95: 2 | P95: 3 | Q95: 1 | R95: 2 | S95: 3 | T95: 1 | U95: 2 | V95: 3 | W95: 1 | X95: 639.1285532
A96: 4.2.2 | B96: Process - Stainless Steel | C96: =tot_proc_man -> 9 | D96: units | E96: =proc_valve_size -> 10 | F96: in. diam | G96: =IF(curve=1,proc_valve_size,VLOOKUP(proc_valve_size,ss_man_cost_cl,2)) -> 10 | H96: in. diam | I96: =IF(C96=0,"NA",IF(curve=1,ss_man_eq_main,VLOOKUP(proc_valve_size,ss_man_cost_cl,3))) -> 2292.588843 | J96: 20633.29959 | K96: =IF(C96=0,"NA",VLOOKUP(E96,ss_man_cost_cl,IF(ss_cat="large",4,5))) -> 25 | L96: 0 | M96: Manual Valves - Process - Stainless Steel | N96: 3 | O96: 3 | P96: 1 | Q96: 3 | R96: 3 | S96: 1 | T96: 3 | U96: 3 | V96: 1 | W96: 0 | X96: 0
A97: 4.2.2 | B97: Process - Cast Iron | C97: =tot_proc_man -> 9 | D97: units | E97: =proc_valve_size -> 10 | F97: in. diam | G97: =IF(curve=1,proc_valve_size,VLOOKUP(proc_valve_size,ci_bfv_cost_cl,2)) -> 10 | H97: in. diam | I97: =IF(C97=0,"NA",IF(curve=1,ci_bfv_eq_main,VLOOKUP(proc_valve_size,ci_bfv_cost_cl,3))) -> 2467.667392 | J97: 22209.00653 | K97: =IF(C97=0,"NA",VLOOKUP(E97,ci_bfv_cost_cl,IF(ss_cat="large",4,5))) -> 25 | L97: 0 | M97: Manual Valves - Process - Cast Iron | N97: 2 | O97: 1 | P97: 2 | Q97: 2 | R97: 1 | S97: 2 | T97: 2 | U97: 1 | V97: 2 | W97: 0 | X97: 0
A98: 4.2.3 | B98: Drain - Polypropylene/PVC | C98: =tot_drain_valves -> 9 | D98: units | E98: =drain_valve_size -> 1.5 | F98: in. diam | G98: =IF(curve=1,drain_valve_size,VLOOKUP(drain_valve_size,pp_man_cost_cl,2)) -> 1.5 | H98: in. diam | I98: =IF(curve=1,pp_man_eq_drain,VLOOKUP(drain_valve_size,pp_man_cost_cl,3)) -> 207.8491463 | J98: 1870.642317 | K98: =VLOOKUP(drain_valve_size,pp_man_cost_cl,IF(ss_cat="large",4,5)) -> 25 | L98: 1 | M98: Manual Valves - Drain - Polypropylene/PVC | N98: 1 | O98: 2 | P98: 3 | Q98: 1 | R98: 2 | S98: 3 | T98: 1 | U98: 2 | V98: 3 | W98: 1 | X98: 74.82569268
A99: 4.2.3 | B99: Drain - Stainless Steel | C99: =tot_drain_valves -> 9 | D99: units | E99: =drain_valve_size -> 1.5 | F99: in. diam | G99: =IF(curve=1,drain_valve_size,VLOOKUP(drain_valve_size,ss_man_cost_cl,2)) -> 1.5 | H99: in. diam | I99: =IF(curve=1,ss_man_eq_drain,VLOOKUP(drain_valve_size,ss_man_cost_cl,3)) -> 395.8808732 | J99: 3562.927859 | K99: =VLOOKUP(drain_valve_size,ss_man_cost_cl,IF(ss_cat="large",4,5)) -> 25 | L99: 0 | M99: Manual Valves - Drain - Stainless Steel | N99: 3 | O99: 3 | P99: 1 | Q99: 3 | R99: 3 | S99: 1 | T99: 3 | U99: 3 | V99: 1 | W99: 0 | X99: 0
A100: 4.2.3 | B100: Drain - Cast Iron | C100: =tot_drain_valves -> 9 | D100: units | E100: =drain_valve_size -> 1.5 | F100: in. diam | G100: =IF(curve=1,drain_valve_size,VLOOKUP(drain_valve_size,ci_bfv_cost_cl,2)) -> 1.5 | H100: in. diam | I100: =IF(curve=1,ci_bfv_eq_drain,VLOOKUP(drain_valve_size,ci_bfv_cost_cl,3)) -> 338.9786776 | J100: 3050.808098 | K100: =VLOOKUP(drain_valve_size,ci_bfv_cost_cl,IF(ss_cat="large",4,5)) -> 25 | L100: 0 | M100: Manual Valves - Drain - Cast Iron | N100: 2 | O100: 1 | P100: 2 | Q100: 2 | R100: 1 | S100: 2 | T100: 2 | U100: 1 | V100: 2 | W100: 0 | X100: 0
A101: 4.2.4 | B101: Hydrogen Peroxide Line - Polypropylene/PVC | C101: =IF(H2O2_used,tot_acid_man,0) -> 0 | D101: units | E101: =IF(C101=0,"NA",acid_valve_size) -> NA | F101: =IF(C101=0,"","in. diam") ->  | G101: =IF(C101=0,"NA",IF(curve=1,acid_valve_size,VLOOKUP(acid_valve_size,pp_man_cost_cl,2))) -> NA | H101: =IF(C101=0,"","in. diam") ->  | I101: =IF(C101=0,"NA",IF(curve=1,ss_man_eq_acid,VLOOKUP(acid_valve_size,pp_man_cost_cl,3))) -> NA | J101: -- | K101: =IF(C101=0,"NA",VLOOKUP(E101,pp_man_cost_cl,IF(ss_cat="large",4,5))) -> NA | M101: Manual Valves - Hydrogen Peroxide Line - Polypropylene/PVC | N101: 1 | O101: 2 | P101: 2 | Q101: 1 | R101: 2 | S101: 2 | T101: 1 | U101: 2 | V101: 2 | W101: 0 | X101: 0
A102: 4.2.4 | B102: Hydrogen Peroxide Line - Stainless Steel | C102: =IF(H2O2_used,tot_acid_man,0) -> 0 | D102: units | E102: =IF(C102=0,"NA",acid_valve_size) -> NA | F102: =IF(C102=0,"","in. diam") ->  | G102: =IF(C102=0,"NA",IF(curve=1,acid_valve_size,VLOOKUP(acid_valve_size,ss_man_cost_cl,2))) -> NA | H102: =IF(C102=0,"","in. diam") ->  | I102: =IF(C102=0,"NA",IF(curve=1,pp_man_eq_acid,VLOOKUP(acid_valve_size,ss_man_cost_cl,3))) -> NA | J102: -- | K102: =IF(C102=0,"NA",VLOOKUP(E102,ss_man_cost_cl,IF(ss_cat="large",4,5))) -> NA | M102: Manual Valves - Hydrogen Peroxide Line - Stainless Steel | N102: 2 | O102: 1 | P102: 1 | Q102: 2 | R102: 1 | S102: 1 | T102: 2 | U102: 1 | V102: 1 | W102: 0 | X102: 0
A103: 4.2.5 | B103: Sodium Hypochlorite Line - Polypropylene/PVC | C103: =IF(Cl2_used,tot_acid_man,0) -> 0 | D103: units | E103: =IF(C103=0,"NA",acid_valve_size) -> NA | F103: =IF(C103=0,"","in. diam") ->  | G103: =IF(C103=0,"NA",IF(curve=1,acid_valve_size,VLOOKUP(acid_valve_size,pp_man_cost_cl,2))) -> NA | H103: =IF(C103=0,"","in. diam") ->  | I103: =IF(C103=0,"NA",IF(curve=1,ss_man_eq_acid,VLOOKUP(acid_valve_size,pp_man_cost_cl,3))) -> NA | J103: -- | K103: =IF(C103=0,"NA",VLOOKUP(E103,pp_man_cost_cl,IF(ss_cat="large",4,5))) -> NA | M103: =$B$91&" "&$B$83&" - "&B103 -> Manual Valves - Sodium Hypochlorite Line - Polypropylene/PVC | N103: 2 | O103: 1 | P103: 1 | Q103: 2 | R103: 1 | S103: 1 | T103: 2 | U103: 1 | V103: 1 | W103: =IF(ISERROR(K103*L103),0,IF(K103<1,0,L103)) -> 0 | X103: =IF(W103,J103/K103,0) -> 0
A104: 4.3 | B104: Check Valves | W104: 0 | X104: 0
A105: 4.3.1 | B105: Process - Polypropylene/PVC | C105: =tot_check_valve -> 0 | D105: units | E105: =IF(C105=0,"NA",check_valve_size) -> NA | F105: =IF(C105=0,"","in. diam") ->  | G105: =IF(C105=0,"NA",IF(curve=1,check_valve_size,VLOOKUP(check_valve_size,pp_chv_cost_cl,2))) -> NA | H105: =IF(C105=0,"","in. diam") ->  | I105: =IF(C105=0,"NA",IF(curve=1,pp_chv_eq,VLOOKUP(check_valve_size,pp_chv_cost_cl,3))) -> NA | J105: =IF(OR(I105="NA",I105="contact vendor"),"--",C105*I105) -> -- | K105: =IF(C105=0,"NA",VLOOKUP(check_valve_size,pp_chv_cost_cl,IF(ss_cat="large",4,5))) -> NA | M105: =$B$104&" - "&B105 -> Check Valves - Process - Polypropylene/PVC | N105: 1 | O105: 2 | P105: 3 | Q105: 1 | R105: 2 | S105: 3 | T105: 1 | U105: 2 | V105: 3 | W105: 0 | X105: 0
A106: 4.3.1 | B106: Process - Stainless Steel | C106: =tot_check_valve -> 0 | D106: units | E106: =IF(C106=0,"NA",check_valve_size) -> NA | G106: =IF(C106=0,"NA",IF(curve=1,check_valve_size,VLOOKUP(check_valve_size,ss_chv_cost_cl,2))) -> NA | I106: =IF(C106=0,"NA",IF(curve=1,ss_chv_eq,VLOOKUP(check_valve_size,ss_chv_cost_cl,3))) -> NA | J106: -- | K106: =IF(C106=0,"NA",VLOOKUP(check_valve_size,ss_chv_cost_cl,IF(ss_cat="large",4,5))) -> NA | M106: Check Valves - Process - Stainless Steel | N106: 3 | O106: 3 | P106: 1 | Q106: 3 | R106: 3 | S106: 1 | T106: 3 | U106: 3 | V106: 1 | W106: 0 | X106: 0
A107: 4.3.1 | B107: Process - Cast Iron | C107: =tot_check_valve -> 0 | D107: units | E107: =IF(C107=0,"NA",check_valve_size) -> NA | G107: =IF(C107=0,"NA",IF(curve=1,check_valve_size,VLOOKUP(check_valve_size,ci_chv_cost_cl,2))) -> NA | I107: =IF(C107=0,"NA",IF(curve=1,ci_chv_eq,VLOOKUP(check_valve_size,ci_chv_cost_cl,3))) -> NA | J107: -- | K107: =IF(C107=0,"NA",VLOOKUP(check_valve_size,ci_chv_cost_cl,IF(ss_cat="large",4,5))) -> NA | M107: Check Valves - Process - Cast Iron | N107: 2 | O107: 1 | P107: 2 | Q107: 2 | R107: 1 | S107: 2 | T107: 2 | U107: 1 | V107: 2 | W107: 0 | X107: 0
A108: 4.3.2 | B108: Hydrogen Peroxide Line - Polypropylene/PVC | C108: =IF(H2O2_used,tot_acid_chv,0) -> 4 | D108: units | E108: =IF(C108=0,"NA",acid_valve_size) -> 0.5 | F108: in. diam | G108: =IF(C108=0,"NA",IF(curve=1,acid_valve_size,VLOOKUP(acid_valve_size,pp_chv_cost_cl,2))) -> 0.5 | H108: in. diam | I108: =IF(C108=0,"NA",IF(curve=1,pp_chv_eq_acid,VLOOKUP(acid_valve_size,pp_chv_cost_cl,3))) -> 76.11900968 | J108: 304.4760387 | K108: =IF(C108=0,"NA",VLOOKUP(acid_valve_size,pp_chv_cost_cl,IF(ss_cat="large",4,5))) -> 25 | L108: 1 | M108: Check Valves - Hydrogen Peroxide Line - Polypropylene/PVC | N108: 1 | O108: 1 | P108: 2 | Q108: 1 | R108: 1 | S108: 2 | T108: 1 | U108: 1 | V108: 2 | W108: 1 | X108: 12.17904155
A109: 4.3.2 | B109: Hydrogen Peroxide Line - Stainless Steel | C109: =IF(H2O2_used,tot_acid_chv,0) -> 4 | D109: units | E109: =IF(C109=0,"NA",acid_valve_size) -> 0.5 | F109: in. diam | G109: =IF(C109=0,"NA",IF(curve=1,acid_valve_size,VLOOKUP(acid_valve_size,ss_chv_cost_cl,2))) -> 0.5 | H109: in. diam | I109: =IF(C109=0,"NA",IF(curve=1,ss_chv_eq_acid,VLOOKUP(acid_valve_size,ss_chv_cost_cl,3))) -> 218.4037498 | J109: 873.614999 | K109: =IF(C109=0,"NA",VLOOKUP(acid_valve_size,ss_chv_cost_cl,IF(ss_cat="large",4,5))) -> 25 | L109: 0 | M109: Check Valves - Hydrogen Peroxide Line - Stainless Steel | N109: 2 | O109: 2 | P109: 1 | Q109: 2 | R109: 2 | S109: 1 | T109: 2 | U109: 2 | V109: 1 | W109: =IF(ISERROR(K109*L109),0,IF(K109<1,0,L109)) -> 0 | X109: =IF(W109,J109/K109,0) -> 0
A110: 4.3.3 | B110: Sodium Hypochlorite Line - Polypropylene/PVC | C110: =IF(Cl2_used,tot_acid_chv,0) -> 0 | D110: units | E110: =IF(C110=0,"NA",acid_valve_size) -> NA | G110: =IF(C110=0,"NA",IF(curve=1,acid_valve_size,VLOOKUP(acid_valve_size,pp_chv_cost_cl,2))) -> NA | I110: =IF(C110=0,"NA",IF(curve=1,pp_chv_eq_acid,VLOOKUP(acid_valve_size,pp_chv_cost_cl,3))) -> NA | J110: -- | K110: =IF(C110=0,"NA",VLOOKUP(acid_valve_size,pp_chv_cost_cl,IF(ss_cat="large",4,5))) -> NA | M110: Check Valves - Sodium Hypochlorite Line - Polypropylene/PVC | N110: 1 | O110: 1 | P110: 1 | Q110: 1 | R110: 1 | S110: 1 | T110: 1 | U110: 1 | V110: 1 | W110: =IF(ISERROR(K110*L110),0,IF(K110<1,0,L110)) -> 0 | X110: =IF(W110,J110/K110,0) -> 0
A111: 5 | B111: Pumps | W111: 0 | X111: 0
A112: 5.1 | B112: Booster Pumps | C112: =total_booster_pumps -> 0 | D112: units | E112: =IF(C112=0,"NA",pump_rating) -> NA | F112: =IF(C112=0,"","gpm") ->  | G112: =IF(C112=0,"NA",IF(curve=1,pump_rating,VLOOKUP(pump_rating,pump_cost_cl,2))) -> NA | H112: =IF(C112=0,"","gpm") ->  | I112: =IF(C112=0,"NA",IF(curve=1,pump_eq,VLOOKUP(pump_rating,pump_cost_cl,3))) -> NA | J112: =IF(OR(I112="NA",I112="contact vendor"),"--",C112*I112) -> -- | K112: =IF(C112=0,"NA",VLOOKUP(pump_rating,pump_cost_cl,IF(ss_cat="large",4,5))) -> NA | M112: =B112 -> Booster Pumps | N112: 1 | O112: 1 | P112: 1 | Q112: 1 | R112: 1 | S112: 1 | T112: 1 | U112: 1 | V112: 1 | W112: 0 | X112: 0
A113: 5.2 | B113: Hydrogen Peroxide Metering Pumps | W113: =IF(ISERROR(K113*L113),0,IF(K113<1,0,L113)) -> 0 | X113: =IF(W113,J113/K113,0) -> 0
A114: 5.2.1 | B114: PVC - Motor Driven | C114: =IF(H2O2_used,acid_pumps,0) -> 2 | D114: units | E114: =IF(C114=0,"NA",acid_pump_rating) -> 1.883753501 | F114: =IF(C114=0,"","gph") -> gph | G114: =IF(C114=0,"NA",IF(curve=1,acid_pump_rating,VLOOKUP(acid_pump_rating,pvc_mmpump_cost_cl,2))) -> 1.883753501 | H114: =IF(C114=0,"","gph") -> gph | I114: =IF(C114=0,"NA",IF(curve=1,pvc_mmpump_eq_acid,VLOOKUP(acid_pump_rating,pvc_mmpump_cost_cl,3))) -> 3110.189731 | J114: =IF(OR(I114="NA",I114="contact vendor"),"--",C114*I114) -> 6220.379462 | K114: =IF(C114=0,"NA",VLOOKUP(acid_pump_rating,pvc_mmpump_cost_cl,IF(ss_cat="large",4,5))) -> 20 | L114: 0 | M114: =$B$113&" - "&B114 -> Hydrogen Peroxide Metering Pumps - PVC - Motor Driven | N114: 3 | O114: 3 | P114: 2 | Q114: 3 | R114: 4 | S114: 1 | T114: 4 | U114: 4 | V114: 1 | W114: 0 | X114: 0
A115: 5.2.1 | B115: Stainless Steel - Motor Driven | C115: =IF(H2O2_used,acid_pumps,0) -> 2 | D115: units | E115: =IF(C115=0,"NA",acid_pump_rating) -> 1.883753501 | F115: =IF(C115=0,"","gph") -> gph | G115: =IF(C115=0,"NA",IF(curve=1,acid_pump_rating,VLOOKUP(acid_pump_rating,ss_mmpump_cost_cl,2))) -> 1.883753501 | H115: =IF(C115=0,"","gph") -> gph | I115: =IF(C115=0,"NA",IF(curve=1,ss_mmpump_eq_acid,VLOOKUP(acid_pump_rating,ss_mmpump_cost_cl,3))) -> 3544.872649 | J115: =IF(OR(I115="NA",I115="contact vendor"),"--",C115*I115) -> 7089.745299 | K115: =IF(C115=0,"NA",VLOOKUP(acid_pump_rating,ss_mmpump_cost_cl,IF(ss_cat="large",4,5))) -> 20 | L115: 0 | M115: =$B$113&" - "&B115 -> Hydrogen Peroxide Metering Pumps - Stainless Steel - Motor Driven | N115: 4 | O115: 4 | P115: 1 | Q115: 4 | R115: 3 | S115: 2 | T115: 3 | U115: 3 | V115: 2 | W115: 0 | X115: 0
A116: 5.2.1 | B116: PVC - Electric | C116: =IF(H2O2_used,acid_pumps,0) -> 2 | D116: units | E116: =IF(C116=0,"NA",acid_pump_rating) -> 1.883753501 | F116: =IF(C116=0,"","gph") -> gph | G116: =IF(C116=0,"NA",IF(curve=1,acid_pump_rating,VLOOKUP(acid_pump_rating,pvc_empump_cost_cl,2))) -> 1.883753501 | H116: =IF(C116=0,"","gph") -> gph | I116: =IF(C116=0,"NA",IF(curve=1,pvc_empump_eq_acid,VLOOKUP(acid_pump_rating,pvc_empump_cost_cl,3))) -> 1272.667875 | J116: =IF(OR(I116="NA",I116="contact vendor"),"--",C116*I116) -> 2545.335751 | K116: =IF(C116=0,"NA",VLOOKUP(acid_pump_rating,pvc_empump_cost_cl,IF(ss_cat="large",4,5))) -> 20 | L116: 1 | M116: =$B$113&" - "&B116 -> Hydrogen Peroxide Metering Pumps - PVC - Electric | N116: 1 | O116: 2 | P116: 4 | Q116: 1 | R116: 2 | S116: 4 | T116: 1 | U116: 2 | V116: 4 | W116: 1 | X116: 127.2667875
A117: 5.2.1 | B117: Stainless Steel - Electric | C117: =IF(H2O2_used,acid_pumps,0) -> 2 | D117: units | E117: =IF(C117=0,"NA",acid_pump_rating) -> 1.883753501 | F117: =IF(C117=0,"","gph") -> gph | G117: =IF(C117=0,"NA",IF(curve=1,acid_pump_rating,VLOOKUP(acid_pump_rating,ss_empump_cost_cl,2))) -> 1.883753501 | H117: =IF(C117=0,"","gph") -> gph | I117: =IF(C117=0,"NA",IF(curve=1,ss_empump_eq_acid,VLOOKUP(acid_pump_rating,ss_empump_cost_cl,3))) -> 2521.274877 | J117: =IF(OR(I117="NA",I117="contact vendor"),"--",C117*I117) -> 5042.549755 | K117: =IF(C117=0,"NA",VLOOKUP(acid_pump_rating,ss_empump_cost_cl,IF(ss_cat="large",4,5))) -> 20 | L117: 0 | M117: =$B$113&" - "&B117 -> Hydrogen Peroxide Metering Pumps - Stainless Steel - Electric | N117: 2 | O117: 1 | P117: 3 | Q117: 2 | R117: 1 | S117: 3 | T117: 2 | U117: 1 | V117: 3 | W117: 0 | X117: 0
A118: 5.3 | B118: Sodium Hypochlorite Metering Pumps | W118: 0 | X118: 0
A119: 5.3.1 | B119: PVC - Motor Driven | C119: =IF(Cl2_used,acid_pumps,0) -> 0 | D119: units | E119: =IF(C119=0,"NA",acid_pump_rating) -> NA | F119: =IF(C119=0,"","gph") ->  | G119: =IF(C119=0,"NA",IF(curve=1,acid_pump_rating,VLOOKUP(acid_pump_rating,pvc_mmpump_cost_cl,2))) -> NA | H119: =IF(C119=0,"","gph") ->  | I119: =IF(C119=0,"NA",IF(curve=1,pvc_mmpump_eq_acid,VLOOKUP(acid_pump_rating,pvc_mmpump_cost_cl,3))) -> NA | J119: =IF(OR(I119="NA",I119="contact vendor"),"--",C119*I119) -> -- | K119: =IF(C119=0,"NA",VLOOKUP(acid_pump_rating,pvc_mmpump_cost_cl,IF(ss_cat="large",4,5))) -> NA | M119: =$B$118&" - "&B119 -> Sodium Hypochlorite Metering Pumps - PVC - Motor Driven | N119: 1 | O119: 2 | P119: 2 | Q119: 1 | R119: 2 | S119: 2 | T119: 1 | U119: 2 | V119: 2 | W119: 0 | X119: 0
A120: 5.3.1 | B120: PVC - Electric | C120: =IF(Cl2_used,acid_pumps,0) -> 0 | D120: units | E120: =IF(C120=0,"NA",acid_pump_rating) -> NA | F120: =IF(C120=0,"","gph") ->  | G120: =IF(C120=0,"NA",IF(curve=1,acid_pump_rating,VLOOKUP(acid_pump_rating,pvc_empump_cost_cl,2))) -> NA | H120: =IF(C120=0,"","gph") ->  | I120: =IF(C120=0,"NA",IF(curve=1,pvc_empump_eq_acid,VLOOKUP(acid_pump_rating,pvc_empump_cost_cl,3))) -> NA | J120: =IF(OR(I120="NA",I120="contact vendor"),"--",C120*I120) -> -- | K120: =IF(C120=0,"NA",VLOOKUP(acid_pump_rating,pvc_empump_cost_cl,IF(ss_cat="large",4,5))) -> NA | M120: =$B$118&" - "&B120 -> Sodium Hypochlorite Metering Pumps - PVC - Electric | N120: 2 | O120: 1 | P120: 1 | Q120: 2 | R120: 1 | S120: 1 | T120: 2 | U120: 1 | V120: 1 | W120: 0 | X120: 0
A121: 6 | B121: Mixers | W121: 0 | X121: 0
A122: 6.1 | B122: Static Mixer for Hydrogen Peroxide | W122: 0 | X122: 0
A123: 6.1.1 | B123: Plastic | C123: =IF(H2O2_used,n_mixers,0) -> 0 | D123: units | E123: =IF(C123=0,"NA",mixer_size) -> NA | F123: =IF(C123=0,"","in. diam") ->  | G123: =IF(C123=0,"NA",IF(curve=1,mixer_size,VLOOKUP(mixer_size,pl_in_mix_cost_cl,2))) -> NA | H123: =IF(C123=0,"","in. diam") ->  | I123: =IF(C123=0,"NA",IF(curve=1,pl_in_mix_eq,VLOOKUP(mixer_size,pl_in_mix_cost_cl,3))) -> NA | J123: =IF(OR(I123="NA",I123="contact vendor"),"--",C123*I123) -> -- | K123: =VLOOKUP(mixer_size,pl_in_mix_cost_cl,IF(ss_cat="large",4,5)) -> 25 | M123: =$B$122&" - "&B123 -> Static Mixer for Hydrogen Peroxide - Plastic | N123: 1 | O123: 2 | P123: 2 | Q123: 1 | R123: 2 | S123: 2 | T123: 1 | U123: 2 | V123: 2 | W123: 0 | X123: 0
A124: 6.1.1 | B124: Stainless Steel | C124: =IF(H2O2_used,n_mixers,0) -> 0 | D124: units | E124: =IF(C124=0,"NA",mixer_size) -> NA | F124: =IF(C124=0,"","in. diam") ->  | G124: =IF(C124=0,"NA",IF(curve=1,mixer_size,VLOOKUP(mixer_size,in_mix_cost_cl,2))) -> NA | H124: =IF(C124=0,"","in. diam") ->  | I124: =IF(C124=0,"NA",IF(curve=1,in_mix_eq,VLOOKUP(mixer_size,in_mix_cost_cl,3))) -> NA | J124: =IF(OR(I124="NA",I124="contact vendor"),"--",C124*I124) -> -- | K124: =VLOOKUP(mixer_size,in_mix_cost_cl,IF(ss_cat="large",4,5)) -> 25 | M124: =$B$122&" - "&B124 -> Static Mixer for Hydrogen Peroxide - Stainless Steel | N124: 2 | O124: 1 | P124: 1 | Q124: 2 | R124: 1 | S124: 1 | T124: 2 | U124: 1 | V124: 1 | W124: 0 | X124: 0
A125: 6.2 | B125: Pipe Diffusers for Sodium Hypochlorite | C125: =IF(Cl2_used,n_mixers,0) -> 0 | D125: units | E125: =IF(C125=0,"NA",mixer_size) -> NA | F125: =IF(C125=0,"","in. diam") ->  | G125: =IF(C125=0,"NA",IF(curve=1,mixer_size,VLOOKUP(mixer_size,pipediffuser_cost_cl,2))) -> NA | H125: =IF(C125=0,"","in. diam") ->  | I125: =IF(C125=0,"NA",IF(curve=1,pipediffuser_eq,VLOOKUP(mixer_size,pipediffuser_cost_cl,3))) -> NA | J125: =IF(OR(I125="NA",I125="contact vendor"),"--",C125*I125) -> -- | K125: =VLOOKUP(mixer_size,pipediffuser_cost_cl,IF(ss_cat="large",4,5)) -> 25 | M125: =B125 -> Pipe Diffusers for Sodium Hypochlorite | N125: 1 | O125: 1 | P125: 1 | Q125: 1 | R125: 1 | S125: 1 | T125: 1 | U125: 1 | V125: 1 | W125: 0 | X125: 0
A126: 6.3 | B126: Mixers for Oxidant Storage Tanks | W126: 0 | X126: 0
A127: 6.3.1 | B127: Portable | C127: =cmixers -> 0 | D127: units | E127: =IF(C127=0,"NA",cmix_size) -> NA | F127: =IF(C127=0,"","hp") ->  | G127: =IF(C127=0,"NA",VLOOKUP(cmix_size,port_mix_cost_cl,2)) -> NA | H127: =IF(C127=0,"","hp") ->  | I127: =IF(C127=0,"NA",VLOOKUP(cmix_size,port_mix_cost_cl,3)) -> NA | J127: =IF(OR(I127="NA",I127="contact vendor"),"--",C127*I127) -> -- | K127: =IF(C127=0,"NA",VLOOKUP(cmix_size,port_mix_cost_cl,IF(ss_cat="large",4,5))) -> NA | M127: =$B$126&" - "&B127 -> Mixers for Oxidant Storage Tanks - Portable | N127: 3 | O127: 3 | P127: 3 | Q127: 3 | R127: 3 | S127: 3 | T127: 3 | U127: 3 | V127: 3 | W127: 0 | X127: 0
A128: 6.3.1 | B128: Mounted | C128: =cmixers -> 0 | D128: units | E128: =IF(C128=0,"NA",cmix_size) -> NA | F128: =IF(C128=0,"","hp") ->  | G128: =IF(C128=0,"NA",IF(curve=1,cmix_size,VLOOKUP(cmix_size,mount_mix_cost_cl,2))) -> NA | H128: =IF(C128=0,"","hp") ->  | I128: =IF(C128=0,"NA",IF(curve=1,cmount_mix_eq,VLOOKUP(cmix_size,mount_mix_cost_cl,3))) -> NA | J128: =IF(OR(I128="NA",I128="contact vendor"),"--",C128*I128) -> -- | K128: =IF(C128=0,"NA",VLOOKUP(cmix_size,mount_mix_cost_cl,IF(ss_cat="large",4,5))) -> NA | M128: =$B$126&" - "&B128 -> Mixers for Oxidant Storage Tanks - Mounted | N128: 1 | O128: 1 | P128: 1 | Q128: 1 | R128: 1 | S128: 1 | T128: 1 | U128: 1 | V128: 1 | W128: 0 | X128: 0
A129: 6.3.1 | B129: Impeller | C129: =cmixers -> 0 | D129: units | E129: =IF(C129=0,"NA",cmix_size) -> NA | F129: =IF(C129=0,"","hp") ->  | G129: =IF(C129=0,"NA",IF(curve=1,cmix_size,VLOOKUP(cmix_size,imp_mix_cost_cl,2))) -> NA | H129: =IF(C129=0,"","hp") ->  | I129: =IF(C129=0,"NA",IF(curve=1,cimp_mix_eq,VLOOKUP(cmix_size,imp_mix_cost_cl,3))) -> NA | J129: =IF(OR(I129="NA",I129="contact vendor"),"--",C129*I129) -> -- | K129: =IF(C129=0,"NA",VLOOKUP(cmix_size,imp_mix_cost_cl,IF(ss_cat="large",4,5))) -> NA | M129: =$B$126&" - "&B129 -> Mixers for Oxidant Storage Tanks - Impeller | N129: 2 | O129: 2 | P129: 2 | Q129: 2 | R129: 2 | S129: 2 | T129: 2 | U129: 2 | V129: 2 | W129: 0 | X129: 0
A130: 6.4 | B130: Mixers for Oxidant Day Tanks
A131: 6.4.1 | B131: Portable | C131: =dmixers -> 0 | D131: units | E131: =IF(C131=0,"NA",dmix_size) -> NA | F131: =IF(C131=0,"","hp") ->  | G131: =IF(C131=0,"NA",VLOOKUP(dmix_size,port_mix_cost_cl,2)) -> NA | H131: =IF(C131=0,"","hp") ->  | I131: =IF(C131=0,"NA",VLOOKUP(dmix_size,port_mix_cost_cl,3)) -> NA | J131: =IF(OR(I131="NA",I131="contact vendor"),"--",C131*I131) -> -- | K131: =IF(C131=0,"NA",VLOOKUP(dmix_size,port_mix_cost_cl,IF(ss_cat="large",4,5))) -> NA | M131: =$B$130&" - "&B131 -> Mixers for Oxidant Day Tanks - Portable | N131: 3 | O131: 3 | P131: 3 | Q131: 3 | R131: 3 | S131: 3 | T131: 3 | U131: 3 | V131: 3 | W131: =IF(ISERROR(K131*L131),0,IF(K131<1,0,L131)) -> 0 | X131: =IF(W131,J131/K131,0) -> 0
A132: 6.4.1 | B132: Mounted | C132: =dmixers -> 0 | D132: units | E132: =IF(C132=0,"NA",dmix_size) -> NA | F132: =IF(C132=0,"","hp") ->  | G132: =IF(C132=0,"NA",IF(curve=1,dmix_size,VLOOKUP(dmix_size,mount_mix_cost_cl,2))) -> NA | H132: =IF(C132=0,"","hp") ->  | I132: =IF(C132=0,"NA",IF(curve=1,dmount_mix_eq,VLOOKUP(dmix_size,mount_mix_cost_cl,3))) -> NA | J132: =IF(OR(I132="NA",I132="contact vendor"),"--",C132*I132) -> -- | K132: =IF(C132=0,"NA",VLOOKUP(dmix_size,mount_mix_cost_cl,IF(ss_cat="large",4,5))) -> NA | M132: =$B$130&" - "&B132 -> Mixers for Oxidant Day Tanks - Mounted | N132: 1 | O132: 1 | P132: 1 | Q132: 1 | R132: 1 | S132: 1 | T132: 1 | U132: 1 | V132: 1 | W132: 0 | X132: 0
A133: 6.4.1 | B133: Impeller | C133: =dmixers -> 0 | D133: units | E133: =IF(C133=0,"NA",dmix_size) -> NA | F133: =IF(C133=0,"","hp") ->  | G133: =IF(C133=0,"NA",IF(curve=1,dmix_size,VLOOKUP(dmix_size,imp_mix_cost_cl,2))) -> NA | H133: =IF(C133=0,"","hp") ->  | I133: =IF(C133=0,"NA",IF(curve=1,dimp_mix_eq,VLOOKUP(dmix_size,imp_mix_cost_cl,3))) -> NA | J133: =IF(OR(I133="NA",I133="contact vendor"),"--",C133*I133) -> -- | K133: =IF(C133=0,"NA",VLOOKUP(dmix_size,imp_mix_cost_cl,IF(ss_cat="large",4,5))) -> NA | M133: =$B$130&" - "&B133 -> Mixers for Oxidant Day Tanks - Impeller | N133: 2 | O133: 2 | P133: 2 | Q133: 2 | R133: 2 | S133: 2 | T133: 2 | U133: 2 | V133: 2 | W133: 0 | X133: 0
A134: 7 | B134: Reactor Power Supplies | W134: 0 | X134: 0
A135: 7.1.1 | B135: UPS | C135: =num_UPS -> 0 | D135: units | E135: =IF(C135=0,"NA",UPS_capacity) -> NA | F135: =IF(C135=0,"","kVA") ->  | G135: =IF(C135=0,"NA",IF(curve=1,UPS_capacity,VLOOKUP(UPS_capacity,UV_UPS_cost_cl,2))) -> NA | H135: =IF(C135=0,"","kVA") ->  | I135: =IF(C135=0,"NA",IF(curve=1,UV_UPS_eq,VLOOKUP(UPS_capacity,UV_UPS_cost_cl,3))) -> NA | J135: =IF(OR(I135="NA",I135="contact vendor"),"--",C135*I135) -> -- | K135: =IF(C135=0,"NA",VLOOKUP(UPS_capacity,UV_UPS_cost_cl,IF(ss_cat="large",4,5))) -> NA | M135: =$B$134&" - "&B135 -> Reactor Power Supplies - UPS | N135: 1 | O135: 1 | P135: 1 | Q135: 1 | R135: 1 | S135: 1 | T135: 1 | U135: 1 | V135: 1 | W135: 0 | X135: 0
A136: 8 | B136: Instrumentation | W136: 0 | X136: 0
A137: 8.1 | B137: Flow Meters - Influent and Treated Water | W137: 0 | X137: 0
A138: 8.1.1 | B138: Orifice Plate | C138: =tot_fm_in -> 0 | D138: units | E138: =IF(C138=0,"NA",in_meter_size) -> NA | F138: =IF(C138=0,"","in. diam") ->  | G138: =IF(C138=0,"NA",IF(curve=1,in_meter_size,VLOOKUP(in_meter_size,op_fm_cost_cl,2))) -> NA | H138: =IF(C138=0,"","in. diam") ->  | I138: =IF(C138=0,"NA",IF(curve=1,op_fm_eq_in,VLOOKUP(in_meter_size,op_fm_cost_cl,3))) -> NA | J138: =IF(OR(I138="NA",I138="contact vendor"),"--",C138*I138) -> -- | K138: =IF(C138=0,"NA",VLOOKUP(in_meter_size,op_fm_cost_cl,IF(ss_cat="large",4,5))) -> NA | M138: =$B$136&" - "&$B$137&" - "&B138 -> Instrumentation - Flow Meters - Influent and Treated Water - Orifice Plate | N138: 3 | O138: 4 | P138: 4 | Q138: 3 | R138: 4 | S138: 4 | T138: 3 | U138: 3 | V138: 4 | W138: 0 | X138: 0
A139: 8.1.1 | B139: Propeller | C139: =tot_fm_in -> 0 | D139: units | E139: =IF(C139=0,"NA",in_meter_size) -> NA | F139: =IF(C139=0,"","in. diam") ->  | G139: =IF(C139=0,"NA",IF(curve=1,in_meter_size,VLOOKUP(in_meter_size,prop_fm_cost_cl,2))) -> NA | H139: =IF(C139=0,"","in. diam") ->  | I139: =IF(C139=0,"NA",IF(curve=1,prop_fm_eq_in,VLOOKUP(in_meter_size,prop_fm_cost_cl,3))) -> NA | J139: =IF(OR(I139="NA",I139="contact vendor"),"--",C139*I139) -> -- | K139: =IF(C139=0,"NA",VLOOKUP(in_meter_size,prop_fm_cost_cl,IF(ss_cat="large",4,5))) -> NA | M139: =$B$136&" - "&$B$137&" - "&B139 -> Instrumentation - Flow Meters - Influent and Treated Water - Propeller | N139: 1 | O139: 2 | P139: 3 | Q139: 1 | R139: 2 | S139: 3 | T139: 4 | U139: 4 | V139: 2 | W139: 0 | X139: 0
A140: 8.1.1 | B140: Venturi | C140: =tot_fm_in -> 0 | D140: units | E140: =IF(C140=0,"NA",in_meter_size) -> NA | F140: =IF(C140=0,"","in. diam") ->  | G140: =IF(C140=0,"NA",IF(curve=1,in_meter_size,VLOOKUP(in_meter_size,ven_fm_cost_cl,2))) -> NA | H140: =IF(C140=0,"","in. diam") ->  | I140: =IF(C140=0,"NA",IF(curve=1,ven_fm_eq_in,VLOOKUP(in_meter_size,ven_fm_cost_cl,3))) -> NA | J140: =IF(OR(I140="NA",I140="contact vendor"),"--",C140*I140) -> -- | K140: =IF(C140=0,"NA",VLOOKUP(in_meter_size,ven_fm_cost_cl,IF(ss_cat="large",4,5))) -> NA | M140: =$B$136&" - "&$B$137&" - "&B140 -> Instrumentation - Flow Meters - Influent and Treated Water - Venturi | N140: 2 | O140: 1 | P140: 2 | Q140: 2 | R140: 1 | S140: 2 | T140: 1 | U140: 2 | V140: 3 | W140: 0 | X140: 0
A141: 8.1.1 | B141: Magnetic | C141: =tot_fm_in -> 0 | D141: units | E141: =IF(C141=0,"NA",in_meter_size) -> NA | F141: =IF(C141=0,"","in. diam") ->  | G141: =IF(C141=0,"NA",IF(curve=1,in_meter_size,VLOOKUP(in_meter_size,mag_fm_cost_cl,2))) -> NA | H141: =IF(C141=0,"","in. diam") ->  | I141: =IF(C141=0,"NA",IF(curve=1,mag_fm_eq_in,VLOOKUP(in_meter_size,mag_fm_cost_cl,3))) -> NA | J141: =IF(OR(I141="NA",I141="contact vendor"),"--",C141*I141) -> -- | K141: =IF(C141=0,"NA",VLOOKUP(in_meter_size,mag_fm_cost_cl,IF(ss_cat="large",4,5))) -> NA | M141: =$B$136&" - "&$B$137&" - "&B141 -> Instrumentation - Flow Meters - Influent and Treated Water - Magnetic | N141: 4 | O141: 3 | P141: 1 | Q141: 4 | R141: 3 | S141: 1 | T141: 2 | U141: 1 | V141: 1 | W141: 0 | X141: 0
A142: 8.2 | B142: Flow Meters - Process | W142: 0 | X142: 0
A143: 8.2.1 | B143: Orifice Plate | C143: =tot_fm_proc -> 0 | D143: units | E143: =proc_meter_size -> 10 | F143: in. diam | G143: =IF(curve=1,proc_meter_size,VLOOKUP(proc_meter_size,op_fm_cost_cl,2)) -> 10 | H143: in. diam | I143: =IF(curve=1,op_fm_eq_proc,VLOOKUP(proc_meter_size,op_fm_cost_cl,3)) -> 4626.816142 | J143: =IF(OR(I143="NA",I143="contact vendor"),"--",C143*I143) -> 0 | K143: =VLOOKUP(proc_meter_size,op_fm_cost_cl,IF(ss_cat="large",4,5)) -> 15 | M143: =$B$136&" - "&$B$142&" - "&B143 -> Instrumentation - Flow Meters - Process - Orifice Plate | N143: 3 | O143: 4 | P143: 4 | Q143: 3 | R143: 4 | S143: 4 | T143: 3 | U143: 3 | V143: 4 | W143: 0 | X143: 0
A144: 8.2.1 | B144: Propeller | C144: =tot_fm_proc -> 0 | D144: units | E144: =proc_meter_size -> 10 | F144: in. diam | G144: =IF(curve=1,proc_meter_size,VLOOKUP(proc_meter_size,prop_fm_cost_cl,2)) -> 10 | H144: in. diam | I144: =IF(curve=1,prop_fm_eq_proc,VLOOKUP(proc_meter_size,prop_fm_cost_cl,3)) -> 6008.28612 | J144: 0 | K144: =VLOOKUP(proc_meter_size,prop_fm_cost_cl,IF(ss_cat="large",4,5)) -> 15 | M144: =$B$136&" - "&$B$142&" - "&B144 -> Instrumentation - Flow Meters - Process - Propeller | N144: 1 | O144: 2 | P144: 3 | Q144: 1 | R144: 2 | S144: 3 | T144: 4 | U144: 4 | V144: 2 | W144: 0 | X144: 0
A145: 8.2.1 | B145: Venturi | C145: =tot_fm_proc -> 0 | D145: units | E145: =proc_meter_size -> 10 | F145: in. diam | G145: =IF(curve=1,proc_meter_size,VLOOKUP(proc_meter_size,ven_fm_cost_cl,2)) -> 10 | H145: in. diam | I145: =IF(curve=1,ven_fm_eq_proc,VLOOKUP(proc_meter_size,ven_fm_cost_cl,3)) -> 4013.03265 | J145: 0 | K145: =VLOOKUP(proc_meter_size,ven_fm_cost_cl,IF(ss_cat="large",4,5)) -> 15 | M145: =$B$136&" - "&$B$142&" - "&B145 -> Instrumentation - Flow Meters - Process - Venturi | N145: 2 | O145: 1 | P145: 2 | Q145: 2 | R145: 1 | S145: 2 | T145: 1 | U145: 2 | V145: 3 | W145: 0 | X145: 0
A146: 8.2.1 | B146: Magnetic | C146: =tot_fm_proc -> 0 | D146: units | E146: =proc_meter_size -> 10 | F146: in. diam | G146: =IF(curve=1,proc_meter_size,VLOOKUP(proc_meter_size,mag_fm_cost_cl,2)) -> 10 | H146: in. diam | I146: =IF(curve=1,mag_fm_eq_proc,VLOOKUP(proc_meter_size,mag_fm_cost_cl,3)) -> 8445.746619 | J146: 0 | K146: =VLOOKUP(proc_meter_size,mag_fm_cost_cl,IF(ss_cat="large",4,5)) -> 15 | M146: =$B$136&" - "&$B$142&" - "&B146 -> Instrumentation - Flow Meters - Process - Magnetic | N146: 4 | O146: 3 | P146: 1 | Q146: 4 | R146: 3 | S146: 1 | T146: 2 | U146: 1 | V146: 1 | W146: 0 | X146: 0
A147: 8.3 | B147: UV Transmittance Monitors | C147: =total_UVT_monitors -> 2 | D147: units | E147: NA | G147: NA | I147: =IF(C147=0,"NA",VLOOKUP(0,UVT_monitor_cost_cl,3)) -> 8329.758227 | J147: 16659.51645 | K147: =VLOOKUP(0,UVT_monitor_cost_cl,IF(ss_cat="large",4,5)) -> 10 | L147: 1 | M147: =$B$136&" - "&B147 -> Instrumentation - UV Transmittance Monitors | N147: 1 | O147: 1 | P147: 1 | Q147: 1 | R147: 1 | S147: 1 | T147: 1 | U147: 1 | V147: 1 | W147: 1 | X147: 1665.951645
A148: 8.4 | B148: Reference UV Intensity Sensors | C148: =ref_sensors -> 3 | D148: units | E148: NA | G148: NA | I148: =VLOOKUP(0,UV_MP_sensor_cost_cl,3) -> 1597.42229 | J148: 4792.26687 | K148: =sensor_life -> 5 | L148: 1 | M148: =$B$136&" - "&B148 -> Instrumentation - Reference UV Intensity Sensors | N148: 1 | O148: 1 | P148: 1 | Q148: 1 | R148: 1 | S148: 1 | T148: 1 | U148: 1 | V148: 1 | W148: 1 | X148: 958.453374
A149: 8.5 | B149: pH Meters | C149: =tot_pH_meters -> 0 | D149: units | E149: NA | G149: NA | I149: =IF(C149=0,"NA",VLOOKUP(0,pH_meter_cost_cl,3)) -> NA | J149: -- | K149: =IF(C149=0,"NA",VLOOKUP(0,pH_meter_cost_cl,IF(ss_cat="large",4,5))) -> NA | M149: Instrumentation - pH Meters | N149: 1 | O149: 1 | P149: 1 | Q149: 1 | R149: 1 | S149: 1 | T149: 1 | U149: 1 | V149: 1 | W149: 0 | X149: 0
A150: 8.6 | B150: Turbidity meters | C150: =tot_turb_meters -> 0 | D150: units | E150: NA | G150: NA | I150: =IF(C150=0,"NA",VLOOKUP(0,turbidimeter_cost_cl,3)) -> NA | J150: -- | K150: =IF(C150=0,"NA",VLOOKUP(0,turbidimeter_cost_cl,IF(ss_cat="large",4,5))) -> NA | M150: Instrumentation - Turbidity meters | N150: 1 | O150: 1 | P150: 1 | Q150: 1 | R150: 1 | S150: 1 | T150: 1 | U150: 1 | V150: 1 | W150: 0 | X150: 0
A151: 8.7 | B151: Temperature meters | C151: =tot_temp_meters -> 9 | D151: units | E151: NA | G151: NA | I151: =VLOOKUP(0,temp_meter_cost_cl,3) -> 794.7585292 | J151: 7152.826763 | K151: =VLOOKUP(0,temp_meter_cost_cl,IF(ss_cat="large",4,5)) -> 15 | L151: 1 | M151: Instrumentation - Temperature meters | N151: 1 | O151: 1 | P151: 1 | Q151: 1 | R151: 1 | S151: 1 | T151: 1 | U151: 1 | V151: 1 | W151: 1 | X151: 476.8551175
A152: 8.8 | B152: High/Low Alarms (for oxidant tanks) | C152: =tot_level_switch -> 4 | D152: units | E152: NA | G152: NA | I152: =VLOOKUP(0,alarm_cost_cl,3) -> 600.1870767 | J152: 2400.748307 | K152: =VLOOKUP(0,alarm_cost_cl,IF(ss_cat="large",4,5)) -> 15 | L152: 1 | M152: Instrumentation - High/Low Alarms (for oxidant tanks) | N152: 1 | O152: 1 | P152: 1 | Q152: 1 | R152: 1 | S152: 1 | T152: 1 | U152: 1 | V152: 1 | W152: 1 | X152: 160.0498871
A153: 8.9 | B153: Chlorine residual analyzers | C153: =tot_cl_analy -> 0 | D153: units | E153: NA | G153: NA | I153: =IF(C153=0,"NA",VLOOKUP(0,cl_anal_cost_cl,3)) -> NA | J153: -- | K153: =IF(C153=0,"NA",VLOOKUP(0,cl_anal_cost_cl,IF(ss_cat="large",4,5))) -> NA | M153: Instrumentation - Chlorine residual analyzers | N153: 1 | O153: 1 | P153: 1 | Q153: 1 | R153: 1 | S153: 1 | T153: 1 | U153: 1 | V153: 1 | W153: =IF(ISERROR(K153*L153),0,IF(K153<1,0,L153)) -> 0 | X153: =IF(W153,J153/K153,0) -> 0
A154: 8.10 | B154: Electrical enclosure | C154: =elec_encl -> 0 | D154: units | E154: NA | G154: NA | I154: =IF(C154=0,"NA",VLOOKUP(0,elec_encl_cost_cl,3)) -> NA | J154: -- | K154: =IF(C154=0,"NA",VLOOKUP(0,elec_encl_cost_cl,IF(ss_cat="large",4,5))) -> NA | M154: Instrumentation - Electrical enclosure | N154: 1 | O154: 1 | P154: 1 | Q154: 1 | R154: 1 | S154: 1 | T154: 1 | U154: 1 | V154: 1 | W154: 0 | X154: 0
A155: 9 | B155: System Controls | W155: 0 | X155: 0
A156: 9.1 | B156: PLC Units | W156: 0 | X156: 0
A157: 9.1.1 | B157: PLC racks/power supplies | C157: =IF(manual=1,0,plc_rack) -> 2 | D157: units | E157: NA | G157: NA | I157: =IF(manual=1,"NA",VLOOKUP(0,plc_rack_cost_cl,3)) -> 355.56 | J157: =IF(OR(I157="NA",I157="contact vendor"),"--",C157*I157) -> 711.12 | K157: =IF(C157=0,"NA",VLOOKUP(0,plc_rack_cost_cl,IF(ss_cat="large",4,5))) -> 10 | L157: 1 | M157: =$B$155&" - "&$B$156&" - "&B157 -> System Controls - PLC Units - PLC racks/power supplies | N157: 1 | O157: 1 | P157: 1 | Q157: 1 | R157: 1 | S157: 1 | T157: 1 | U157: 1 | V157: 1 | W157: 1 | X157: 71.112
A158: 9.1.2 | B158: CPUs | C158: =IF(manual=1,0,plc_cpu) -> 2 | D158: units | E158: NA | G158: NA | I158: =IF(manual=1,"NA",VLOOKUP(0,plc_cpu_cost_cl,3)) -> 378.8 | J158: 757.6 | K158: =IF(C158=0,"NA",VLOOKUP(0,plc_cpu_cost_cl,IF(ss_cat="large",4,5))) -> 10 | L158: 1 | M158: =$B$155&" - "&$B$156&" - "&B158 -> System Controls - PLC Units - CPUs | N158: 1 | O158: 1 | P158: 1 | Q158: 1 | R158: 1 | S158: 1 | T158: 1 | U158: 1 | V158: 1 | W158: 1 | X158: 75.76
A159: 9.1.3 | B159: I/O discrete input modules | C159: =IF(manual=1,0,plc_discrete_input) -> 2 | D159: units | E159: NA | G159: NA | I159: =IF(manual=1,"NA",VLOOKUP(0,plc_discrete_input_cost_cl,3)) -> 382.68 | J159: 765.36 | K159: =IF(C159=0,"NA",VLOOKUP(0,plc_discrete_input_cost_cl,IF(ss_cat="large",4,5))) -> 10 | L159: 1 | M159: System Controls - PLC Units - I/O discrete input modules | N159: 1 | O159: 1 | P159: 1 | Q159: 1 | R159: 1 | S159: 1 | T159: 1 | U159: 1 | V159: 1 | W159: 1 | X159: 76.536
A160: 9.1.4 | B160: I/O discrete output modules | C160: =IF(manual=1,0,plc_discrete_output) -> 1 | D160: units | E160: NA | G160: NA | I160: =IF(manual=1,"NA",VLOOKUP(0,plc_discrete_output_cost_cl,3)) -> 340.425 | J160: 340.425 | K160: =IF(C160=0,"NA",VLOOKUP(0,plc_discrete_output_cost_cl,IF(ss_cat="large",4,5))) -> 10 | L160: 1 | M160: System Controls - PLC Units - I/O discrete output modules | N160: 1 | O160: 1 | P160: 1 | Q160: 1 | R160: 1 | S160: 1 | T160: 1 | U160: 1 | V160: 1 | W160: 1 | X160: 34.0425
A161: 9.1.5 | B161: I/O combination analog modules | C161: =IF(manual=1,0,plc_combination_analog) -> 4 | D161: units | E161: NA | G161: NA | I161: =IF(manual=1,"NA",VLOOKUP(0,plc_combination_analog_cost_cl,3)) -> 557.335 | J161: 2229.34 | K161: =IF(C161=0,"NA",VLOOKUP(0,plc_combination_analog_cost_cl,IF(ss_cat="large",4,5))) -> 10 | L161: 1 | M161: System Controls - PLC Units - I/O combination analog modules | N161: 1 | O161: 1 | P161: 1 | Q161: 1 | R161: 1 | S161: 1 | T161: 1 | U161: 1 | V161: 1 | W161: 1 | X161: 222.934
A162: 9.1.6 | B162: Ethernet modules | C162: =IF(manual=1,0,plc_ethernet) -> 2 | D162: units | E162: NA | G162: NA | I162: =IF(manual=1,"NA",VLOOKUP(0,plc_ethernet_cost_cl,3)) -> 1342.235 | J162: 2684.47 | K162: =IF(C162=0,"NA",VLOOKUP(0,plc_ethernet_cost_cl,IF(ss_cat="large",4,5))) -> 10 | L162: 1 | M162: System Controls - PLC Units - Ethernet modules | N162: 1 | O162: 1 | P162: 1 | Q162: 1 | R162: 1 | S162: 1 | T162: 1 | U162: 1 | V162: 1 | W162: 1 | X162: 268.447
A163: 9.1.7 | B163: Base expansion modules | C163: =IF(manual=1,0,plc_base_expansion) -> 1 | D163: units | E163: NA | G163: NA | I163: =IF(manual=1,"NA",VLOOKUP(0,plc_base_expansion_cost_cl,3)) -> 142.67 | J163: 142.67 | K163: =IF(C163=0,"NA",VLOOKUP(0,plc_base_expansion_cost_cl,IF(ss_cat="large",4,5))) -> 10 | L163: 1 | M163: System Controls - PLC Units - Base expansion modules | N163: 1 | O163: 1 | P163: 1 | Q163: 1 | R163: 1 | S163: 1 | T163: 1 | U163: 1 | V163: 1 | W163: 1 | X163: 14.267
A164: 9.1.8 | B164: Base expansion controller modules | C164: =IF(manual=1,0,plc_base_expansion_controller) -> 1 | D164: units | E164: NA | G164: NA | I164: =IF(manual=1,"NA",VLOOKUP(0,plc_base_expansion_controller_cost_cl,3)) -> 107.74 | J164: 107.74 | K164: =IF(C164=0,"NA",VLOOKUP(0,plc_base_expansion_controller_cost_cl,IF(ss_cat="large",4,5))) -> 10 | L164: 1 | M164: System Controls - PLC Units - Base expansion controller modules | N164: 1 | O164: 1 | P164: 1 | Q164: 1 | R164: 1 | S164: 1 | T164: 1 | U164: 1 | V164: 1 | W164: =IF(ISERROR(K164*L164),0,IF(K164<1,0,L164)) -> 1 | X164: =IF(W164,J164/K164,0) -> 10.774
A165: 9.1.9 | B165: UPSs | C165: =IF(manual=1,0,ups_plc) -> 1 | D165: units | E165: NA | G165: NA | I165: =IF(manual=1,"NA",VLOOKUP(0,ups_cost_cl,3)) -> 877.495 | J165: 877.495 | K165: =IF(C165=0,"NA",VLOOKUP(0,ups_cost_cl,IF(ss_cat="large",4,5))) -> 10 | L165: 1 | M165: System Controls - PLC Units - UPSs | N165: 1 | O165: 1 | P165: 1 | Q165: 1 | R165: 1 | S165: 1 | T165: 1 | U165: 1 | V165: 1 | W165: 1 | X165: 87.7495
A166: 9.2 | B166: Operator Equipment | W166: 0 | X166: 0
A167: 9.2.1 | B167: Drive controllers | C167: =IF(manual=1,0,tot_switches) -> 2 | D167: units | E167: NA | G167: NA | I167: =IF(manual=1,"NA",VLOOKUP(0,switch_cost_cl,3)) -> 1300.897873 | J167: =IF(OR(I167="NA",I167="contact vendor"),"--",C167*I167) -> 2601.795745 | K167: =IF(C167=0,"NA",VLOOKUP(0,switch_cost_cl,IF(ss_cat="large",4,5))) -> 15 | L167: 1 | M167: =$B$155&" - "&$B$156&" - "&B167 -> System Controls - PLC Units - Drive controllers | N167: 1 | O167: 1 | P167: 1 | Q167: 1 | R167: 1 | S167: 1 | T167: 1 | U167: 1 | V167: 1 | W167: 1 | X167: 173.4530497
A168: 9.2.2 | B168: Operator interface units | C168: =IF(manual=1,0,plc_interface) -> 2 | D168: units | E168: NA | G168: NA | I168: =IF(manual=1,"NA",VLOOKUP(ss_cat,plc_op_interface_cost_cl,3,FALSE)) -> 616.5 | J168: =IF(OR(I168="NA",I168="contact vendor"),"--",C168*I168) -> 1233 | K168: =IF(C168=0,"NA",VLOOKUP(ss_cat,plc_op_interface_cost_cl,IF(ss_cat="large",4,5),FALSE)) -> 10 | L168: 1 | M168: =$B$155&" - "&$B$156&" - "&B168 -> System Controls - PLC Units - Operator interface units | N168: 1 | O168: 1 | P168: 1 | Q168: 1 | R168: 1 | S168: 1 | T168: 1 | U168: 1 | V168: 1 | W168: 1 | X168: 123.3
A169: 9.2.3 | B169: PC Workstations | C169: =IF(OR(manual=1,ss_cat="small"),0,workstations) -> 1 | D169: units | E169: NA | G169: NA | I169: =IF(manual=1,"NA",VLOOKUP(0,pc_workstation_cost_cl,3)) -> 1325.79 | J169: =IF(OR(I169="NA",I169="contact vendor"),"--",C169*I169) -> 1325.79 | K169: =IF(C169=0,"NA",VLOOKUP(0,pc_workstation_cost_cl,IF(ss_cat="large",4,5))) -> 10 | L169: 1 | M169: =$B$155&" - "&$B$156&" - "&B169 -> System Controls - PLC Units - PC Workstations | N169: 1 | O169: 1 | P169: 1 | Q169: 1 | R169: 1 | S169: 1 | T169: 1 | U169: 1 | V169: 1 | W169: 1 | X169: 132.579
A170: 9.2.4 | B170: Printers - laser jet | C170: =IF(OR(manual=1,ss_cat="small"),0,printers) -> 1 | D170: units | E170: NA | G170: NA | I170: =IF(manual=1,"NA",VLOOKUP(0,laser_printer_cost_cl,3)) -> 373.995 | J170: =IF(OR(I170="NA",I170="contact vendor"),"--",C170*I170) -> 373.995 | K170: =IF(C170=0,"NA",VLOOKUP(0,laser_printer_cost_cl,IF(ss_cat="large",4,5))) -> 10 | L170: 1 | M170: =$B$155&" - "&$B$156&" - "&B170 -> System Controls - PLC Units - Printers - laser jet | N170: 1 | O170: 1 | P170: 1 | Q170: 1 | R170: 1 | S170: 1 | T170: 1 | U170: 1 | V170: 1 | W170: 1 | X170: 37.3995
A171: 9.3 | B171: Controls Software | W171: 0 | X171: 0
A172: 9.3.1 | B172: Operator interface software | C172: =IF(OR(manual=1,ss_cat="small"),0,plc_interface) -> 2 | D172: units | E172: NA | G172: NA | I172: =IF(manual=1,"NA",VLOOKUP(0,op_interface_software_cost_cl,3)) -> 40.5 | J172: =IF(OR(I172="NA",I172="contact vendor"),"--",C172*I172) -> 81 | K172: =IF(C172=0,"NA",VLOOKUP(0,op_interface_software_cost_cl,IF(ss_cat="large",4,5))) -> 10 | L172: 1 | M172: =$B$155&" - "&$B$156&" - "&B172 -> System Controls - PLC Units - Operator interface software | N172: 1 | O172: 1 | P172: 1 | Q172: 1 | R172: 1 | S172: 1 | T172: 1 | U172: 1 | V172: 1 | W172: 1 | X172: 8.1
A173: 9.3.2 | B173: PLC programming software | C173: =IF(OR(manual=1,ss_cat="small"),0,workstations) -> 1 | D173: units | E173: NA | G173: NA | I173: =IF(manual=1,"NA",VLOOKUP(0,plc_software_cost_cl,3)) -> 553.5 | J173: =IF(OR(I173="NA",I173="contact vendor"),"--",C173*I173) -> 553.5 | K173: =IF(C173=0,"NA",VLOOKUP(0,plc_software_cost_cl,IF(ss_cat="large",4,5))) -> 10 | L173: 1 | M173: =$B$155&" - "&$B$156&" - "&B173 -> System Controls - PLC Units - PLC programming software | N173: 1 | O173: 1 | P173: 1 | Q173: 1 | R173: 1 | S173: 1 | T173: 1 | U173: 1 | V173: 1 | W173: 1 | X173: 55.35
A174: 9.3.3 | B174: PLC data collection software | C174: =IF(OR(manual=1,ss_cat="small"),0,workstations) -> 1 | D174: units | E174: NA | G174: NA | I174: =IF(manual=1,"NA",VLOOKUP(0,plc_data_software_cost_cl,3)) -> 597.235 | J174: =IF(OR(I174="NA",I174="contact vendor"),"--",C174*I174) -> 597.235 | K174: =IF(C174=0,"NA",VLOOKUP(0,plc_data_software_cost_cl,IF(ss_cat="large",4,5))) -> 10 | L174: 1 | M174: =$B$155&" - "&$B$156&" - "&B174 -> System Controls - PLC Units - PLC data collection software | N174: 1 | O174: 1 | P174: 1 | Q174: 1 | R174: 1 | S174: 1 | T174: 1 | U174: 1 | V174: 1 | W174: 1 | X174: 59.7235
A175: 9.3.4 | B175: Plant intelligence software | C175: =IF(OR(manual=1,ss_cat="small"),0,workstations) -> 1 | D175: units | E175: NA | G175: NA | I175: =IF(OR(manual=1,ss_cat="small"),"NA",VLOOKUP(0,plant_intel_software_cost_cl,3)) -> 20680.74 | J175: =IF(OR(I175="NA",I175="contact vendor"),"--",C175*I175) -> 20680.74 | K175: =IF(C175=0,"NA",VLOOKUP(0,plant_intel_software_cost_cl,IF(ss_cat="large",4,5))) -> 10 | L175: 1 | M175: =$B$155&" - "&$B$156&" - "&B175 -> System Controls - PLC Units - Plant intelligence software | N175: 1 | O175: 1 | P175: 1 | Q175: 1 | R175: 1 | S175: 1 | T175: 1 | U175: 1 | V175: 1 | W175: 1 | X175: 2068.074
A176: 10 | B176: Building Structures and HVAC | W176: 0 | X176: 0
A177: 10.1 | B177: Building 1 | W177: 0 | X177: 0
A178: 10.1.1 | B178: Small Low Cost Shed | C178: =IF(AND(build1_fp>0,build1_fp<500),1,0) -> 0 | D178: units | E178: =build1_fp -> 2920 | F178: sf | G178: =build1_fp -> 2920 | H178: sf | I178: =IF(C178=0,"NA",VLOOKUP(build1_fp,bldg_shed_cost_cl,3)) -> NA | J178: =IF(OR(I178="NA",I178="contact vendor"),"--",G178*I178) -> -- | K178: =IF($C178=0,"N/A",VLOOKUP(build1_fp,bldg_shed_cost_cl,IF(ss_cat="large",4,5))) -> N/A | M178: =$B$177&" - "&B178 -> Building 1 - Small Low Cost Shed | N178: =IF(include_buildings=1,2,0) -> 2 | O178: 2 | P178: 2 | Q178: 2 | R178: 2 | S178: 2 | T178: 2 | U178: 2 | V178: 2 | W178: 0 | X178: 0 | Y178: =IF(W178,K178,0) -> 0
A179: 10.1.1 | B179: Low Quality | C179: =IF(build1_fp>=500,1,0) -> 1 | D179: units | E179: =build1_fp -> 2920 | F179: sf | G179: =build1_fp -> 2920 | H179: sf | I179: =IF(C179=0,"NA",IF(curve=1,bldg_lo_eq_1,VLOOKUP(build1_fp, bldg_lo_cost_cl,3))) -> 76.59203106 | J179: =IF(OR(I179="NA",I179="contact vendor"),"--",G179*I179) -> 223648.7307 | K179: =IF($C179=0,"N/A",VLOOKUP(build1_fp,bldg_lo_cost_cl,IF(ss_cat="large",4,5))) -> 40 | L179: 1 | M179: =$B$177&" - "&B179 -> Building 1 - Low Quality | N179: =include_buildings -> 1 | Q179: =include_buildings -> 1 | T179: =include_buildings -> 1 | W179: 1 | X179: 5591.218267 | Y179: =IF(W179,K179,0) -> 40
A180: 10.1.1 | B180: Medium Quality | C180: =IF(build1_fp>=500,1,0) -> 1 | D180: units | E180: =build1_fp -> 2920 | F180: sf | G180: =build1_fp -> 2920 | H180: sf | I180: =IF(C180=0,"NA",IF(curve=1,bldg_mid_eq_1,VLOOKUP(build1_fp, bldg_mid_cost_cl,3))) -> 91.87269798 | J180: =IF(OR(I180="NA",I180="contact vendor"),"--",G180*I180) -> 268268.2781 | K180: =IF($C180=0,"N/A",VLOOKUP(build1_fp,bldg_mid_cost_cl,IF(ss_cat="large",4,5))) -> 40 | L180: 0 | M180: =$B$177&" - "&B180 -> Building 1 - Medium Quality | O180: =include_buildings -> 1 | R180: =include_buildings -> 1 | U180: =include_buildings -> 1 | W180: 0 | X180: 0 | Y180: =IF(W180,K180,0) -> 0
A181: 10.1.1 | B181: High Quality | C181: =IF(build1_fp>=500,1,0) -> 1 | D181: units | E181: =build1_fp -> 2920 | F181: sf | G181: =build1_fp -> 2920 | H181: sf | I181: =IF(C181=0,"NA",IF(curve=1,bldg_hi_eq_1,VLOOKUP(build1_fp, bldg_hi_cost_cl,3))) -> 127.114325 | J181: =IF(OR(I181="NA",I181="contact vendor"),"--",G181*I181) -> 371173.8291 | K181: =IF($C181=0,"N/A",VLOOKUP(build1_fp,bldg_hi_cost_cl,IF(ss_cat="large",4,5))) -> 40 | L181: 0 | M181: =$B$177&" - "&B181 -> Building 1 - High Quality | P181: =include_buildings -> 1 | S181: =include_buildings -> 1 | V181: =include_buildings -> 1 | W181: 0 | X181: 0 | Y181: =IF(W181,K181,0) -> 0
A182: 10.1.2 | B182: ="Heating System"&IF(build1_heat="heat pump"," (included with cooling system)","") -> Heating System | W182: 0 | X182: 0
A183: 10.1.2.1 | B183: Electric resistance | C183: =IF(build1_heat="heat pump","NA",IF(build1_need_heat,build1_zones,"NA")) -> 1 | D183: =IF(C183="NA","","zones") -> zones | E183: =IF(C183="NA","NA",build1_heat_mbh) -> 84.72427536 | F183: =IF(C183="NA","","MBH") -> MBH | G183: =IF(C183="NA","NA",IF(curve=1,build1_heat_mbh,VLOOKUP(build1_heat_mbh,hvac_elec_cost_cl,2))) -> 84.72427536 | H183: =IF(C183="NA","","MBH") -> MBH | I183: =IF(C183="NA","NA",IF(curve=1,hvac_elec_eq_1,VLOOKUP(build1_heat_mbh,hvac_elec_cost_cl,3))) -> 34834.31821 | J183: =IF(OR(I183="NA",I183="contact vendor"),"--",C183*I183) -> 34834.31821 | K183: =IF(C183="NA","NA",VLOOKUP(build1_heat_mbh,hvac_elec_cost_cl,IF(ss_cat="large",4,5))) -> 25 | L183: 0 | M183: =$B$177&" - "&$B$182&" - "&B183 -> Building 1 - Heating System - Electric resistance | N183: =IF(include_HVAC=0,0,IF(build1_heat=$B183,1,"")) ->  | W183: 0 | X183: 0
A184: 10.1.2.1 | B184: Natural gas non-condensing furnace | C184: =IF(build1_heat="heat pump","NA",IF(build1_need_heat,build1_zones,"NA")) -> 1 | D184: =IF(C184="NA","","zones") -> zones | E184: =IF(C184="NA","NA",build1_heat_mbh) -> 84.72427536 | F184: =IF(C184="NA","","MBH") -> MBH | G184: =IF(C184="NA","NA",IF(curve=1,build1_heat_mbh,VLOOKUP(build1_heat_mbh,hvac_gas_non_cost_cl,2))) -> 84.72427536 | H184: =IF(C184="NA","","MBH") -> MBH | I184: =IF(C184="NA","NA",IF(curve=1,hvac_gas_non_eq_1,VLOOKUP(build1_heat_mbh,hvac_gas_non_cost_cl,3))) -> 24780.90121 | J184: =IF(OR(I184="NA",I184="contact vendor"),"--",C184*I184) -> 24780.90121 | K184: =IF(C184="NA","NA",VLOOKUP(build1_heat_mbh,hvac_gas_non_cost_cl,IF(ss_cat="large",4,5))) -> 25 | L184: 0 | M184: =$B$177&" - "&$B$182&" - "&B184 -> Building 1 - Heating System - Natural gas non-condensing furnace | W184: 0 | X184: 0
A185: 10.1.2.1 | B185: Natural gas condensing furnace | C185: =IF(build1_heat="heat pump","NA",IF(build1_need_heat,build1_zones,"NA")) -> 1 | D185: =IF(C185="NA","","zones") -> zones | E185: =IF(C185="NA","NA",build1_heat_mbh) -> 84.72427536 | F185: =IF(C185="NA","","MBH") -> MBH | G185: =IF(C185="NA","NA",IF(curve=1,build1_heat_mbh,VLOOKUP(build1_heat_mbh,hvac_gas_cost_cl,2))) -> 84.72427536 | H185: =IF(C185="NA","","MBH") -> MBH | I185: =IF(C185="NA","NA",IF(curve=1,hvac_gas_eq_1,VLOOKUP(build1_heat_mbh,hvac_gas_cost_cl,3))) -> 24780.90121 | J185: =IF(OR(I185="NA",I185="contact vendor"),"--",C185*I185) -> 24780.90121 | K185: =IF(C185="NA","NA",VLOOKUP(build1_heat_mbh,hvac_gas_cost_cl,IF(ss_cat="large",4,5))) -> 25 | L185: 1 | M185: =$B$177&" - "&$B$182&" - "&B185 -> Building 1 - Heating System - Natural gas condensing furnace | N185: 1 | O185: 1 | P185: 1 | Q185: 1 | R185: 1 | S185: 1 | T185: 1 | U185: 1 | V185: 1 | W185: 1 | X185: 991.2360486
A186: 10.1.2.1 | B186: Standard efficiency oil furnace | C186: =IF(build1_heat="heat pump","NA",IF(build1_need_heat,build1_zones,"NA")) -> 1 | D186: =IF(C186="NA","","zones") -> zones | E186: =IF(C186="NA","NA",build1_heat_mbh) -> 84.72427536 | F186: =IF(C186="NA","","MBH") -> MBH | G186: =IF(C186="NA","NA",IF(curve=1,build1_heat_mbh,VLOOKUP(E186,hvac_oil_std_cost_cl,2))) -> 84.72427536 | H186: =IF(C186="NA","","MBH") -> MBH | I186: =IF(C186="NA","NA",IF(curve=1,hvac_oil_std_eq_1,VLOOKUP(build1_heat_mbh,hvac_oil_std_cost_cl,3))) -> 28061.44694 | J186: =IF(OR(I186="NA",I186="contact vendor"),"--",C186*I186) -> 28061.44694 | K186: =IF(C186="NA","NA",VLOOKUP(build1_heat_mbh,hvac_oil_std_cost_cl,IF(ss_cat="large",4,5))) -> 25 | L186: 0 | M186: =$B$177&" - "&$B$182&" - "&B186 -> Building 1 - Heating System - Standard efficiency oil furnace | W186: 0 | X186: 0
A187: 10.1.2.1 | B187: Mid-efficiency oil furnace | C187: =IF(build1_heat="heat pump","NA",IF(build1_need_heat,build1_zones,"NA")) -> 1 | D187: =IF(C187="NA","","zones") -> zones | E187: =IF(C187="NA","NA",build1_heat_mbh) -> 84.72427536 | F187: =IF(C187="NA","","MBH") -> MBH | G187: =IF(C187="NA","NA",IF(curve=1,build1_heat_mbh,VLOOKUP(build1_heat_mbh,hvac_oil_mid_cost_cl,2))) -> 84.72427536 | H187: =IF(C187="NA","","MBH") -> MBH | I187: =IF(C187="NA","NA",IF(curve=1,hvac_oil_mid_eq_1,VLOOKUP(build1_heat_mbh,hvac_oil_mid_cost_cl,3))) -> 28061.44694 | J187: =IF(OR(I187="NA",I187="contact vendor"),"--",C187*I187) -> 28061.44694 | K187: =IF(C187="NA","NA",VLOOKUP(build1_heat_mbh,hvac_oil_mid_cost_cl,IF(ss_cat="large",4,5))) -> 25 | L187: 0 | M187: =$B$177&" - "&$B$182&" - "&B187 -> Building 1 - Heating System - Mid-efficiency oil furnace | W187: 0 | X187: 0
A188: 10.1.3 | B188: =IF(build1_heat="heat pump","Heating and ","")&"Cooling System" -> Cooling System | W188: 0 | X188: 0
A189: 10.1.3.1 | B189: Air conditioner | C189: =IF(build1_need_cool,build1_zones,"NA") -> NA | D189: =IF(C189="NA","","zones") ->  | E189: =IF(C189="NA","NA",build1_cooling_tons) -> NA | F189: =IF(C189="NA","","tons") ->  | G189: =IF(C189="NA","NA",IF(curve=1,build1_cooling_tons,VLOOKUP(build1_cooling_tons,hvac_ac_cost_cl,2))) -> NA | H189: =IF(C189="NA","","tons") ->  | I189: =IF(C189="NA","NA",IF(curve=1,hvac_ac_eq_1,VLOOKUP(build1_cooling_tons,hvac_ac_cost_cl,3))) -> NA | J189: =IF(OR(I189="NA",I189="contact vendor"),"--",C189*I189) -> -- | K189: =IF(C189="NA","NA",VLOOKUP(build1_cooling_tons,hvac_ac_cost_cl,IF(ss_cat="large",4,5))) -> NA | M189: =$B$177&" - "&$B$182&" - "&B189 -> Building 1 - Heating System - Air conditioner | N189: =IF(include_HVAC=0,0,IF(build1_cool=$B189,1,"")) ->  | W189: 0 | X189: 0
A190: 10.1.3.1 | B190: Heat pump | C190: =IF(AND(hp_ok_1,build1_need_cool),build1_zones,"NA") -> NA | D190: =IF(C190="NA","","zones") ->  | E190: =IF(C190="NA","NA",build1_cooling_tons) -> NA | F190: =IF(C190="NA","","tons") ->  | G190: =IF(C190="NA","NA",IF(curve=1,build1_cooling_tons,VLOOKUP(build1_cooling_tons,hvac_hp_cost_cl,2))) -> NA | H190: =IF(C190="NA","","tons") ->  | I190: =IF(C190="NA","NA",IF(curve=1,hvac_hp_eq_1,VLOOKUP(build1_cooling_tons,hvac_hp_cost_cl,3))) -> NA | J190: =IF(OR(I190="NA",I190="contact vendor"),"--",C190*I190) -> -- | K190: =IF(C190="NA","NA",VLOOKUP(build1_cooling_tons,hvac_hp_cost_cl,IF(ss_cat="large",4,5))) -> NA | M190: =$B$177&" - "&$B$182&" - "&B190 -> Building 1 - Heating System - Heat pump | W190: 0 | X190: 0
A191: 10.2 | B191: Building 2 | W191: 0 | X191: 0
A192: 10.2.1 | B192: Small Low Cost Shed | C192: =IF(AND(build2_fp>0,build2_fp<500),1,0) -> 0 | D192: units | E192: =build2_fp -> 0 | F192: sf | G192: =build2_fp -> 0 | H192: sf | I192: =IF(C192=0,"NA",VLOOKUP(build2_fp,bldg_shed_cost_cl,3)) -> NA | J192: =IF(OR(I192="NA",I192="contact vendor"),"--",G192*I192) -> -- | K192: =IF($C192=0,"N/A",VLOOKUP(build2_fp,bldg_shed_cost_cl,IF(ss_cat="large",4,5))) -> N/A | M192: =$B$191&" - "&B192 -> Building 2 - Small Low Cost Shed | N192: =IF(include_buildings=1,2,0) -> 2 | O192: 2 | P192: 2 | Q192: 2 | R192: 2 | S192: 2 | T192: 2 | U192: 2 | V192: 2 | W192: 0 | X192: 0 | Y192: =IF(W192,K192,0) -> 0
A193: 10.2.1 | B193: Low Quality | C193: =IF(build2_fp>=500,1,0) -> 0 | D193: units | E193: =build2_fp -> 0 | F193: sf | G193: =build2_fp -> 0 | H193: sf | I193: =IF(C193=0,"NA",IF(curve=1,bldg_lo_eq_2,VLOOKUP(build2_fp, bldg_lo_cost_cl,3))) -> NA | J193: =IF(OR(I193="NA",I193="contact vendor"),"--",G193*I193) -> -- | K193: =IF($C193=0,"N/A",VLOOKUP(build2_fp,bldg_lo_cost_cl,IF(ss_cat="large",4,5))) -> N/A | M193: =$B$191&" - "&B193 -> Building 2 - Low Quality | N193: =include_buildings -> 1 | Q193: =include_buildings -> 1 | T193: =include_buildings -> 1 | W193: 0 | X193: 0 | Y193: =IF(W193,K193,0) -> 0
A194: 10.2.1 | B194: Medium Quality | C194: =IF(build2_fp>=500,1,0) -> 0 | D194: units | E194: =build2_fp -> 0 | F194: sf | G194: =build2_fp -> 0 | H194: sf | I194: =IF(C194=0,"NA",IF(curve=1,bldg_mid_eq_2,VLOOKUP(build2_fp, bldg_mid_cost_cl,3))) -> NA | J194: =IF(OR(I194="NA",I194="contact vendor"),"--",G194*I194) -> -- | K194: =IF($C194=0,"N/A",VLOOKUP(build2_fp,bldg_mid_cost_cl,IF(ss_cat="large",4,5))) -> N/A | M194: =$B$191&" - "&B194 -> Building 2 - Medium Quality | O194: =include_buildings -> 1 | R194: =include_buildings -> 1 | U194: =include_buildings -> 1 | W194: 0 | X194: 0 | Y194: =IF(W194,K194,0) -> 0
A195: 10.2.1 | B195: High Quality | C195: =IF(build2_fp>=500,1,0) -> 0 | D195: units | E195: =build2_fp -> 0 | F195: sf | G195: =build2_fp -> 0 | H195: sf | I195: =IF(C195=0,"NA",IF(curve=1,bldg_hi_eq_2,VLOOKUP(build2_fp, bldg_hi_cost_cl,3))) -> NA | J195: =IF(OR(I195="NA",I195="contact vendor"),"--",G195*I195) -> -- | K195: =IF($C195=0,"N/A",VLOOKUP(build2_fp,bldg_hi_cost_cl,IF(ss_cat="large",4,5))) -> N/A | M195: =$B$191&" - "&B195 -> Building 2 - High Quality | P195: =include_buildings -> 1 | S195: =include_buildings -> 1 | V195: =include_buildings -> 1 | W195: =IF(ISERROR(K195*L195),0,IF(K195<1,0,L195)) -> 0 | X195: =IF(W195,J195/K195,0) -> 0 | Y195: =IF(W195,K195,0) -> 0
A196: 10.2.2 | B196: ="Heating System"&IF(build2_heat="heat pump"," (included with cooling system)","") -> Heating System | W196: 0 | X196: 0
A197: 10.2.2.1 | B197: Electric resistance | C197: =IF(build2_heat="heat pump","NA",IF(build2_need_heat,build2_zones,"NA")) -> NA | D197: =IF(C197="NA","","zones") ->  | E197: =IF(C197="NA","NA",build2_heat_mbh) -> NA | F197: =IF(C197="NA","","MBH") ->  | G197: =IF(C197="NA","NA",IF(curve=1,build2_heat_mbh,VLOOKUP(build2_heat_mbh,hvac_elec_cost_cl,2))) -> NA | H197: =IF(C197="NA","","MBH") ->  | I197: =IF(C197="NA","NA",IF(curve=1,hvac_elec_eq_2,VLOOKUP(build2_heat_mbh,hvac_elec_cost_cl,3))) -> NA | J197: =IF(OR(I197="NA",I197="contact vendor"),"--",C197*I197) -> -- | K197: =IF(C197="NA","NA",VLOOKUP(build2_heat_mbh,hvac_elec_cost_cl,IF(ss_cat="large",4,5))) -> NA | M197: =$B$191&" - "&$B$196&" - "&B197 -> Building 2 - Heating System - Electric resistance | N197: =IF(include_HVAC=0,0,IF(build2_heat=$B197,1,"")) ->  | W197: 0 | X197: 0
A198: 10.2.2.1 | B198: Natural gas non-condensing furnace | C198: =IF(build2_heat="heat pump","NA",IF(build2_need_heat,build2_zones,"NA")) -> NA | D198: =IF(C198="NA","","zones") ->  | E198: =IF(C198="NA","NA",build2_heat_mbh) -> NA | F198: =IF(C198="NA","","MBH") ->  | G198: =IF(C198="NA","NA",IF(curve=1,build2_heat_mbh,VLOOKUP(build2_heat_mbh,hvac_gas_non_cost_cl,2))) -> NA | H198: =IF(C198="NA","","MBH") ->  | I198: =IF(C198="NA","NA",IF(curve=1,hvac_gas_non_eq_2,VLOOKUP(build2_heat_mbh,hvac_gas_non_cost_cl,3))) -> NA | J198: =IF(OR(I198="NA",I198="contact vendor"),"--",C198*I198) -> -- | K198: =IF(C198="NA","NA",VLOOKUP(build2_heat_mbh,hvac_gas_non_cost_cl,IF(ss_cat="large",4,5))) -> NA | M198: =$B$191&" - "&$B$196&" - "&B198 -> Building 2 - Heating System - Natural gas non-condensing furnace | W198: 0 | X198: 0
A199: 10.2.2.1 | B199: Natural gas condensing furnace | C199: =IF(build2_heat="heat pump","NA",IF(build2_need_heat,build2_zones,"NA")) -> NA | D199: =IF(C199="NA","","zones") ->  | E199: =IF(C199="NA","NA",build2_heat_mbh) -> NA | F199: =IF(C199="NA","","MBH") ->  | G199: =IF(C199="NA","NA",IF(curve=1,build2_heat_mbh,VLOOKUP(build2_heat_mbh,hvac_gas_cost_cl,2))) -> NA | H199: =IF(C199="NA","","MBH") ->  | I199: =IF(C199="NA","NA",IF(curve=1,hvac_gas_eq_2,VLOOKUP(build2_heat_mbh,hvac_gas_cost_cl,3))) -> NA | J199: =IF(OR(I199="NA",I199="contact vendor"),"--",C199*I199) -> -- | K199: =IF(C199="NA","NA",VLOOKUP(build2_heat_mbh,hvac_gas_cost_cl,IF(ss_cat="large",4,5))) -> NA | M199: =$B$191&" - "&$B$196&" - "&B199 -> Building 2 - Heating System - Natural gas condensing furnace | W199: 0 | X199: 0
A200: 10.2.2.1 | B200: Standard efficiency oil furnace | C200: =IF(build2_heat="heat pump","NA",IF(build2_need_heat,build2_zones,"NA")) -> NA | D200: =IF(C200="NA","","zones") ->  | E200: =IF(C200="NA","NA",build2_heat_mbh) -> NA | F200: =IF(C200="NA","","MBH") ->  | G200: =IF(C200="NA","NA",IF(curve=1,build2_heat_mbh,VLOOKUP(E200,hvac_oil_std_cost_cl,2))) -> NA | H200: =IF(C200="NA","","MBH") ->  | I200: =IF(C200="NA","NA",IF(curve=1,hvac_oil_std_eq_2,VLOOKUP(build2_heat_mbh,hvac_oil_std_cost_cl,3))) -> NA | J200: =IF(OR(I200="NA",I200="contact vendor"),"--",C200*I200) -> -- | K200: =IF(C200="NA","NA",VLOOKUP(build2_heat_mbh,hvac_oil_std_cost_cl,IF(ss_cat="large",4,5))) -> NA | M200: =$B$191&" - "&$B$196&" - "&B200 -> Building 2 - Heating System - Standard efficiency oil furnace | W200: 0 | X200: 0
A201: 10.2.2.1 | B201: Mid-efficiency oil furnace | C201: =IF(build2_heat="heat pump","NA",IF(build2_need_heat,build2_zones,"NA")) -> NA | D201: =IF(C201="NA","","zones") ->  | E201: =IF(C201="NA","NA",build2_heat_mbh) -> NA | F201: =IF(C201="NA","","MBH") ->  | G201: =IF(C201="NA","NA",IF(curve=1,build2_heat_mbh,VLOOKUP(build2_heat_mbh,hvac_oil_mid_cost_cl,2))) -> NA | H201: =IF(C201="NA","","MBH") ->  | I201: =IF(C201="NA","NA",IF(curve=1,hvac_oil_mid_eq_2,VLOOKUP(build2_heat_mbh,hvac_oil_mid_cost_cl,3))) -> NA | J201: =IF(OR(I201="NA",I201="contact vendor"),"--",C201*I201) -> -- | K201: =IF(C201="NA","NA",VLOOKUP(build2_heat_mbh,hvac_oil_mid_cost_cl,IF(ss_cat="large",4,5))) -> NA | M201: =$B$191&" - "&$B$196&" - "&B201 -> Building 2 - Heating System - Mid-efficiency oil furnace | W201: 0 | X201: 0
... 120 more rows

Sheet Critical Design Assumptions
A1: Default Critical Design Assumptions
A2: Users may change any of the cells in the Value column; cells in gold are most important and may vary based on contaminant treated and site-specific conditions
A4: Assumption | B4: Range Name | C4: Value | D4: Units | E4: Guidance
A5: Cost estimating method | B5: curve | C5: 1 | D5: <-- enter 1 to use cost equations, leave blank to use lookup tables for component costs | E5: Keeping this assumption with a value of 1 is strongly recommended; the cost equations method is more appropriate for national cost estimating and will be more accurate for nearly all user-specified designs
A6: Minimum average flow as percentage of design | B6: min_avg_flow | C6: 0.1 | E6: The minimum ratio of average flow to design flow. If the ratio falls below this value, it will trigger a warning on the INPUT sheet. If this value is zero, no minimum is enforced.
A8: Contaminant removal
A9: Minimum allowable removal | B9: min_removal | C9: 0.1 | E9: Entering a contaminant removal outside these bounds will trigger an error on the input sheet. The boundary values are allowable.
A10: Maximum allowable removal | B10: max_removal | C10: 0.999
A12: Booster Pumping
A13: Redundant booster pumps | B13: NRD_pump | C13: 0 | E13: Multiple operating pumps, so no need for a redundant pump
A14: Pump safety factor | B14: pump_safety_factor | C14: 0.25
A16: Excavation
A17: Concrete thickness | B17: conc_thick | C17: 1 | D17: ft
A18: Excavation depth | B18: excavation_depth | C18: 5 | D18: ft | E18: 5 feet below grade to maintain hydraulic profile and ensure reactors remain submerged
A19: Maximim height of riser | B19: riser_height | C19: 7 | D19: risers
A21: UV system
A22: Operating UV reactors per redundant reactor | B22: rd_reac_freq | C22: 10 | E22: Enter zero to default to no redundancy
A23: Maximum number of redundant reactors for entire facility | B23: max_rd_reac | C23: 2 | D23: units | E23: Does not apply if the user specifies the number of redundant reactors
A24: Per Reactor Storage room for ancillaries of UV reactors | B24: storage | C24: 0.2 | E24: fraction of reactor footprint
A25: Minor alarm for indicating equipment failure | B25: minor_alarm | C25: 1 | D25: unit | E25: It is used to show the failure of equipment with acceptable level of disinfection. Example low pumping level
A26: Major or high alarm system for component failure | B26: major_alarm | C26: 1 | D26: unit | E26: It is used to show the failure of equipment causing non-acceptable level of disinfection.It is mostly built in the system.Ondeo Degremont Inc.
A27: Control panel access space | B27: cntrl_space | C27: 2 | D27: ft
A28: Influent UVT monitors | B28: UVT_monitors_sp | C28: 1 | D28: unit | E28: Based on intensity setpoint approach
A29: Redundant UVT monitors for direct photolysis | B29: NRD_UVT_mon | C29: 1 | D29: unit | E29: Included only when an operating UVT monitor is specified
A30: UVT monitors per train for UVAOP with oxidant | B30: UVT_monitors_train | C30: 1 | D30: units | E30: Additional monitor after each point of oxidant addition, per Antolovich 2016
A31: Number of reference UV intensity sensors | B31: ref_sensors | C31: 3 | D31: units
A33: Oxidants
A34: Include a separate day tank if daily volume is x or greater | B34: day_tank_needed | C34: 5 | D34: gal
A35: Include mixers for chemical tanks | B35: include_cmix | C35: 0 | D35: <--- enter 1 for yes, 0 for no
A36: Chemical tank mixer horsepower | B36: cmix_hp_per | C36: 0.25 | D36: hp per 1000 gal
A37: Minimum chemical tank mixer horsepower | B37: min_cmix_hp | C37: =1/3 -> 0.3333333333 | D37: hp
A38: Percent grade of H2O2 | B38: H2O2_grade | C38: 0.5
A39: Specific gravity of H2O2 at the indicated grade | B39: H2O2_sg | C39: 1.19 | E39: FMC Corporation, MSDS for 40-60% H2O2, http://www.h2o2.com/intro/FMC_MSDS_40_to_60.pdf
A40: Diluted H2O2 concentration to be fed | B40: H2O2_dilute_conc | C40: 0.05 | E40: Hydrogen peroxide is added to water as a dilute solution (MWH, Water Treatment: Principles and Design, second edition, page 552 and Table 8-4).
A41: Days of H2O2 storage | B41: cstore_days | C41: 30 | D41: days | E41: 50% hydrogen peroxide is stable.
A42: Chlorine solution strength for NaOCl | B42: chlorine_strength_Na | C42: 0.125 | D42: as Cl | E42: Common commercial solution strength 12.5% (Verna Arnette, Engineer, Greater Cincinnati Water Works). See also, EPA 570/9-91-003 and EPA 815-R-99-014
A43: Density of bulk NaOCl solution | B43: NaOCl_dens | C43: 10 | D43: lb/gal | E43: HASA MSDS for 12.5% SODIUM HYPOCHLORITE SOLUTION
A44: Days of NaOCl storage | B44: NaOCl_store | C44: 20 | D44: days | E44: NaOCl solution should not be stored for more than 15-25 days (AWWA, Principles and Practices of Water Supply Operations: Water Treatment, 2010). For on-site generation, this assumption is applied to salt storage instead.
A45: Number of redundant chemical metering pumps | B45: NRD_cm_pump | C45: 1 | D45: pumps
A46: Minimum chemical feed pump size | B46: min_chem_flow | C46: 0.13 | D46: gph | E46: Metering pumps will be designed to meet this minimum
A48: Secondary Containment Requirements
A49: Include secondary containment | B49: include_sec_cont | C49: 1 | D49: <--- enter 1 for yes, 0 for no
A50: Volume required as a percentage of the largest tank | B50: sec_cont_pct_of_largest | C50: 1.1
A51: Volume required as a percentage of total storage | B51: sec_cont_pct_of_total | C51: 0.1
A52: Additional freeboard | B52: sec_cont_freeboard | C52: 6 | D52: inches | E52: Additional freeboard is typically required to contain precipitation when storage is outside; we also include freeboard indoors to ensure a minimum reasonable curb height
A53: Maximum curb thickness | B53: sec_cont_max_thick | C53: 1 | D53: foot | E53: Calculations assume thickness equal to height, up to this maximum
A54: Chemical resistant coating coverage | B54: sec_cont_coating_cvg | C54: 125 | D54: square feet/gallon
A56: Number of manual valves on influent and treated water line | B56: in_man | C56: 2 | D56: valves
A57: Number of manual valves on influent and treated water line in add-on scenario | B57: in_man_addon | C57: 0 | D57: valves
A58: Number of check valves per booster pump | B58: cvalve_pump | C58: 1 | D58: units
A59: Number of check valves per oxidant metering pump | B59: acid_chv_pump | C59: 2 | D59: units
A61: Flow meters for influent and treated water line | B61: fm_in | C61: 0 | D61: units
A62: Flow meters for influent and treated water line in add-on scenario | B62: fm_in_addon | C62: 0 | D62: units
A63: Flow meters per treatment line for active flow control option | B63: fm_treat | C63: 1 | D63: units | E63: Used only if there is more than one operating train
A64: Flow meters per treatment line for passive flow control option | B64: fm_treat_passive | C64: 1 | D64: units | E64: Used only if there is more than one operating train
A65: pH meters for influent line | B65: inf_pH_meter | C65: 0 | D65: units
A66: pH meters for each treatment train for direct photolysis | B66: train_pH_meters_1 | C66: 0 | D66: units
A67: pH meters for each treatment train for UV/H2O2 | B67: train_pH_meters_2 | C67: 0 | D67: units
A68: pH meters for each treatment train for UV/Cl | B68: train_pH_meters_3 | C68: 1 | D68: units | E68: Because of importance of influent pH, included for UV/Cl after each point of oxidant addition as a critical control point, per Antolovich 2016
A69: pH meters for treated water line | B69: eff_pH_meter | C69: 0 | D69: units
A70: Turbidity meters for influent line | B70: Inf_turb_meters | C70: 0 | D70: units
A71: Turbidity meters for each treatment train | B71: train_turb_meters | C71: 0 | D71: units
A72: Turbidity meters for treated water line | B72: eff_turb_meters | C72: 0 | D72: units
A73: Temperature meters for influent line | B73: inf_temp_meter | C73: 0 | D73: units
A74: Temperature meters for each reactor train | B74: train_temp_meter | C74: 1 | D74: units
A75: Temperature meters for treated water line | B75: eff_temp_meter | C75: 0 | D75: units
A76: Chlorine residual analyzers per train (UV/Cl only) | B76: train_cl_anal | C76: 2 | D76: units | E76: To calculate reduction of chlorine as a critical control point, per Antolovich 2016
A78: UPS access space | B78: UPS_space | C78: 3 | D78: ft | E78: Liebert
A80: Safety factor for passive flow distribution | B80: passive_flow_sf | C80: 0.2
A82: Alarms per chemical cleaning tank | B82: level_switch | C82: 2 | D82: units/tank
A83: Number of electrical enclosures | B83: elec_encl | C83: 0 | D83: units | E83: Required only for technologies with significant electric-powered equipment outside a building.
A85: System Controls
A86: Controllers are used only under full automation
A87: To change the degree of automation, change the number of controllers to zero for the appropriate items.
A88: Drive Controllers per booster pump | B88: S_booster_pump | C88: 1
A89: Drive Controllers per oxidant metering pump | B89: S_cm_pump | C89: 1
A90: Drive Controllers per mixer | B90: S_mix | C90: 1 | D90: units
A93: Include PLC rack/power supplies in add-on scenario | B93: plc_rack_addon | C93: 0 | D93: <-- 1 for yes, 0 for no | E93: Assumes additional PLC modules for add-on will fit on existing racks
A94: Number of CPUs in stand-alone system | B94: plc_cpu_standalone | C94: 2 | D94: units | E94: One CPU is needed to run the local and expansion bases and modules (max 8192 I/O); using two to provide redundancy
A95: Number of CPUs in add-on scenario | B95: plc_cpu_addon | C95: 0 | D95: units
A96: Ethernet modules in stand-alone system | B96: plc_ethernet_standalone | C96: 2 | D96: units | E96: One ethernet module is needed; using two to provide redundancy
A97: Ethernet modules in add-on scenario | B97: plc_ethernet_addon | C97: 0 | D97: units
A98: Operator interfaces in stand-alone system | B98: plc_interface_standalone | C98: 2 | D98: units | E98: Two to provide redundancy in the event of SCADA node failure
A99: Operator interfaces in add-on scenario | B99: plc_interface_addon | C99: 0 | D99: units
A100: UPSs in stand-alone system | B100: ups_standalone | C100: 1 | D100: unit | E100: UPS protects the PLC system from undesired outages and surges that can adversely affect the performance of the PLC unit
A101: UPSs in add-on scenario | B101: ups_addon | C101: 0 | D101: unit
A102: Computer workstations per x operators | B102: workstation_ratio | C102: 1 | D102: operator/workstation | E102: Minimum will always be one, but larger systems will have multiple workstations to control the system
A103: Number of shifts | B103: shifts_day | C103: 3 | D103: shifts/day | E103: Used to determine number of workstations
A104: Include workstations in add-on scenario | B104: workstation_addon | C104: 0 | D104: <-- 1 for yes, 0 for no
A105: Printers per x computer workstations | B105: printer_ratio | C105: 4 | D105: workstations/printer | E105: Minimum will always be one, but larger systems will have multiple printers
A106: Include printers in add-on scenario | B106: printer_addon | C106: 0 | D106: <-- 1 for yes, 0 for no
A108: Spent Materials Disposal
A109: Hazardous classification of spent lambs, ballasts, & sensors | B109: res_haz | C109: 0 | D109: <-- enter 1 to for hazardous classification, 0 for non-hazardous classification
A110: Weight of disposed UV lamps | B110: weight_lamp | C110: 15 | D110: lb. | E110: Used for calculating disposal costs
A111: Weight of disposed ballasts | B111: weight_ballast | C111: 25 | D111: lb. | E111: Used for calculating disposal costs
A112: Weight of disposed UV intensity sensors | B112: weight_sensor | C112: 25 | D112: lb. | E112: Used for calculating disposal costs
A113: Miles to non-hazardous solid waste disposal site | B113: non_haz_miles | C113: 10 | D113: miles
A114: Miles to hazardous solid waste disposal site | B114: haz_miles | C114: 200 | D114: miles
A116: Structure/Floorplan
A117: Maximum access space per tank for large systems | B117: max_space_tank_large | C117: 6 | D117: feet | E117: This is the MAXIMUM; space between vessels and tanks defaults to vessel or tank diameter, up to this maximum. Maximum provides space for sandblasting and painting for large vessels (5-8 feet per Richard E. Hubel, Peter Keenan, American Water Works Service Company).
A118: Maximum access space per tank for small systems | B118: max_space_tank_small | C118: 1 | D118: feet | E118: Assumes skid-mounting with minimal access space
A119: Access space for pumps | B119: space_pumps | C119: 4 | D119: feet | E119: Provide a minimum of 3 ft (1 m) of clear space around each item of equipment (American Water Works Association and American Society of Civil Engineers. Water Treatment Plant Design. Third Edition. New York: McGraw Hill, 1998. Pp. 695).
A120: Access space for UV reactors | B120: space_reactor | C120: 3 | D120: feet | E120: The model includes at least this much space on each side of the reactor. It allows additional space as needed for lamp removal.
A121: Buffer space around other sides of buildings | B121: non_fire_buffer | C121: 10 | D121: feet
A122: Fire truck buffer requirements | B122: fire_buffer | C122: 40 | D122: feet
A123: Building height | B123: Building_height | C123: 20 | D123: feet
A124: Ceiling clearance for storage tanks | B124: ceiling_clearance | C124: 3 | D124: feet
A125: Office space per employee | B125: space_office | C125: 100 | D125: square ft
A126: Office space per employee for small systems | B126: space_office_small | C126: 0 | D126: square ft | E126: Small systems do not require office space
A127: Concrete pad thickness | B127: pad_thick | C127: =6/12 -> 0.5 | D127: feet
A128: Concrete pad thickness for small systems | B128: pad_thick_small | C128: =4/12 -> 0.3333333333 | D128: feet
A129: Additional building after… | B129: add_2nd_building | C129: 10000 | D129: sf
A131: Pipe Length Multipliers
A132: Influent and treated water pipe length multiplier | B132: in_out_pipe_mult | C132: 2 | D132: times facility length
A133: Process pipe length multiplier | B133: proc_pipe_mult | C133: 2 | D133: times facility length
A134: Chemical pipe length multiplier | B134: chem_pipe_mult | C134: 1 | D134: times facility length
A135: Drain pipe length multiplier | B135: drain_pipe_mult | C135: 1 | D135: times facility length
A137: Valves and Instrumentation
A138: Under assumptions below, valves are motorized for fully automated systems, manual for semi-automated and manual systems
A139: To change the degree of automation, the user may replace the numbers in each of the blue columns.
A140: Number of control valves of x type on y line per z | B140: Lookup name | C140: Manual | D140: Semi-auto | E140: Fully Auto
A141: Motor/air operated on process line per train | B141: proc_MOV_train | C141: 0 | D141: 0 | E141: 1 | F141: valves/train
A142: Motor/air operated on process line per reactor within a train | B142: proc_MOV_reactor | C142: 0 | D142: 0 | E142: 1 | F142: valves/reactor
A143: Motor/air operated on process line per booster pump | B143: proc_MOV_pump | C143: 0 | D143: 0 | E143: 1 | F143: valves/pump
A144: Number of motor/air operated control valves per day tank | B144: chem_mov_day | C144: 0 | D144: 0 | E144: 1 | F144: valves/tank
A145: Motor/air operated on oxidant lines per pump | B145: acid_MOV_pump | C145: 0 | D145: 0 | E145: 2 | F145: valves/pump
A146: Manual on process line per train | B146: proc_man_train | C146: 1 | D146: 1 | E146: 0 | F146: valves/train
A147: Manual on process line per reactor within a train | B147: proc_man_reactor | C147: 2 | D147: 2 | E147: 1 | F147: valves/reactor | G147: Includes drain valves
A148: Manual on process line per booster pump | B148: proc_man_pump | C148: 1 | D148: 1 | E148: 0 | F148: valves/pump
A149: Number of manual valves per day tank | B149: chem_man_day | C149: 1 | D149: 1 | E149: 0 | F149: valves/tank
A150: Manual on oxidant lines per pump | B150: acid_man_pump | C150: 2 | D150: 2 | E150: 0 | F150: valves/pump
A152: Full automation includes all inputs and outputs, semi-automated uses inputs only, manual control uses neither
A153: Note: the following table must be sorted alphabetically on the column entitled "Lookup Name." To change the degree of automation, the user may replace the numbers in each of the blue columns.
A154: I/O Ports needed per…. | B154: Lookup name | C154: Discrete Inputs | D154: Discrete Outputs | E154: Analog Inputs | F154: Analog Outputs
A155: Alarm (including level switch/alarms, power alarms, etc.) | B155: alarm | C155: 1 | D155: 1 | E155: 0 | F155: 0
A156: Chlorine residual analyzer | B156: cl | C156: 0 | D156: 0 | E156: 1 | F156: 0
A157: Drain valves MOV | B157: drain | C157: 1 | D157: 1 | E157: 0 | F157: 0
A158: Magnetic flow meter | B158: flow_mag | C158: 0 | D158: 0 | E158: 1 | F158: 0
A159: Orifice plate flow meter | B159: flow_op | C159: 0 | D159: 0 | E159: 2 | F159: 1 | G159: Additional analog input because flow meters include pressure gauges
A160: Propeller flow meter | B160: flow_prop | C160: 0 | D160: 0 | E160: 1 | F160: 0
A161: Venturi flow meter | B161: flow_ven | C161: 0 | D161: 0 | E161: 2 | F161: 1 | G161: Additional analog input because flow meters include pressure gauges
A162: Control panel | B162: panel | C162: 1 | D162: 1 | E162: 0 | F162: 0
A163: pH meter | B163: ph | C163: 0 | D163: 0 | E163: 1 | F163: 0
A164: Drive controller | B164: switch | C164: 3 | D164: 1 | E164: 0 | F164: 0
A165: Temperature meter | B165: temp | C165: 0 | D165: 0 | E165: 1 | F165: 0
A166: Turbidity meter | B166: turb | C166: 0 | D166: 0 | E166: 1 | F166: 0
A167: Motor/air operated valve | B167: valve | C167: 0 | D167: 0 | E167: 1 | F167: 1

Sheet O&M Assumptions
A1: Default O&M Assumptions
A2: Users may change any of the cells in the Value column
A4: Assumption | B4: Range Name | C4: Value | D4: Units | E4: Guidance
A5: Materials
A6: Cost for parts & maintenance for pumps | B6: booster_pump_maintenance | C6: 0.01 | D6: of capital cost | E6: For calculating cost of actual maintenance materials; not to be confused with depreciation. Initial proposed estimate of 5% seems high (Richard E. Hubel, Peter Keenan, American Water Works Service Company, Inc)
A8: Labor
A9: Managerial LOE as a percent of average technical labor | B9: Manager_percent | C9: 0.1
A10: Administrative LOE as a percent of average technical labor | B10: Clerical_percent | C10: 0.1
A12: Operating LOE assumptions
A13: Minutes per instrument per day | B13: uloe_inst | C13: 5 | D13: min/day | E13: For manual systems only
A14: Recording operating paramenters for automated systems | B14: uloe_inst_auto | C14: 5 | D14: min/day | E14: For semiautomated and automated systems
A15: Minutes per pump per day | B15: uloe_pump | C15: 5 | D15: min/day | E15: For manual and semiautomated systems
A16: Minutes per valve per week | B16: uloe_valve | C16: 5 | D16: min/week | E16: For manual and semiautomated systems
A17: Minutes per 100 sf per day | B17: uloe_fp | C17: 1 | D17: min/100 sf/day
A19: Maintenance LOE assumptions
A20: For instruments (includes calibration) | B20: uloe_inst_maint | C20: 10 | D20: min/month
A21: For pumps | B21: uloe_pump_maint | C21: 30.25 | D21: hours/year | E21: Based on vendor recommended maintenance activities; applied to large, frequently operated pumps only
A22: For valves | B22: uloe_valve_maint | C22: 5 | D22: min/year | E22: Applied to main process valves only
A23: For chemical supply systems | B23: uloe_chem_maint | C23: 120 | D23: min/month
A25: Energy
A26: Pump head | B26: booster_pump_head | C26: 25 | D26: psi | E26: Von Huben, Harry. Operator's Companion, 4th Edition. USABluebook, 2000. Pp. 17 25 psi creates a head of 60 feet
A27: Pump efficiency | B27: booster_pump_efficiency | C27: 0.75
A29: Lighting and HVAC
A30: Lighting power per sf, low-quality buildings and sheds | B30: lighting_power_low | C30: 0.3 | D30: W/sf | E30: 0.3, 0.6, and 1.2 W/sf are the assumptions used for building capital costs
A31: Lighting power per sf, mid-quality buildings | B31: lighting_power_mid | C31: 0.6 | D31: W/sf
A32: Lighting power per sf, high-quality buildings | B32: lighting_power_high | C32: 1.2 | D32: W/sf
A34: Ventilation air change rate for reactors | B34: Air_changes_reactor | C34: 10 | D34: air changes/hr
A35: Ventilation air change rate for pump room | B35: Air_changes_pump | C35: 20 | D35: air changes/hr | E35: Could be lower (annual average 3 changes/hr) in a northern climate
A36: Ventilation air change rate for storage | B36: Air_changes_storage | C36: 2 | D36: air changes/hr
A37: Ventilation air change rate for offices | B37: Air_changes_office | C37: 2 | D37: air changes/hr
A38: Pressure drop across the fan | B38: Fan_pressure_drop | C38: 0.25 | D38: lbs/ft2
A39: Number of mechanical ventilation days per year first building (small system) | B39: fan_days_build1_small | C39: 90 | D39: days/year | E39: For small systems (<1 MGD)
A40: Number of mechanical ventilation days per year 2nd building (small system) | B40: fan_days_build2_small | C40: 90 | D40: days/year
A41: Number of mechanical ventilation days per year first building (medium system) | B41: fan_days_build1_medium | C41: 120 | D41: days/year | E41: For medium systems (1 - 10 MGD)
A42: Number of mechanical ventilation days per year 2nd building (medium system) | B42: fan_days_build2_medium | C42: 120 | D42: days/year
A43: Number of mechanical ventilation days per year first building (large system) | B43: fan_days_build1_large | C43: 185 | D43: days/year | E43: For large systems (> 10 MGD)
A44: Number of mechanical ventilation days per year 2nd building (large system) | B44: fan_days_build2_large | C44: 185 | D44: days/year
A46: R-value for walls | B46: R_wall | C46: 25 | D46: hr-sf-degF/BTU | E46: See Appendix E. If higher R-value materials are desired, user may also need to adjust the cost of building materials in cl.xls
A47: R-value for ceilings | B47: R_ceiling | C47: 49 | D47: hr-sf-degF/BTU | E47: See Appendix E. If higher R-value materials are desired, user may also need to adjust the cost of building materials in cl.xls
A48: Annual heating degree days | B48: heat_DD | C48: 4260 | D48: degree days | E48: Heating and cooling assumptions should be consistent with one another. Assumed values are for a climate that results in a total energy usage for heating and cooling equal to the national median.
A49: Annual cooling degree days | B49: cool_DD | C49: 1415 | D49: degree days | E49: Heating and cooling assumptions should be consistent with one another. Assumed values are for a climate that results in a total energy usage for heating and cooling equal to the national median.
A50: Heating ventilation/infiltration load | B50: heat_viload | C50: 168679 | D50: BTU/cfm | E50: Heating and cooling assumptions should be consistent with one another. Assumed values are for a climate that results in a total energy usage for heating and cooling equal to the national median.
A51: Cooling ventilation/infiltration load | B51: cool_viload | C51: 51771 | D51: BTU/cfm | E51: Heating and cooling assumptions should be consistent with one another. Assumed values are for a climate that results in a total energy usage for heating and cooling equal to the national median.
A52: Electric resistance heating efficiency | B52: resist_eff | C52: 0.98 | E52: See Appendix E
A53: Heat pump heating coefficient of performance | B53: COP | C53: 3.3 | E53: See Appendix E
A54: Natural gas non-condensing furnace efficiency | B54: gas_non_eff | C54: 0.85 | E54: See Appendix E
A55: Natural gas condensing furnace efficiency | B55: gas_eff | C55: 0.9 | E55: See Appendix E
A56: Standard oil furnace efficiency | B56: diesel_non_eff | C56: 0.82 | E56: See Appendix E
A57: Mid-efficiency oil furnace efficiency | B57: diesel_eff | C57: 0.9 | E57: See Appendix E
A58: Air conditioning EER | B58: EER | C58: 11.8 | D58: BTU/Whr | E58: See Appendix E
A59: Heat pump cooling EER | B59: hp_EER | C59: 11.8 | D59: BTU/Whr | E59: See Appendix E
A61: Heating Oil Heat Content | B61: diesel_heat_content | C61: 139000 | D61: BTU/gal | E61: U.S. DOE, Energy Information Administration.
A65: UV reactor
A66: Lamp life - MP | B66: lamp_life_MP | C66: 5000 | D66: hrs | E66: USEPA Disinfection Guidance Manual 2006: life is 4000-8000 hours. Paul Swaim, CH2M Hill: expect guarantee of 5,000 hour life
A67: UV intensity sensor lifetime | B67: sensor_life | C67: 5 | D67: yr | E67: USEPA Disinfection Guidance Manual, final 2006: life is 3-10 years
A68: Ballast life | B68: ballast_life | C68: 10 | D68: yrs | E68: USEPA Disinfection Guidance Manual, final 2006: life is 10-15 years
A70: Labor for reactor inspection for manual systems | B70: reactor_insp_labor | C70: 10 | D70: min/day/reactor
A71: Labor for quartz sleeve visual inspection | B71: labor_per_sleeve_inspect | C71: 20 | D71: min/sleeve | E71: Assume equal to labor for sleeve replacement, which is 20 minutes per Doug Gump, Severn Trent Services.
A72: Labor required to replace ballast | B72: labor_per_ballast | C72: 1.5 | D72: hrs/ballast
A73: Labor for UV sensor replacement | B73: labor_per_sensor | C73: 15 | D73: min/sensor | E73: Severn Trent Services
A74: Labor required to replace lamps | B74: labor_per_lamp | C74: 5 | D74: min/lamp | E74: Ondeo Degremont Inc.
A75: Labor for UV sensor calibration checks | B75: labor_calibration_sensor | C75: 30 | D75: mins/month/sensor | E75: USEPA Disinfection Guidance Manual, final 2006, case studies
A76: Labor for UVT analyzer calibration checks | B76: labor_calibration_UVT | C76: 30 | D76: mins/week/analyzer | E76: USEPA Disinfection Guidance Manual, final 2006, case studies
A77: Labor for automatic cleaning system effectiveness check | B77: labor_autoclean_eff | C77: 1 | D77: hr/reactor
A78: Labor for monitoring and reporting | B78: labor_report | C78: 10 | D78: min/day/reactor | E78: Only for manual systems
A80: Frequency of checking lamp output variability-MP lamps | B80: MP_variability_freq | C80: 6 | D80: /yr | E80: USEPA Disinfection Guidance Manual, final 2006, table 6-4
A81: Automatic cleaning system effectiveness check frequency | B81: autoclean_eff_freq | C81: 2 | D81: /yr | E81: Based on suggestions by Paul Swaim, CH2M Hill: 2007
A82: Sleeve visual examination frequency | B82: sleeve_exam_freq | C82: 4 | D82: /yr | E82: USEPA Disinfection Guidance Manual, final 2006
A84: Ballast efficiency | B84: ballast_efficiency | C84: 0.92 | E84: ITT Wedeco; Calgon Carbon

Sheet Indirect Assumptions
A1: Default Assumptions for Indirect and Add-On Costs
A2: Indirect Assumptions
A3: Users may change any of the cells in the Value column
A5: Assumption | B5: Range Name | C5: Value | D5: Units | E5: Guidance
A6: Concrete Pad
A7: Include concrete pad in total capital cost? | B7: include_pad | C7: 1 | D7: <--- enter 1 for yes, 0 for no
A9: Permits
A10: Include permit costs? | B10: include_permits | C10: 1 | D10: <--- enter 1 for yes, 0 for no
A11: Include NEPA compliance costs? | B11: include_NEPA | C11: 1 | D11: <--- enter 1 for default, enter 2 for yes, 3 for no | E11: Default of 1 means NEPA compliance is included only for systems that discharge to surface water. Selecting 2 means NEPA compliance will be included in all estimates. Selecting 3 means NEPA compliance will never be included.
A13: Pilot Study
A14: Include pilot study costs? | B14: include_pilot | C14: 1 | D14: <--- enter 1 for yes, 0 for no
A15: Include pilot study costs in add-on scenario? | B15: include_pilot_addon | C15: 1 | D15: <--- enter 1 for yes, 0 for no
A17: Mobilization and Demobilization
A18: Mobilization percentage for small systems | B18: mob_pct_small | C18: 0.05 | D18: of direct capital cost | E18: Typically 2-5% of the estimated construction cost. Enter 0% to exclude.
A19: Mobilization percentage for medium systems | B19: mob_pct_medium | C19: 0.04 | D19: of direct capital cost
A20: Mobilization percentage for large systems | B20: mob_pct_large | C20: 0.02 | D20: of direct capital cost
A22: Architectural Fees for Treatment Building
A23: Include architectural fee? | B23: include_arch | C23: 1 | D23: <--- enter 1 for yes, 0 for no | E23: Must be added to building cost. Change for special considerations. Includes structural, mechanical, and electrical engineering for building only.
A24: Include architectural fee for small systems? | B24: include_arch_small | C24: 0 | D24: <--- enter 1 for yes, 0 for no
A26: Installation, Transportatation, and O&P
A27: Installation, Transportatation, and O&P percentage | B27: inst_pct | C27: 0 | D27: of direct capital cost | E27: Included in line item unit costs. Add a percentage for special considerations such as a remote site or high cost location.
A29: Sitework
A30: Include sitework costs? | B30: include_sitework | C30: 1 | D30: <--- enter 1 for yes, 0 for no
A32: Yard Piping
A33: Include yard piping costs? | B33: include_yardpipe | C33: 1 | D33: <--- enter 1 for yes, 0 for no
A34: Include yard piping costs in add-on scenario? | B34: include_yardpipe_addon | C34: 0 | D34: <--- enter 1 for yes, 0 for no
A35: Frost depth | B35: frost | C35: 38 | D35: inches | E35: Should be consistent with (reflect same climate as) heating and cooling assumptions on O&M assumptions page. Assumptions are for St. Louis, Missouri.
A36: Minimum trench depth to top of pipe | B36: min_trench_depth | C36: 36 | D36: inches | E36: US Army Corps of Engineers recommended minimum cover for distribution pipes of 2.5 ft in grassed areas, 3 ft if buried under pavement or roadways but not less than frost penetration depth (USACOE 1984)
A37: Soil density | B37: soil_dens | C37: 97 | D37: lb/cubic ft. | E37: Based on soil density of loamy sand (1.55 gm/cc)
A38: Coefficient of passive pressure | B38: Coeff_Kp | C38: 3
A39: Reduction factor | B39: Reduction | C39: 0.467
A40: Bedding depth below pipe | B40: bedding_depth | C40: 6 | D40: inches
A41: Bedding depth surrounding the pipe | B41: bedding_pct | C41: 0.25 | D41: of pipe diameter
A42: Trench inside angle | B42: trench_angle | C42: =RADIANS(45) -> 0.7853981634 | D42: radians
A43: Pipe length from water source to the boundary of the 10 foot buffer | B43: yard_in | C43: 0 | D43: feet | E43: Use if technology is first step in treatment process
A44: Pipe length the boundary of the 10 foot buffer to distribution network | B44: yard_out | C44: 0 | D44: feet | E44: Use if technology is last step in treatment process
A46: Geotechnical & Sitework
A47: Include geotechnical costs for low cost systems? | B47: include_geo_low | C47: 0 | D47: <--- enter 1 for yes, 0 for no | E47: Note: geotechnical is always included with the septic system option, regardless of the numbers entered here
A48: Include geotechnical costs for medium cost systems? | B48: include_geo_medium | C48: 0 | D48: <--- enter 1 for yes, 0 for no
A49: Include geotechnical costs for high cost systems? | B49: include_geo_high | C49: 1 | D49: <--- enter 1 for yes, 0 for no
A50: Test pit length | B50: pit_length | C50: 4 | D50: feet
A51: Test pit width | B51: pit_width | C51: 4 | D51: feet
A52: Test pit depth | B52: pit_depth | C52: 7 | D52: feet
A53: Borehole depth for shallow basins | B53: bore_depth_min | C53: 25 | D53: feet
A54: Borehole depth for deep basins | B54: bore_depth_max | C54: 50 | D54: feet
A55: Technology footprint above which boreholes are needed | B55: bore_need | C55: 2000 | D55: square feet | E55: Small system geotechnical investigation can be completed with test pits, larger systems require boreholes
A56: Minimum number of boreholes | B56: min_holes | C56: 4
A57: Borehole needed every x square feet | B57: hole_per_sf | C57: 1000 | D57: square feet
A58: Boreholes per job | B58: hole_per_job | C58: 24 | D58: boreholes/job
A59: Linear feet bored per day | B59: hole_per_day | C59: 55.5 | D59: l.f./day | E59: RS Means Costworks 2001
A61: Standby Power
A62: Include standby power costs? | B62: include_standby | C62: 1 | D62: <--- enter 1 for yes, 0 for no
A63: Include standby power costs for small systems? | B63: include_standby_small | C63: 0 | D63: <--- enter 1 for yes, 0 for no
A64: Include standby power costs in add-on scenario? | B64: include_standby_addon | C64: 0 | D64: <--- enter 1 for yes, 0 for no
A65: Design safety factor for standby power | B65: std_safety_factor | C65: 0 | E65: Default 0%. Apply a percentage to increase standby power requirements.
A66: Include heating in standby power | B66: need_heat | C66: 0 | D66: <--- enter 1 for yes, 0 for no | E66: If a system uses gas or diesel heat, heating will not be included, regardless of this assumption.
A67: Include cooling in standby power | B67: need_cool | C67: 0 | D67: <--- enter 1 for yes, 0 for no | E67: If both heating and cooling are included, standby power requirements will be based on the maximum of the two.
A68: Minimum standby power generator size | B68: min_standby | C68: 1.5 | D68: kW
A70: Electrical (including yard wiring)
A71: Electrical percentage | B71: elect_pct | C71: 0.1 | D71: of direct cost
A73: Instrumentation and Control
A74: Instrumentation and control percentage | B74: i_c_pct | C74: 0 | D74: of direct cost | E74: Included as a direct cost line item.
A76: Contingency
A77: Include contingency costs for low cost systems? | B77: include_conting_low | C77: 0 | D77: <--- enter 1 for yes, 0 for no
A78: Include contingency costs for medium cost systems? | B78: include_conting_medium | C78: 0 | D78: <--- enter 1 for yes, 0 for no
A79: Include contingency costs for high cost systems? | B79: include_conting_high | C79: 1 | D79: <--- enter 1 for yes, 0 for no
A80: Technology complexity factor | B80: complexity | C80: 2 | E80: Technology-specific factor. See Appendices for details. Low complexity = 0.5; Average complexity = 1.0; High complexity = 1.5; Very high complexity = 2.0.
A82: Process Engineering
A83: Engineering percentage for small systems | B83: eng_pct_small | C83: 0.2 | D83: of direct capital cost | E83: Enter 0% to exclude.
A84: Engineering percentage for medium systems | B84: eng_pct_medium | C84: 0.12 | D84: of direct capital cost
A85: Engineering percentage for large systems | B85: eng_pct_large | C85: 0.08 | D85: of direct capital cost
A87: Miscellaneous Allowance
A88: Miscellaneous allowance percentage | B88: misc_pct | C88: 0.1 | D88: of direct capital cost | E88: Enter 0% to exclude.
A90: Legal, Fiscal, and Administrative
A91: Legal percentage | B91: legal_pct | C91: 0.02 | D91: of direct capital cost | E91: Enter 0% to exclude. Highly site-specific. Can range from 2-5% of equipment, installation, construction, electrical, and standby power. To estimate, add 5% to total estimated construction cost.
A93: Sales Tax
A94: Sales tax percentage | B94: tax_pct | C94: 0 | D94: of direct capital cost | E94: May be exempt if constructed with public funds. May be as high as 7.25% of equipment and construction, with national average 4.75%.
A96: Financing during Construction
A97: Financing percentage | B97: finance_pct | C97: 0.05 | D97: of direct capital cost | E97: Enter 0% to exclude. Typically assumed to be one year's interest on capital cost.
A98: Financing percentage for small systems | B98: finance_pct_small | C98: 0 | D98: of direct capital cost | E98: Small system construction assumed to take less than one year
A100: Construction Management and General Contractor Overhead
A101: Builder's risk insurance percentage | B101: br_ins_pct | C101: 0.0034 | E101: Enter 0% to exclude. 0.34% is national average rate. RSMeans Building Construction Cost Data 2009, reference section R01100-070
A102: Include performance bond cost? | B102: include_bond | C102: 1 | D102: <--- enter 1 for yes, 0 for no
A103: Include construction management cost? | B103: include_cm | C103: 1 | D103: <--- enter 1 for yes, 0 for no
A105: Heating Table (1=include heating in buildings and O&M, 0 = do not include heating) | C105: System Size
A106: Component Level | C106: Small (<1 mgd) | D106: Medium (1-10 mgd) | E106: Large (>10 mgd)
A107: Buildings 500 square feet or greater
A108: low cost | B108: heating_table | C108: 0 | D108: 1 | E108: 1
A109: mid cost | C109: 1 | D109: 1 | E109: 1
A110: high cost | C110: 1 | D110: 1 | E110: 1
A111: Buildings less than 500 ft2 (other than those used for chlorine storage)
A112: low cost | B112: heating_table_shed | C112: 0 | D112: 0 | E112: 1
A113: mid cost | C113: 0 | D113: 0 | E113: 1
A114: high cost | C114: 1 | D114: 1 | E114: 1
A116: Cooling Table (1=include cooling in buildings and O&M, 0 = do not include cooling) | C116: System Size
A117: Cost Level | C117: Small (<1 mgd) | D117: Medium (1-10 mgd) | E117: Large (>10 mgd)
A118: Buildings 500 square feet or greater
A119: low cost | B119: cooling_table | C119: 0 | D119: 0 | E119: 1
A120: mid cost | C120: 0 | D120: 1 | E120: 1
A121: high cost | C121: 1 | D121: 1 | E121: 1
A122: Buildings less than 500 ft2 (other than those used for chlorine storage)
A123: low cost | B123: cooling_table_shed | C123: 0 | D123: 0 | E123: 0
A124: mid cost | C124: 0 | D124: 0 | E124: 0
A125: high cost | C125: 0 | D125: 0 | E125: 0

Sheet Train Design
A1: Reactor Train Design
A2: This sheet performs calculations to confirm that the reactor train design on the Input page meets engineering constraints
A4: Calculation | B4: Range Name | C4: Value | D4: Units | E4: Guidance
A5: From Inputs
A6: Design Flow | B6: design_flow | C6: =IF(df_units="gpm",design_flow_I*24*60/1000000,design_flow_I) -> 2.152 | D6: MGD | E6: From Inputs
A7: Average Flow | B7: average_flow | C7: =IF(af_units="gpm",average_flow_I*24*60/1000000,IF(af_units="fraction of design flow",average_flow_I*design_flow,average_flow_I)) -> 0.819 | D7: MGD | E7: From Inputs
A8: Design Flow Rate | B8: design_flow_rate | C8: =design_flow*1000000/(24*60) -> 1494.444444 | D8: gpm | E8: Design flow expressed in gpm
A9: Average Flow Rate | B9: average_flow_rate | C9: =average_flow*1000000/(24*60) -> 568.75 | D9: gpm | E9: Average flow expressed in gpm
A10: Target Contaminant | B10: contam_type | C10: 1 | D10: <-- 1 for 1,4-dioxane, 2 for NDMA, etc. | E10: ="Automatically populated by the drop-down on the Input sheet: "&VLOOKUP(contam_type,contam_table,2) -> Automatically populated by the drop-down on the Input sheet: 1,4 Dioxane
A11: Photolysis or AOP chosen | B11: photo_aop | C11: 2 | D11: <-- 1 for direct photolysis, 2 for AOP (H2O2), 3 for AOP (Cl) | E11: ="Automatically populated by the drop-down on the Input sheet: "&photo_aop_name -> Automatically populated by the drop-down on the Input sheet: AOP (UV/H2O2)
A12: Text of photolysis or AOP chosen | B12: photo_aop_name | C12: =VLOOKUP(photo_aop,photo_aop_lookup2,2) -> AOP (UV/H2O2)
A13: Lamp Type | B13: lamp_type | C13: 1 | D13: <-- 1 for MP, 2 for LP | E13: ="Automatically populated by the drop-down on the Input sheet: "&VLOOKUP(lamp_type,lamp_type_lookup2,2) -> Automatically populated by the drop-down on the Input sheet: MP
A14: UV energy input type | B14: EE_type | C14: =IF(ISBLANK(EE_type_I),"",VLOOKUP(EE_type_I,EE_type_table,2,FALSE)) -> 1 | D14: <-- 1 for EE/O, 2 for EED
A15: Design lookup code | B15: design_lkp_code | C15: =contam_type*100+photo_aop*10+lamp_type -> 121 | E15: For use in populating input sheet guidance
A16: Range of EE/O reported in literature | B16: EEO_Range | C16: =VLOOKUP(design_lkp_code,EEO_range_table,2,FALSE) -> 2.3 - 11.4 | D16: kWh/1000 gal/order | E16: For use in populating input sheet guidance
A17: Low EED reported in the literature | B17: EED_low | C17: =IF(AND(photo_aop=3,OR(contam_type=1,contam_type=3)),(removal_required-0.13)/(1.55*Cl2_I),"NA") -> NA | D17: kWh/1000 gal | E17: For use in populating input sheet guidance, from Wetterau 2015
A18: High EED reported in the literature | B18: EED_high | C18: =IF(AND(photo_aop=3,OR(contam_type=1,contam_type=3)),(removal_required-0.17)/(0.47*Cl2_I),"NA") -> NA | D18: kWh/1000 gal | E18: For use in populating input sheet guidance, from Robinson 2016 data
A19: Range of EED reported in literature | B19: EED_Range | C19: =IF(AND(photo_aop=3,OR(contam_type=1,contam_type=3)),IF(EED_low>EED_high,TEXT(EED_high,"0.00")&" - "&TEXT(EED_low,"0.00"),TEXT(EED_low,"0.00")&" - "&TEXT(EED_high,"0.00")),"NA") -> NA | D19: kWh/1000 gal | E19: For use in populating input sheet guidance
A20: Flow Distribution | B20: flow_dist | C20: =IF(ISBLANK(flow_dist_I),"",VLOOKUP(flow_dist_I,flow_distribution_table,2,FALSE)) -> 1 | D20: <-- 1 for active flow, 2 for passive flow
A21: Include ups | B21: ups | C21: =IF(LEN(UPS_I)=0,"",VLOOKUP(UPS_I,ups_table,2,FALSE)) -> 2 | D21: <-- 1 for yes, 2 for no
A22: Excavation | B22: excavation | C22: =IF(LEN(excavation_I)=0,"",VLOOKUP(excavation_I,excavation_table,2,FALSE)) -> 2 | D22: <-- 1 for yes, 2 for no
A23: Is this an add-on (pre- or post-treatment) | B23: add_on | C23: =IF(add_on_I="add-on",1,0) -> 0 | D23: <-- 1 for yes, 0 for no
A25: Reactor choice
A26: Flow distribution safety factor | B26: flow_dist_sf | C26: =IF(flow_dist=1,0,passive_flow_sf) -> 0 | E26: For active flow control, this is zero.
A28: Log removal required | B28: removal_required | C28: =-LOG((1-Removal_percent_I),10) -> 1 | D28: log
A30: Total power required | B30: total_reactor_power | C30: =IF(EE_type=1,EEO_I*design_flow_rate/1000*60*removal_required,EED_I*design_flow_rate/1000*60) -> 663.5333333 | D30: kW | E30: Based on UV energy required (EED or EE/O and log removal required) and the design flow (converted to thousand gallons per hour).
A32: Reactor characteristics
A33: Number of reactor column to use | B33: max_reactor_col | C33: =MATCH(design_flow,OFFSET(reactor_table_mp,MATCH("min_flow",reactor_table_keys_mp,0)-1,0,1),1) -> 1 | E33: For use in looking up reactor data
A34: Reactor size column to use | B34: reactor_size | C34: =IF(ISNA(HLOOKUP(total_reactor_power, OFFSET(reactor_table_mp,0,0,,max_reactor_col), 1)),1,HLOOKUP(total_reactor_power, OFFSET(reactor_table_mp,0,0,,max_reactor_col), 1)) -> 1 | E34: For use in looking up reactor data
A35: Reactor power | B35: reactor_power | C35: =INDEX(reactor_table_mp, MATCH("reactor_power",reactor_table_keys_mp,0),reactor_size) -> 90 | D35: kW
A36: Hydraulic limit on reactors | B36: hydraulic_limit | C36: =INDEX(reactor_table_mp, MATCH("flow_limit",reactor_table_keys_mp,0),reactor_size) -> 28 | D36: mgd
A37: Total number of reactor trains | B37: tot_num_trains | C37: =ROUNDUP(design_flow/(hydraulic_limit*(1+flow_dist_sf)),0) -> 1 | D37: trains
A38: Flow to each train in gpm | B38: reactor_gpm | C38: =(design_flow/tot_num_trains)*1000000/24/60 -> 1494.444444 | D38: gpm
A39: Reactor power to each train | B39: train_power | C39: =total_reactor_power/tot_num_trains -> 663.5333333 | D39: kW
A40: Reactors per train | B40: reactors_per_train | C40: =ROUNDUP(train_power/reactor_power,0) -> 8 | D40: reactors
A41: Operating number of reactors | B41: op_num_reactors | C41: =reactors_per_train*tot_num_trains -> 8 | D41: reactors
A42: Did user specify number of redundant reactors? | B42: user_spec_rd | C42: =NOT(ISBLANK(NRD_I)) -> FALSE | D42: <-- true or false
A43: Redundant reactors | B43: rd_reactors | C43: =IF(user_spec_rd,NRD_I,IF(rd_reac_freq=0,0,MIN(ROUNDUP(op_num_reactors/rd_reac_freq,0),max_rd_reac))) -> 1 | D43: reactors
A44: Total number of reactors | B44: tot_num_reactors | C44: =op_num_reactors+rd_reactors -> 9 | D44: reactors
A46: Drain valve diameter | B46: drain_valve_diam | C46: =INDEX(reactor_table_mp, MATCH("drain_valve_diam",reactor_table_keys_mp,0),reactor_size) -> 1.5 | D46: in
A47: Lamps per reactor | B47: lamps_per_reactor | C47: =INDEX(reactor_table_mp, MATCH("num_lamps",reactor_table_keys_mp,0),reactor_size) -> 9 | D47: lamps
A48: Lamps per ballast, within a reactor | B48: lamps_per_ballast | C48: =INDEX(reactor_table_mp, MATCH("lamps_per_ballast",reactor_table_keys_mp,0),reactor_size) -> 2 | D48: lamps
A49: Lamps monitored by one intensity sensor | B49: lamps_per_sensor | C49: =INDEX(reactor_table_mp, MATCH("lamps_per_sensor",reactor_table_keys_mp,0),reactor_size) -> 1 | D49: lamps
A50: Reactors per control panel | B50: reactors_per_panel | C50: =INDEX(reactor_table_mp, MATCH("reactors_per_panel",reactor_table_keys_mp,0),reactor_size) -> 1 | D50: reactors
A51: Lamp power | B51: lamp_power | C51: =INDEX(reactor_table_mp, MATCH("lamp_power",reactor_table_keys_mp,0),reactor_size) -> 10000 | D51: W
A52: Maximum ballast power | B52: ballast_power | C52: =INDEX(reactor_table_mp, MATCH("ballast_power",reactor_table_keys_mp,0),reactor_size) -> 20000 | D52: W
A53: Footprint length | B53: reactor_fp_len | C53: =INDEX(reactor_table_mp, MATCH("fp_len",reactor_table_keys_mp,0),reactor_size) -> 2.96 | D53: ft
A54: Footprint width | B54: reactor_fp_wid | C54: =INDEX(reactor_table_mp, MATCH("fp_wid",reactor_table_keys_mp,0),reactor_size) -> 4.34 | D54: ft
A55: Access space - length | B55: reactor_access_len | C55: =MAX(2*space_reactor,INDEX(reactor_table_mp, MATCH("acc_len",reactor_table_keys_mp,0),reactor_size)) -> 6 | D55: ft | E55: Combined space on both ends. Use access space specified for reactor class, or 2*space_reactors CDA, whichever is greater
A56: Access space - width | B56: reactor_access_wid | C56: =MAX(2*space_reactor,INDEX(reactor_table_mp, MATCH("acc_wid",reactor_table_keys_mp,0),reactor_size)) -> 6 | D56: ft | E56: Combined space on both sides. Use access space specified for reactor class, or 2*space_reactors CDA, whichever is greater
A57: Control panel footprint width | B57: panel_fp_wid | C57: =INDEX(reactor_table_mp, MATCH("panel_wid",reactor_table_keys_mp,0),reactor_size) -> 5.17 | D57: ft
A58: Control panel footprint depth | B58: panel_fp_dep | C58: =INDEX(reactor_table_mp, MATCH("panel_dep",reactor_table_keys_mp,0),reactor_size) -> 2.67 | D58: ft
A60: Components
A61: Operating number of lamps | B61: op_lamps | C61: =lamps_per_reactor*tot_num_reactors -> 81 | D61: units
A62: Ballasts per reactor | B62: ballasts_per_reactor | C62: =ROUNDUP(lamps_per_reactor/lamps_per_ballast,0) -> 5 | D62: units/reactor
A63: Operating number of ballasts | B63: op_ballasts | C63: =ballasts_per_reactor*op_num_reactors -> 40 | D63: units
A64: Intensity sensors per reactor | B64: sensors_per_reactor | C64: =ROUNDUP(lamps_per_reactor/lamps_per_sensor,0) -> 9 | D64: units/reactor
A65: Operating number of sensors | B65: op_intensity_sensors | C65: =sensors_per_reactor*op_num_reactors+ref_sensors -> 75 | D65: units
A66: Total number of intensity sensors | B66: total_intensity_sensors | C66: =sensors_per_reactor*tot_num_reactors+ref_sensors -> 84 | D66: units
A67: Total number of control panels | B67: total_control_panels | C67: =ROUNDUP(tot_num_reactors/reactors_per_panel,0) -> 9 | D67: units
A68: Operating UVT monitors | B68: op_UVT_monitors | C68: =UVT_monitors_sp+IF(photo_aop=1,0,UVT_monitors_train*tot_num_trains) -> 2 | D68: units
A69: Total UVT monitors | B69: total_UVT_monitors | C69: =op_UVT_monitors+IF(photo_aop=1,NRD_UVT_mon,0) -> 2 | D69: units
A71: Excavation
A72: Excavation volume Total | B72: excavation_vol | C72: =IF(excavation=2,0,((facil_length+(3*conc_thick)+excavation_depth)*(facil_length+excavation_depth+conc_thick)*(excavation_depth+conc_thick))/27) -> 0 | D72: cubic yd
A73: Backfill volume Total | B73: backfill_vol | C73: =IF(excavation=2,0,excavation_vol-(((facil_length+conc_thick)*facil_length*(excavation_depth+conc_thick))/27)) -> 0 | D73: cubic yd
A74: Railing length Total | B74: railing | C74: =IF(excavation=2,0,4*facil_length) -> 0 | D74: lf
A75: Number of stair risers | B75: risers | C75: =IF(excavation=2,0,ROUNDUP(((excavation_depth*12)/riser_height),0)-1) -> 0 | D75: risers
A76: Concrete volume | B76: concrete_vol | C76: =IF(excavation=2,0,((2*(((facil_length+(2*conc_thick))*excavation_depth*conc_thick)+facil_length*excavation_depth*(conc_thick))+(facil_length+(2*conc_thick))*(facil_length+(2*conc_thick))*conc_thick)/27)) -> 0 | D76: cubic yd

Sheet Oxidant Addition
A1: Oxidant Addition Calculations
A3: Calculation | B3: Range Name | C3: Value | D3: Units | E3: Guidance
A4: Hydrogen Peroxide Addition
A5: Is H2O2 used? | B5: H2O2_used | C5: =IF(photo_aop=2,IF(H2O2_I>0,TRUE,FALSE),FALSE) -> TRUE
A6: H2O2 concentration needed | B6: H2O2_conc_need | C6: =IF(H2O2_used,H2O2_I*dose_SF_I,0) -> 10 | D6: mg/l | E6: from Inputs, including safety factor
A7: H2O2 needed per day (design flow) | B7: H2O2_day | C7: =H2O2_conc_need*design_flow*8.34 -> 179.4768 | D7: lbs/day | E7: as 100% H2O2; 8.34 converts kilograms/L to lbs/gal
A8: H2O2 bulk solution needed per day (design flow) | B8: H2O2_solution_day | C8: =H2O2_day/H2O2_grade/(8.34*H2O2_sg) -> 36.16806723 | D8: gal/day | E8: for H2O2 bulk solution at specified grade
A9: H2O2 bulk solution storage in gallons (average flow) | B9: H2O2_store_gal | C9: =H2O2_solution_day*cstore_days*average_flow/design_flow -> 412.9411765 | D9: gallons
A10: H2O2 bulk solution storage in pounds (average flow) | B10: H2O2_store_lbs | C10: =H2O2_store_gal*(8.34*H2O2_sg) -> 4098.276 | D10: lbs
A12: Hydrogen Peroxide Purchasing
A13: Quantity required for large quantity purchase | C13: =VLOOKUP("Hydrogen Peroxide - Large Qty",chem_break_table_cl,2,FALSE) -> 50000 | D13: lbs | E13: #N/A indicates that price data do not depend on volume purchased.
A14: Quantity required for mid quantity purchase | C14: =VLOOKUP("Hydrogen Peroxide - Mid Qty",chem_break_table_cl,2,FALSE) -> 50000 | D14: lbs | E14: #N/A indicates that price data do not depend on volume purchased.
A15: Quantity required for small quantity purchase | C15: =VLOOKUP("Hydrogen Peroxide - Small Qty",chem_break_table_cl,2,FALSE) -> 0 | D15: lbs | E15: #N/A indicates that price data do not depend on volume purchased.
A16: Purchase Type | B16: H2O2_purchase | C16: =IF(AND(ISNA(C13),ISNA(C14),ISNA(C15)),"",IF(H2O2_store_lbs>=C13," - Large Qty",IF(H2O2_store_lbs>=C14," - Mid Qty"," - Small Qty"))) -> - Small Qty | E16: Returns descriptive term based on volume of each purchase for use in determining pricing. Blank indicates that price data do not depend on volume purchased.
A18: Sodium Hypochlorite Addition
A19: Is chlorine used? | B19: Cl2_used | C19: =IF(photo_aop=3,IF(Cl2_I>0,TRUE,FALSE),FALSE) -> FALSE
A20: Chlorine concentration needed | B20: Cl2_conc_need | C20: =IF(Cl2_used,Cl2_I*dose_SF_I,0) -> 0 | D20: mg/l | E20: from Inputs, including safety factor
A21: Chlorine needed per day (design flow) | B21: chlorine_lbs_day | C21: =design_flow*Cl2_conc_need*8.34 -> 0 | D21: lbs/day | E21: 8.34 converts kilograms/L to lbs/gal
A22: NaOCl bulk solution needed per day (design flow) | B22: NaOCl_day | C22: =chlorine_lbs_day/(chlorine_strength_Na*NaOCl_dens) -> 0 | D22: gal/day
A23: NaOCl bulk solution storage in gallons (average flow) | B23: NaOCl_store_gal | C23: =NaOCl_day*NaOCl_store*average_flow/design_flow -> 0 | D23: gallons
A25: Sodium Hypochlorite Purchasing
A26: Quantity required for large quantity purchase | C26: =VLOOKUP("Sodium Hypochlorite - Large Qty",chem_break_table_cl,2,FALSE) -> 2000 | D26: gal | E26: #N/A indicates that price data do not depend on volume purchased.
A27: Quantity required for mid quantity purchase | C27: =VLOOKUP("Sodium Hypochlorite - Mid Qty",chem_break_table_cl,2,FALSE) -> 550 | D27: gal | E27: #N/A indicates that price data do not depend on volume purchased.
A28: Quantity required for small quantity purchase | C28: =VLOOKUP("Sodium Hypochlorite - Small Qty",chem_break_table_cl,2,FALSE) -> 0 | D28: gal | E28: #N/A indicates that price data do not depend on volume purchased.
A29: Purchase Type | B29: NaOCl_purchase | C29: =IF(AND(ISNA(C26),ISNA(C27),ISNA(C28)),"",IF(NaOCl_store_gal>=C26," - Large Qty",IF(NaOCl_store_gal>=C27," - Mid Qty"," - Small Qty"))) -> - Small Qty | E29: Returns descriptive term based on volume of each purchase for use in determining pricing. Blank indicates that price data do not depend on volume purchased.
A31: Oxidant Injection
A32: Oxidant solution feed rate at design flow | B32: solution_rate | C32: =IF(H2O2_used,H2O2_solution_day,IF(Cl2_used,NaOCl_day,0))/24/tot_num_trains -> 1.507002801 | D32: gph | E32: Assumes one injection point per reactor train
A33: Flow rate for diluted H2O2 at design flow | B33: diluted_rate | C33: =H2O2_solution_day/tot_num_trains*H2O2_grade/H2O2_dilute_conc/24/60 -> 0.2511671335 | D33: gpm | E33: for H2O2 diluted to specified concentration before injection into mainstream
A34: Static mixer/pipe diffuser size | B34: mixer_size | C34: =proc_pipe_diam -> 10 | D34: in | E34: Dilute H2O2 uses inline mixers; NaOCl uses chemical-specific pipe diffusers instead of static mixer. Both are sized based on process pipe size
A35: Number of static mixers/pipe diffusers | B35: n_mixers | C35: =IF(include_cmix=1,tot_num_trains,0) -> 0 | D35: units
A37: Oxidant Storage
A38: Is an oxidant used? | B38: oxidant_used | C38: =OR(H2O2_used,Cl2_used) -> TRUE
A39: Maximum chemical storage tank size for H2O2 | B39: max_H2O2_tank_size | C39: =MAX(VLOOKUP(10^6,pl_cst_cost_cl,1)-1,VLOOKUP(10^6,ss_cst_cost_cl,1)-1) -> 30000 | D39: gallons | E39: Considers compatible materials for H2O2 only: plastic (XLPE) and stainless steel
A40: Maximum chemical storage tank size for NaOCl | B40: max_NaOCl_tank_size | C40: =MAX(VLOOKUP(10^6,pl_cst_cost_cl,1)-1,VLOOKUP(10^6,fg_cst_cost_cl,1)-1) -> 30000 | D40: gallons | E40: Considers compatible materials for NaOCl only: plastic (XLPE) and fiberglass
A41: Maximum chemical storage tank size | B41: max_chem_tank_size | C41: =IF(NOT(oxidant_used),"NA",IF(H2O2_used,max_H2O2_tank_size,max_NaOCl_tank_size)) -> 30000 | D41: gallons | E41: The largest size for which costs are available
A42: Number of chemical storage tanks | B42: chem_tanks | C42: =IF(NOT(oxidant_used),0,ROUNDUP(IF(H2O2_used,H2O2_store_gal,NaOCl_store_gal)/max_chem_tank_size,0)) -> 1 | D42: units
A43: Chemical storage tank size | B43: chem_tank_vol | C43: =IF(NOT(oxidant_used),0,IF(H2O2_used,H2O2_store_gal,NaOCl_store_gal)/chem_tanks) -> 412.9411765 | D43: gal
A44: Day tank storage volume required (based on design flow) | B44: day_tank_vol_needed | C44: =IF(NOT(oxidant_used),0,IF(H2O2_used,H2O2_solution_day,NaOCl_day)) -> 36.16806723 | D44: gallons
A45: Number of day tanks | B45: day_tanks | C45: =IF(day_tank_vol_needed<day_tank_needed,0,ROUNDUP(day_tank_vol_needed/max_chem_tank_size,0)) -> 1 | D45: units
A46: Volume of day tanks | B46: day_tank_vol | C46: =IF(day_tanks=0,0,day_tank_vol_needed/day_tanks) -> 36.16806723 | D46: gallons
A47: Maximum chemical tank mixer horsepower | B47: cmix_hp_max | C47: =MAX(VLOOKUP(10^6,port_mix_cost_cl,1)-0.1,VLOOKUP(10^6,mount_mix_cost_cl,1)-0.1,VLOOKUP(10^6,imp_mix_cost_cl,1)-0.1) -> 30
A48: Mixers per storage tank | B48: cmix_per_tank | C48: =IF(AND(include_cmix=1,chem_tanks<>0),ROUNDUP(chem_tank_vol/1000*cmix_hp_per/cmix_hp_max,0),0) -> 0 | D48: units
A49: Number of storage tank mixers | B49: cmixers | C49: =chem_tanks*cmix_per_tank -> 0 | D49: units
A50: Mixer size for storage tanks | B50: cmix_size | C50: =IF(cmixers<>0,MAX(min_cmix_hp,chem_tank_vol/1000*cmix_hp_per/cmix_per_tank),0) -> 0 | D50: hp
A51: Mixers per day tank | B51: dmix_per_tank | C51: =IF(AND(include_cmix=1,day_tanks<>0),ROUNDUP(day_tank_vol/1000*cmix_hp_per/cmix_hp_max,0),0) -> 0 | D51: units
A52: Number of day tank mixers | B52: dmixers | C52: =day_tanks*dmix_per_tank -> 0 | D52: units
A53: Mixer size for day tanks | B53: dmix_size | C53: =IF(dmixers<>0,MAX(min_cmix_hp,day_tank_vol/1000*cmix_hp_per/cmix_per_tank),0) -> 0 | D53: hp
A55: Secondary Containment for Oxidant Storage Tank
A56: Minimum volume required | B56: chem_stor_cont_volume | C56: =MAX(chem_tanks*chem_tank_vol*sec_cont_pct_of_total,chem_tank_vol*sec_cont_pct_of_largest)/7.48 -> 60.7266436 | D56: cubic feet | E56: 7.48 converts gallons to cubic feet
A57: Footprint available | B57: chem_stor_cont_fp | C57: =IF(chem_tanks=0,0,chem_fp-chem_tanks*PI()*(at_diam/2)^2) -> 63.8788725 | D57: square feet | E57: Total footprint minus displacement by tanks themselves
A58: Curb height required | B58: chem_stor_curb_height | C58: =IF(chem_tanks=0,0,chem_stor_cont_volume/chem_stor_cont_fp+sec_cont_freeboard/12) -> 1.450653029 | D58: feet
A59: Curb thickness | B59: chem_stor_curb_thick | C59: =IF(chem_tanks=0,0,MIN(sec_cont_max_thick,chem_stor_curb_height)) -> 1 | D59: feet
A60: Curb length (long side) | B60: chem_stor_curb_len_long | C60: =IF(chem_tanks=0,0,chem_tanks*at_diam+2*space_at+(chem_tanks-1)*space_at+2*chem_stor_curb_thick) -> 12.5 | D60: feet
A61: Curb length (short side) | B61: chem_stor_curb_len_short | C61: =IF(chem_tanks=0,0,at_diam+2*space_at) -> 10.5 | D61: feet
A62: Curb concrete volume | B62: chem_stor_curb_concrete | C62: =IF(chem_tanks=0,0,ROUNDUP((chem_stor_curb_len_long*2+chem_stor_curb_len_short*2)*chem_stor_curb_height*chem_stor_curb_thick/27,0)) -> 3 | D62: cubic yards | E62: 27 converts cubic feet to cubic yards
A63: Chemical resistant coating required | B63: chem_stor_coating_gal | C63: =IF(chem_tanks=0,0,ROUNDUP((chem_fp+2*(chem_stor_curb_len_long-2*chem_stor_curb_thick)*chem_stor_curb_height+2*chem_stor_curb_len_short*chem_stor_curb_height)/sec_cont_coating_cvg,0)) -> 2 | D63: gallons | E63: Covers total footprint plus inside surface and top of curbs
A65: Secondary Containment for Oxidant Day Tank
A66: Minimum volume required | B66: chem_day_cont_volume | C66: =MAX(day_tanks*day_tank_vol*sec_cont_pct_of_total,day_tank_vol*sec_cont_pct_of_largest)/7.48 -> 5.318833416 | D66: cubic feet | E66: 7.48 converts gallons to cubic feet
A67: Footprint available | B67: chem_day_cont_fp | C67: =IF(day_tanks=0,0,day_tank_fp-day_tanks*PI()*(dt_diam/2)^2) -> 19.23285413 | D67: square feet | E67: Total footprint minus displacement by tanks themselves
A68: Curb height required | B68: chem_day_curb_height | C68: =IF(day_tanks=0,0,chem_day_cont_volume/chem_day_cont_fp+sec_cont_freeboard/12) -> 0.7765493556 | D68: feet
A69: Curb thickness | B69: chem_day_curb_thick | C69: =IF(day_tanks=0,0,MIN(sec_cont_max_thick,chem_day_curb_height)) -> 0.7765493556 | D69: feet
A70: Curb length (long side) | B70: chem_day_curb_len_long | C70: =IF(day_tanks=0,0,day_tanks*dt_diam+2*space_dt+(day_tanks-1)*space_dt+2*chem_day_curb_thick) -> 6.053098711 | D70: feet
A71: Curb length (short side) | B71: chem_day_curb_len_short | C71: =IF(day_tanks=0,0,dt_diam+2*space_dt) -> 4.5 | D71: feet
A72: Curb concrete volume | B72: chem_day_curb_concrete | C72: =IF(day_tanks=0,0,ROUNDUP((chem_day_curb_len_long*2+chem_day_curb_len_short*2)*chem_day_curb_height*chem_day_curb_thick/27,0)) -> 1 | D72: cubic yards | E72: 27 converts cubic feet to cubic yards
A73: Chemical resistant coating required | B73: chem_day_coating_gal | C73: =IF(day_tanks=0,0,ROUNDUP((day_tank_fp+2*(chem_day_curb_len_long-2*chem_day_curb_thick)*chem_day_curb_height+2*chem_day_curb_len_short*chem_day_curb_height)/sec_cont_coating_cvg,0)) -> 1 | D73: gallons | E73: Covers total footprint plus inside surface and top of curbs

Sheet Pumps Pipe Structure
A1: Pumps, Piping, and Structure Calculations
A3: Calculation | B3: Range Name | C3: Value | D3: Units | E3: Guidance
A4: Pump Design
A5: Influent pump rating | B5: pump_rating | C5: =IF(include_pumps_I="",IF(ss_cat2=1,0,MIN(MAX(average_flow_rate,design_flow_rate/2)*(1+pump_safety_factor),max_pump_size)),IF(include_pumps_I=0,0,(design_flow_rate)*(1+pump_safety_factor)/include_pumps_I)) -> 0 | D5: gpm | E5: Includes safety factor
A6: Maximum pump size | B6: max_pump_size | C6: =VLOOKUP(10^6,pump_cost_cl,1)-1 -> 10000 | D6: gpm | E6: The largest pump size for which costs are available.
A7: Number of booster pumps | B7: booster_pumps | C7: =IF(pump_rating=0,0,ROUNDUP(design_flow_rate*(1+pump_safety_factor)/pump_rating,0)) -> 0 | D7: units | E7: Operating pumps
A8: Total booster pumps | B8: total_booster_pumps | C8: =booster_pumps + NRD_pump -> 0 | D8: units | E8: Includes standby pump if specified in the CDA module
A10: Total oxidant metering flow needed | B10: acid_flow_rate | C10: =MAX(min_chem_flow,solution_rate*(1+pump_safety_factor)) -> 1.883753501 | D10: gph | E10: Includes safety factor; assumes separate pumping to each injection point
A11: Maximum chemical metering pump size | B11: max_cm_pump_size | C11: =MAX(IF(H2O2_used,MAX(VLOOKUP(10^6,ss_mmpump_cost_cl,1)-0.01,VLOOKUP(10^6,ss_empump_cost_cl,1)-0.01),0),VLOOKUP(10^6,pvc_mmpump_cost_cl,1)-0.01,VLOOKUP(10^6,pvc_empump_cost_cl,1)-0.01) -> 132 | D11: gph | E11: The largest size for which costs are available; includes PVC only for sodium hypochlorite
A12: Operating oxidant metering pumps per train | B12: acid_pump_per_train | C12: =ROUNDUP(acid_flow_rate/max_cm_pump_size,0) -> 1 | D12: units per train | E12: Multiple pumps used if total flow is very high
A13: Oxidant metering pump rating | B13: acid_pump_rating | C13: =IF(acid_flow_rate>0,acid_flow_rate/acid_pump_per_train,0) -> 1.883753501 | D13: gph
A14: Total number of oxidant metering pumps | B14: acid_pumps | C14: =acid_pump_per_train*tot_num_trains+NRD_cm_pump -> 2 | D14: units | E14: Includes operating pumps for each train and any redundant pumps
A16: Piping Design
A17: Influent and treated water pipe length | B17: in_out_pipe_length | C17: =in_out_pipe_mult*facil_length -> 120 | D17: linear feet
A18: Influent and treated water pipe flow | B18: in_out_pipe_flow | C18: =design_flow_rate -> 1494.444444 | D18: gpm
A19: Influent and treated water piping diameter | B19: in_out_pipe_diam | C19: =VLOOKUP(in_out_pipe_flow,pipe_size_table_cl,2) -> 10 | D19: inches
A20: Process piping length | B20: proc_pipe_length | C20: =proc_pipe_mult*facil_length -> 120 | D20: linear feet
A21: Process pipe diameter | B21: proc_pipe_diam | C21: =VLOOKUP(reactor_gpm,pipe_size_table_cl,2) -> 10 | D21: inches | E21: Half the process piping has a diameter from the pipe size table, based on the flow to one reactor.
A22: Oxidant piping length | B22: acid_pipe_length | C22: =IF(oxidant_used,chem_pipe_mult*facil_length,0) -> 60 | D22: linear feet
A23: Oxidant pipe flow | B23: acid_pipe_flow | C23: =IF(NOT(oxidant_used),0,IF(H2O2_used,diluted_rate,solution_rate*60)) -> 0.2511671335 | D23: gpm | E23: For H2O2, flow is based on diluted hydrogen peroxide; commercial strength H2O2 will be injected into this pipe and then returned to the main feed line for mixing. For NaOCl, 60 converts gph to gpm
A24: Oxidant pipe diameter | B24: acid_pipe_diam | C24: =IF(acid_pipe_flow=0,0,VLOOKUP(acid_pipe_flow,pipe_size_table_cl,2)) -> 0.5 | D24: inches
A25: Drain pipe length | B25: drain_pipe_length | C25: =drain_pipe_mult*facil_length -> 60 | D25: linear feet
A26: Drain pipe diameter | B26: drain_pipe_diam | C26: =drain_valve_diam -> 1.5 | D26: inches
A28: Building Structure
A29: Diameter of oxidant storage tank | B29: at_diam | C29: =ROUNDUP(2*(MAX((2*chem_tank_vol/7.48/PI())^(1/3),(4*chem_tank_vol/7.48/PI()/(Building_height-ceiling_clearance))^(1/2))),0)/2 -> 3.5 | D29: feet | E29: Assumes the tank is twice as tall as it is wide, unless the height would exceed the ceiling height minus a 3-foot clearance
A30: Oxidant day tank diameter | B30: dt_diam | C30: =ROUNDUP(2*(MAX((2*day_tank_vol/7.48/PI())^(1/3),(4*day_tank_vol/7.48/PI()/(Building_height-ceiling_clearance))^(1/2))),0)/2 -> 1.5 | D30: feet
A31: Maximum access space for oxidant tank | B31: space_acid_tank | C31: =IF(ss_cat2=1,max_space_tank_small,max_space_tank_large) -> 6 | D31: feet
A32: Access space for oxidant tank | B32: space_at | C32: =MIN(at_diam,space_acid_tank) -> 3.5 | D32: feet
A33: Access space per oxidant day tank | B33: space_dt | C33: =IF(dt_diam>space_acid_tank,space_acid_tank,dt_diam) -> 1.5 | D33: feet
A34: Reactor area | B34: reactor_fp | C34: =ROUNDUP((reactor_fp_wid+reactor_access_wid)*(reactor_fp_len+reactor_access_len)+(tot_num_reactors-1)*(reactor_fp_wid+0.5*reactor_access_wid)*(reactor_fp_len+0.5*reactor_access_len),0) -> 443 | D34: square ft | E34: includes access space before/after reactors and between trains
A35: Footprint for booster pumps | C35: =IF(total_booster_pumps=0,0,ROUNDUP((VLOOKUP(pump_rating,pump_dim_table_cl,3)+space_pumps)*(VLOOKUP(pump_rating,pump_dim_table_cl,4)+2*space_pumps)+(total_booster_pumps-1)*(VLOOKUP(pump_rating,pump_dim_table_cl,3)+space_pumps)*(VLOOKUP(pump_rating,pump_dim_table_cl,4)+space_pumps),0)) -> 0 | D35: square ft
A36: Total footprint for pumps | B36: pump_fp | C36: =C35 -> 0 | D36: square ft
A37: Control Panel | B37: cntrl_fp | C37: =IF(panel_fp_wid=0,0,ROUNDUP((panel_fp_wid+2*cntrl_space)*(panel_fp_dep+cntrl_space)+(total_control_panels-1)*(panel_fp_wid+cntrl_space)*(panel_fp_dep+2*cntrl_space),0)) -> 426 | D37: square ft | E37: if the panel size is zero, it is included in the reactor footprint
A38: UPS footprint | B38: ups_fp | C38: =IF(ups=2,0,ROUNDUP((ups_width+2*UPS_space)*(ups_depth+2*UPS_space)+(num_UPS-1)*(ups_width+UPS_space)*(ups_depth+UPS_space),0)) -> 0 | D38: square ft | E38: UPS and batteries
A39: Storage | B39: storage_fp | C39: =reactor_fp*storage -> 88.6 | D39: square ft | E39: computed as fraction of reactor footprint
A40: Oxidant storage footprint | B40: chem_fp | C40: =((at_diam+2*space_at)*(at_diam+space_at)+(chem_tanks-1)*(at_diam+space_at)*(at_diam+space_at)) -> 73.5 | D40: square ft | E40: storage tank only - metering pump footprint is assumed to be negligible
A41: Day tank footprint | B41: day_tank_fp | C41: =ROUNDUP((dt_diam+2*space_dt)^2+(day_tanks-1)*(dt_diam+2*space_dt)*(dt_diam+space_dt),0) -> 21 | D41: square ft
A42: Office space | B42: office_fp | C42: =VLOOKUP(design_flow,backfill_cost_cl,3)*IF(ss_cat2=1,space_office_small,space_office) -> 1865 | D42: square ft
A43: Exact building footprint required | B43: fp_required | C43: =reactor_fp+pump_fp+cntrl_fp+ups_fp+storage_fp+chem_fp+office_fp+day_tank_fp -> 2917.1 | D43: square ft
A44: Building 1 footprint | B44: build1_fp | C44: =IF(ROUNDUP(fp_required,-1)>add_2nd_building,ROUNDUP(reactor_fp+ups_fp,-1),ROUNDUP(reactor_fp+pump_fp+cntrl_fp+ups_fp+storage_fp+chem_fp+day_tank_fp+office_fp,-1)) -> 2920 | D44: square ft
A45: Building 2 footprint | B45: build2_fp | C45: =IF(ROUNDUP(fp_required,-1)>add_2nd_building,ROUNDUP(pump_fp+cntrl_fp+storage_fp+chem_fp+office_fp+day_tank_fp,-1),0) -> 0 | D45: square ft
A46: Total building footprint | B46: total_fp | C46: =build1_fp+build2_fp -> 2920 | D46: square ft
A47: Concrete Class A for vessel and pumps padding | B47: concrete | C47: =ROUNDUP((total_fp-office_fp)*IF(ss_cat2=1,pad_thick_small,pad_thick)/27,0) -> 20 | D47: cubic yards
A48: Facility dimension assumed square | B48: facil_length | C48: =ROUNDUP(total_fp^0.5,-1) -> 60 | D48: feet
A49: Land needed | B49: land_required | C49: =ROUNDUP(((build1_fp)^0.5+(2*non_fire_buffer))*((build1_fp)^0.5+(non_fire_buffer+fire_buffer))+IF(build2_fp=0,0,((build2_fp)^0.5+(2*non_fire_buffer))*((build2_fp)^0.5+(non_fire_buffer+fire_buffer))),-2)/43560 -> 0.1790633609 | D49: acre
A50: Land Cost per acre | B50: land_cost_cl | C50: =VLOOKUP(design_flow,land_cost_cl,3) -> 31219.84584 | D50: $/acre

Sheet Instrumentation and Control
A1: Instrumentation and Control Calculations
A3: Calculation | B3: Range Name | C3: Value | D3: Units | E3: Guidance
A4: From Inputs
A5: Component level | B5: component_level | C5: =IF(component_level_I="high cost",2,IF(component_level_I="mid cost",1,"")) ->  | D5: blank = low cost, 1 = mid cost, 2 = high cost
A6: Manual system controls | B6: manual | C6: =IF(ISBLANK(manual_I),IF(design_flow>=1,3,IF(flow_dist=1,3,IF(component_level="",1,IF(component_level=2,3,CHOOSE(ss_cat2,1,3,3))))),VLOOKUP(manual_I,auto_table,2,FALSE)) -> 3 | D6: 1 = fully manual system, 2 = semi-automated system, 3 = fully automated system. | E6: Based on system size and component level (see cell comment), unless user overrides on input sheet
A8: Reactor UPS and associated batteries
A9: Max power per reactor | B9: max_power_reactor | C9: =total_reactor_power/op_num_reactors -> 82.94166667 | D9: kW
A10: Power consumption, all panels | B10: max_uv_power | C10: =max_power_reactor*op_num_reactors -> 663.5333333 | D10: kW
A11: Maximum UPS capacity available | B11: max_UPS | C11: =VLOOKUP(10^6,UV_UPS_cost_cl,1)-1 -> 9.01 | D11: kVA
A12: Number of UPS units | B12: num_UPS | C12: =IF(ups=1,ROUNDUP(total_reactor_power/max_UPS,0),0) -> 0
A13: UPS size | B13: UPS_capacity | C13: =IF(ups=1,total_reactor_power/num_UPS,0) -> 0 | D13: kW
A14: UPS footprint | B14: single_ups_fp | C14: =VLOOKUP(UPS_capacity,ups_fp_table,3) -> 0.8 | D14: sq ft | E14: before access space is taken into account
A15: UPS width | B15: ups_width | C15: =SQRT(single_ups_fp*2) -> 1.264911064 | D15: ft | E15: assuming 2:1 width:depth ratio
A16: UPS depth | B16: ups_depth | C16: =single_ups_fp/ups_width -> 0.632455532 | D16: ft
A18: Valves and Instrumentation
A19: Size of valves for influent line | B19: in_valve_size | C19: =in_out_pipe_diam -> 10 | D19: inches
A20: Size of valves for treatment line | B20: proc_valve_size | C20: =proc_pipe_diam -> 10 | D20: inches
A21: Size of valves for oxidant pipe lines | B21: acid_valve_size | C21: =acid_pipe_diam -> 0.5 | D21: inches
A22: Size of valves for drain | B22: drain_valve_size | C22: =drain_valve_diam -> 1.5 | D22: inches
A24: Number of MOVs on process line for reactor trains | B24: proc_MOV_reactor | C24: =tot_num_trains*VLOOKUP("proc_mov_train",valve_table,manual+1,FALSE)+tot_num_reactors*VLOOKUP("proc_mov_reactor", valve_table, manual+1, FALSE) -> 10 | D24: valves
A25: Number of MOVs for process line | B25: tot_proc_MOVs | C25: =proc_MOV_reactor+total_booster_pumps*VLOOKUP("proc_MOV_pump",valve_table,manual+1,FALSE) -> 10 | D25: valves
A26: Number of MOVs for oxidant line | B26: tot_acid_MOVs | C26: =VLOOKUP("acid_MOV_pump",valve_table,manual+1,FALSE)*acid_pumps+VLOOKUP("chem_MOV_day",valve_table,manual+1,FALSE)*day_tanks -> 5 | D26: valves
A27: Total number of MOVs | B27: tot_MOVs | C27: =tot_proc_MOVs+tot_acid_MOVs -> 15 | D27: valves
A29: Number of manual valves on influent and treated water line | B29: tot_man_valves | C29: =IF(add_on=1,in_man_addon,in_man) -> 2 | D29: valves
A30: Number of manual valves on process line for reactor trains | B30: proc_man_reactor_cont | C30: =tot_num_trains*VLOOKUP("proc_man_train",valve_table,manual+1,FALSE)+tot_num_reactors*VLOOKUP("proc_man_reactor", valve_table, manual+1, FALSE) -> 9 | D30: valves
A31: Number of manual valves for process line | B31: tot_proc_man | C31: =proc_man_reactor_cont+total_booster_pumps*VLOOKUP("proc_man_pump",valve_table,manual+1,FALSE) -> 9 | D31: valves
A32: Number of manual valves for oxidant line | B32: tot_acid_man | C32: =VLOOKUP("acid_man_pump",valve_table,manual+1,FALSE)*acid_pumps+VLOOKUP("chem_man_day",valve_table,manual+1,FALSE)*day_tanks -> 0 | D32: valves
A34: Number of check valves for oxidant line | B34: tot_acid_chv | C34: =acid_pumps*acid_chv_pump -> 4 | D34: units
A35: pH meters per treatment train | B35: train_pH_meters | C35: =CHOOSE(photo_aop,train_pH_meters_1,train_pH_meters_2,train_pH_meters_3) -> 0 | D35: units
A36: Total pH meters | B36: tot_pH_meters | C36: =inf_pH_meter+train_pH_meters*tot_num_trains+eff_pH_meter -> 0 | D36: units
A37: Total turbidity meters | B37: tot_turb_meters | C37: =Inf_turb_meters+train_turb_meters*tot_num_reactors+eff_turb_meters -> 0 | D37: units
A38: Total temp controls | B38: tot_temp_meters | C38: =inf_temp_meter+train_temp_meter*tot_num_reactors+eff_temp_meter -> 9 | D38: units
A39: Total chlorine residual analyzers | B39: tot_cl_analy | C39: =IF(photo_aop=3,train_cl_anal*tot_num_trains,0) -> 0 | D39: units
A41: Size of check valve for pump | B41: check_valve_size | C41: =in_valve_size -> 10 | D41: inches
A42: Number of check valves for process line | B42: tot_check_valve | C42: =cvalve_pump*total_booster_pumps -> 0 | D42: valves
A43: Number of total drain valves | B43: tot_drain_valves | C43: =tot_num_reactors -> 9 | D43: valves
A45: Size of flow meters for influent line | B45: in_meter_size | C45: =in_out_pipe_diam -> 10 | D45: inches
A46: Size of flow meters for process line | B46: proc_meter_size | C46: =proc_pipe_diam -> 10 | D46: inches
A47: Number of flow meters for influent and treated water line | B47: tot_fm_in | C47: =IF(add_on=1,fm_in_addon,fm_in) -> 0 | D47: units
A48: Number of flow meters for treatment lines | B48: tot_fm_proc | C48: =IF(tot_num_trains=1,tot_fm_in,IF(flow_dist=1,tot_num_trains*fm_treat,tot_num_reactors*fm_treat_passive)) -> 0 | D48: units
A50: Total chemical cleaning tank level alarms | B50: tot_level_switch | C50: =level_switch*(chem_tanks+day_tanks) -> 4 | D50: units
A51: Total minor switch/alarms for reactors | B51: tot_minor_switch | C51: =tot_num_reactors*minor_alarm -> 9 | D51: units
A52: Total major switch/alarms for reactors | B52: tot_major_switch | C52: =tot_num_reactors*major_alarm -> 9 | D52: units
A53: Total drive controllers | B53: tot_switches | C53: =IF(manual<>3,0,S_booster_pump*total_booster_pumps+S_cm_pump*acid_pumps+S_mix*(cmixers+dmixers)) -> 2 | D53: units
A55: System Controls
A56: Flow meter lookup code - influent and treated water | B56: fm_lkp_io | C56: =IF(OUTPUT!L135=1,"flow_op",IF(OUTPUT!L136=1,"flow_prop",IF(OUTPUT!L137=1,"flow_ven","flow_mag"))) -> flow_mag | E56: These codes are used to look up SCADA requirements, which depend on the type of flow meter selected.
A57: Flow meter lookup code - process | B57: fm_lkp_proc | C57: =IF(OUTPUT!L140=1,"flow_op",IF(OUTPUT!L141=1,"flow_prop",IF(OUTPUT!L142=1,"flow_ven","flow_mag"))) -> flow_mag
A58: Total discrete inputs | B58: discrete_inputs | C58: =VLOOKUP(fm_lkp_io,port_table,2,FALSE)*tot_fm_in+VLOOKUP(fm_lkp_proc,port_table,2,FALSE)*tot_fm_proc+VLOOKUP("alarm",port_table,2,FALSE)*(tot_minor_switch+tot_major_switch)+VLOOKUP("ph",port_table,2,FALSE)*tot_pH_meters+VLOOKUP("temp",port_table,2,FALSE)*tot_temp_meters+VLOOKUP("turb",port_table,2,FALSE)*tot_turb_meters+VLOOKUP("switch",port_table,2,FALSE)*tot_switches+VLOOKUP("panel",port_table,2,FALSE)*total_control_panels+VLOOKUP("cl",port_table,2,FALSE)*tot_cl_analy+VLOOKUP("valve",port_table,2,FALSE)*tot_MOVs -> 33 | D58: units
A59: Total discrete outputs | B59: discrete_outputs | C59: =IF(manual=2,0,VLOOKUP(fm_lkp_io,port_table,3,FALSE)*tot_fm_in+VLOOKUP(fm_lkp_proc,port_table,3,FALSE)+VLOOKUP("alarm",port_table,3,FALSE)*(tot_minor_switch+tot_major_switch)+VLOOKUP("ph",port_table,3,FALSE)*tot_pH_meters+VLOOKUP("temp",port_table,3,FALSE)*tot_temp_meters+VLOOKUP("turb",port_table,3,FALSE)*tot_turb_meters+VLOOKUP("switch",port_table,3,FALSE)*tot_switches+VLOOKUP("panel",port_table,3,FALSE)*total_control_panels+VLOOKUP("cl",port_table,3,FALSE)*tot_cl_analy+VLOOKUP("valve",port_table,3,FALSE)*tot_MOVs) -> 29 | D59: units
A60: Total analog inputs | B60: analog_inputs | C60: =VLOOKUP(fm_lkp_io,port_table,4,FALSE)*tot_fm_in+VLOOKUP(fm_lkp_proc,port_table,4,FALSE)*tot_fm_proc+VLOOKUP("alarm",port_table,4,FALSE)*(tot_minor_switch+tot_major_switch)+VLOOKUP("ph",port_table,4,FALSE)*tot_pH_meters+VLOOKUP("temp",port_table,4,FALSE)*tot_temp_meters+VLOOKUP("turb",port_table,4,FALSE)*tot_turb_meters+VLOOKUP("switch",port_table,4,FALSE)*tot_switches+VLOOKUP("panel",port_table,4,FALSE)*total_control_panels+VLOOKUP("cl",port_table,4,FALSE)*tot_cl_analy+VLOOKUP("valve",port_table,4,FALSE)*tot_MOVs -> 24 | D60: units
A61: Total analog outputs | B61: analog_outputs | C61: =IF(manual=2,0,VLOOKUP(fm_lkp_io,port_table,5,FALSE)*tot_fm_in+VLOOKUP(fm_lkp_proc,port_table,5,FALSE)*tot_fm_proc+VLOOKUP("alarm",port_table,5,FALSE)*(tot_minor_switch+tot_major_switch)+VLOOKUP("ph",port_table,5,FALSE)*tot_pH_meters+VLOOKUP("temp",port_table,5,FALSE)*tot_temp_meters+VLOOKUP("turb",port_table,5,FALSE)*tot_turb_meters+VLOOKUP("switch",port_table,5,FALSE)*tot_switches+VLOOKUP("panel",port_table,5,FALSE)*total_control_panels+VLOOKUP("cl",port_table,5,FALSE)*tot_cl_analy+VLOOKUP("valve",port_table,5,FALSE)*tot_MOVs) -> 15 | D61: units
A62: I/O Discrete Output Modules | B62: plc_discrete_output | C62: =ROUNDUP(discrete_outputs/32,0) -> 1 | D62: units
A63: I/O Discrete Input Modules | B63: plc_discrete_input | C63: =ROUNDUP(discrete_inputs/32,0) -> 2 | D63: units
A64: I/O Combination Analog Modules | B64: plc_combination_analog | C64: =ROUNDUP((analog_inputs + analog_outputs)/12,0) -> 4 | D64: units
A65: Number of CPUs | B65: plc_cpu | C65: =IF(add_on=1,plc_cpu_addon,plc_cpu_standalone) -> 2 | D65: units
A66: Ethernet modules | B66: plc_ethernet | C66: =IF(add_on=1,plc_ethernet_addon,plc_ethernet_standalone) -> 2 | D66: units
A67: Total number of PLC slots used | B67: plc_slots | C67: =plc_cpu + plc_ethernet + plc_discrete_input + plc_discrete_output + plc_combination_analog -> 11 | D67: units
A68: Expansions required | B68: plc_expansions | C68: =IF(plc_slots<=9,0,ROUNDUP((plc_slots-9)/8,0)) -> 1 | D68: units
A69: PLC Rack/Power Supplies | B69: plc_rack | C69: =IF(AND(add_on=1,plc_rack_addon=0),0,1+plc_expansions) -> 2 | D69: units
A70: Base Expansion Modules | B70: plc_base_expansion | C70: =plc_expansions -> 1 | D70: units
A71: Base Expansion Controller Modules | B71: plc_base_expansion_controller | C71: =plc_expansions -> 1 | D71: units
A72: Operator interfaces | B72: plc_interface | C72: =IF(add_on=1,plc_interface_addon,plc_interface_standalone) -> 2 | D72: units
A73: UPSs | B73: ups_plc | C73: =IF(add_on=1,ups_addon,ups_standalone) -> 1 | D73: unit
A74: Number of computer workstations | B74: workstations | C74: =IF(AND(add_on=1,workstation_addon=0),0,ROUNDUP(Operator_LOE/2080/shifts_day/workstation_ratio,0)) -> 1 | D74: units
A75: Number of printers | B75: printers | C75: =IF(AND(add_on=1,printer_addon=0),0,ROUNDUP(workstations/printer_ratio,0)) -> 1 | D75: units

Sheet O&M
A1: Operation and Maintenance Calculations
A3: Calculation | B3: Range Name | C3: Value | D3: Units | E3: Guidance
A4: Reactor Energy
A5: Fraction of time that reactors operate, on average | B5: op_frac | C5: =average_flow/design_flow -> 0.3805762082 | E5: average flow over design flow
A6: Power required at design flow | B6: total_reactor_power | C6: =total_reactor_power -> 663.5333333 | D6: kW | E6: reflected from Reactor Design module
A7: Average day energy consumption | B7: energy_day | C7: =op_frac*total_reactor_power*24 -> 6060.6 | D7: kWh
A8: Annual energy consumption for UV reactors | B8: UV_energy | C8: =energy_day*365/1000 -> 2212.119 | D8: MWh/yr
A11: Maintenance Materials
A12: UV reactor maintenance frequencies
A13: Lamp life | B13: lamp_life | C13: =lamp_life_MP -> 5000 | D13: hours
A14: Lamp replacement frequency, per lamp | B14: lamp_freq | C14: =(24*365.25/lamp_life)*op_frac -> 0.6672262082 | D14: /yr | E14: Including fraction of time in typical operation
A15: Lamp replacements per year | B15: lamp_replacements | C15: =op_lamps*lamp_freq -> 54.04532286 | D15: /yr
A16: Ballast replacements per year | B16: ballast_replacements | C16: =op_ballasts/ballast_life -> 4 | D16: /year
A17: UV sensor replacements per year | B17: sensor_replacements | C17: =op_intensity_sensors/sensor_life -> 15 | D17: /year
A19: Booster pumps
A20: Material cost | B20: pump_mtl | C20: =IF(total_booster_pumps=0,0,booster_pump_maintenance*OUTPUT!J112) -> 0 | D20: /yr
A22: Oxidant
A23: Hydrogen peroxide bulk solution per year | B23: H2O2_yr | C23: =H2O2_solution_day*average_flow/design_flow*365*(8.34*H2O2_sg) -> 49862.358 | D23: lbs/yr
A24: Sodium hypochlorite bulk solution per year | B24: NaOCl_yr | C24: =NaOCl_day*average_flow/design_flow*365 -> 0 | D24: gal/yr
A26: Labor
A27: General Labor
A28: Number of process instruments for operation | B28: tot_inst | C28: =tot_level_switch+tot_fm_proc+tot_fm_in+tot_pH_meters+tot_turb_meters+tot_temp_meters+tot_cl_analy -> 13 | E28: Instruments requiring daily observation
A29: Total number of instruments for maintenance | B29: tot_inst_maint | C29: =tot_level_switch+tot_fm_proc+tot_fm_in+tot_pH_meters+tot_turb_meters+tot_temp_meters+tot_cl_analy -> 13 | E29: All instruments for preventative maintenance
A30: Number of process pumps for operation | B30: tot_pumps | C30: =booster_pumps+acid_pumps -> 2 | E30: Pumps requiring daily observation/adjustment
A31: Total number of pumps for maintenance | B31: tot_pumps_maint | C31: =booster_pumps -> 0 | E31: Large, frequently operated pumps require preventative maintenance
A32: Number of process valves | B32: tot_valves | C32: =tot_proc_MOVs+proc_man_reactor_cont*tot_num_reactors+total_booster_pumps*VLOOKUP("proc_man_pump",valve_table,manual+1,FALSE) -> 91 | E32: Main process valves require frequent operation and preventative maintenance
A33: Number of chemical supplies | B33: tot_chem | C33: =chem_tanks -> 1
A35: Record system operating parameters (includes routine sampling) | C35: =IF(manual=1,tot_inst*uloe_inst*365/60,uloe_inst_auto*365/60) -> 30.41666667 | D35: hr/yr
A36: Preventative maintenance and calibration of instruments | C36: =tot_inst_maint*uloe_inst_maint*12/60 -> 26 | D36: hr/yr
A37: Verify/adjust pump operating parameters | C37: =IF(OR(manual=1,manual=2),tot_pumps*uloe_pump*365/60,0) -> 0 | D37: hr/yr
A38: Preventative maintenance of pumps | C38: =tot_pumps_maint*uloe_pump_maint -> 0 | D38: hr/yr
A39: Verify/adjust valve positions | C39: =IF(OR(manual=1,manual=2),tot_valves*uloe_valve*52/60,0) -> 0 | D39: hr/yr
A40: Preventative maintenance and inspection of valves | C40: =tot_valves*uloe_valve_maint/60 -> 7.583333333 | D40: hr/yr
A41: Visual inspection of facility | C41: =total_fp/100*uloe_fp*365/60 -> 177.6333333 | D41: hr/yr
A42: Maintain/inspect chemical supply | C42: =tot_chem*uloe_chem_maint*12/60 -> 24 | D42: hr/yr
A43: General Operator Labor | B43: General_Oper_Labor | C43: =SUM(C35:C42) -> 265.6333333 | D43: hr/yr
A45: Technology-specific Labor
A46: Reactor inspection | B46: inspect_labor | C46: =IF(manual=3,0,op_num_reactors*reactor_insp_labor*365/60) -> 0 | D46: hrs/yr | E46: Only for manual systems; otherwise, assumed included in facility inspection labor below.
A47: Lamp replacement | B47: UV_light_labor | C47: =lamp_replacements*labor_per_lamp/60 -> 4.503776905 | D47: hrs/yr
A48: Sleeve examination | B48: sleeve_exam_labor | C48: =op_num_reactors*labor_per_sleeve_inspect*sleeve_exam_freq/60 -> 10.66666667 | D48: hrs/yr | E48: Examine one sleeve per reactor, with frequency specified in O&M assumptions.
A49: Ballast replacement | B49: ballast_labor | C49: =ballast_replacements*labor_per_ballast -> 6 | D49: hrs/yr
A50: Calibration of UV sensors and UVT monitor | B50: calibration_labor | C50: =(total_intensity_sensors*labor_calibration_sensor*(12/60))+(total_UVT_monitors*labor_calibration_UVT*(52/60)) -> 556 | D50: hrs/yr
A51: UV sensor replacement | B51: sensor_labor | C51: =sensor_replacements*labor_per_sensor/60 -> 3.75 | D51: hrs/yr
A52: Lamp output check, place lamps near intensity sensor | B52: lamp_output_labor | C52: =IF(lamps_per_sensor=1,0,((lamps_per_sensor*labor_per_lamp*sensors_per_reactor*tot_num_reactors*MP_variability_freq)/60)) -> 0 | D52: hrs/yr
A53: Cleaning system effectivenesss check | B53: effectiveness_labor | C53: =tot_num_reactors*labor_autoclean_eff*autoclean_eff_freq -> 18 | D53: hrs/yr
A54: Monitoring and reporting | B54: reporting_labor | C54: =IF(manual=1,(labor_report*(365/60)),0) -> 0 | D54: hrs/yr
A55: Total reactor labor | B55: tot_reactor_labor | C55: =inspect_labor+ballast_labor+sleeve_exam_labor+UV_light_labor+sensor_labor+calibration_labor+effectiveness_labor+reporting_labor+lamp_output_labor -> 598.9204436 | D55: hrs/yr
A57: Annual Operator LOE | B57: Operator_LOE | C57: =General_oper_labor+tot_reactor_labor -> 864.5537769 | D57: hr/yr | E57: Subtotal above + building + booster pumps + residuals pumps
A58: Annual Manager LOE | B58: Manager_LOE | C58: =Operator_LOE*Manager_percent -> 86.45537769 | D58: hr/yr | E58: Based on general operator labor and percentages in critical design assumptions
A59: Annual Administrative LOE | B59: Clerical_LOE | C59: =Operator_LOE*Clerical_percent -> 86.45537769 | D59: hr/yr | E59: Based on general operator labor and percentages in critical design assumptions
A61: Building and HVAC Maintenance
A62: Cost excluding heating and cooling | C62: =IF(include_buildings=0,0,building_matl_rate_cl*total_fp) -> 18918.76332 | D62: /yr | E62: Labor and materials; includes routine in-house maintenance and major repairs
A63: Cost to maintain heating system, building 1 | C63: =build1_need_heat*heating_matl_rate_cl*build1_fp -> 433.8401377 | D63: /yr
A64: Cost to maintain cooling system, building 1 | C64: =build1_need_cool*cooling_matl_rate_cl*build1_fp -> 0 | D64: /yr
A65: Cost to maintain heating system, building 2 | C65: =build2_need_heat*heating_matl_rate_cl*build2_fp -> 0 | D65: /yr
A66: Cost to maintain cooling system, building 2 | C66: =build2_need_cool*cooling_matl_rate_cl*build2_fp -> 0 | D66: /yr
A67: Total annual building and HVAC maintenance | B67: bldg_maint_cost | C67: =SUM(C62:C66) -> 19352.60346 | E67: Includes labor and materials
A69: Other Energy
A70: Booster Pumps | E70: Other pumps and mechanical equipment used infrequently. Therefore, these energy costs may be assumed covered by overall process and building energy costs.
A71: Booster pump operating horsepower | B71: pump_hp | C71: =IF(total_booster_pumps=0,0,average_flow_rate*booster_pump_head/booster_pumps/booster_pump_efficiency/14.7*33.9*8.34/550/60) -> 0 | D71: hp
A72: Energy per booster pump | C72: =C71*0.7457/1000*24*365 -> 0 | D72: MWh/yr
A73: Energy for all active booster pumps | B73: pump_energy | C73: =C72*booster_pumps -> 0 | D73: MWh/yr
A75: Building Lighting
A76: Lighting power per sf, building 1 | B76: lighting_energy_1 | C76: =IF(OR(build1_fp<500,component_level=""),lighting_power_low,CHOOSE(component_level,lighting_power_mid,lighting_power_high))*24*365/1000 -> 2.628 | D76: kWh/sf/yr
A77: Lighting power per sf, building 2 | B77: lighting_energy_2 | C77: =IF(OR(build2_fp<500,component_level=""),lighting_power_low,CHOOSE(component_level,lighting_power_mid,lighting_power_high))*24*365/1000 -> 2.628 | D77: kWh/sf/yr
A78: Lighting | B78: lighting | C78: =IF(include_buildings=0,0,MIN(1,Operator_LOE/(24*365))*(build1_fp*lighting_energy_1+build2_fp*lighting_energy_2)/1000) -> 0.7573491086 | D78: MWh/yr
A80: HVAC
A81: Heating energy usage for:
A82: Electric resistance | B82: heating | C82: =IF(build1_heat=A82,VLOOKUP(A82,build1_heat_options, 7,FALSE),0)+IF(build2_heat=A82,VLOOKUP(A82,build2_heat_options, 7,FALSE),0) -> 0 | D82: MWh/yr
A83: Natural gas non-condensing furnace | B83: heating_gas_non | C83: 0 | D83: therms/yr
A84: Natural gas condensing furnace | B84: heating_gas | C84: 8252.14442 | D84: therms/yr
A85: Standard efficiency oil furnace | B85: heating_diesel_non | C85: 0 | D85: gal/yr
A86: Mid-efficiency oil furnace | B86: heating_diesel | C86: 0 | D86: gal/yr
A87: Heat pump | B87: heating_hp | C87: 0 | D87: MWh/yr
A89: Cooling energy usage for:
A90: Air conditioner | B90: cooling | C90: =IF(build1_cool=A90,VLOOKUP(A90,build1_cool_options, 7,FALSE),0)+IF(build2_cool=A90,VLOOKUP(A90,build2_cool_options, 7,FALSE),0) -> 0 | D90: MWh/yr
A91: Heat pump | B91: cooling_hp | C91: =IF(build1_cool=A91,VLOOKUP(A91,build1_cool_options, 7,FALSE),0)+IF(build2_cool=A91,VLOOKUP(A91,build2_cool_options, 7,FALSE),0) -> 0 | D91: MWh/yr
A93: Spent Material Annual Disposal Fees
A94: Disposal Weight | B94: res_year | C94: =(lamp_replacements*weight_lamp+ballast_replacements*weight_ballast+sensor_replacements*weight_sensor)/2000 -> 0.6428399215 | D94: ton/yr
A95: Disposal Cost | C95: =res_year*IF(res_haz=1,haz_disposal_cost_cl,nonhaz_disposal_cost_cl) -> 70.73644579 | D95: $/yr
A96: Transportation Cost | C96: =res_year*IF(res_haz=1,haz_miles*haz_transportation_cost_cl,non_haz_miles*nonhaz_transportation_cost_cl) -> 1.362685255 | D96: $/yr
A97: Total annual spent material diposal fee | B97: disposal_fee | C97: =C95+C96 -> 72.09913105 | D97: $/yr

Sheet HVAC
A1: Building Heating, Ventilating, and Air Conditioning Calculations
A3: Calculation | B3: Range Name | C3: Value | D3: Units | E3: Guidance
A4: General information
A5: System size | B5: ss_cat2 | C5: =IF(design_flow<1,1,IF(design_flow<10,2,3)) -> 2 | D5: 1 indicates small system, 2 indicates medium, 3 indicates large
E6: ss_cat2 is used to select ventilation requirements and building type
A7: Buiding 1 length and width | B7: build1_side | C7: =build1_fp^0.5 -> 54.03702434 | D7: ft
A8: Building 2 length and width | B8: build2_side | C8: =build2_fp^0.5 -> 0 | D8: ft
A9: Include HVAC? | B9: include_HVAC | C9: =IF(include_HVAC_I="no",0,IF(include_HVAC_I="yes",1,2)) -> 2 | D9: 0 = always exclude, 1 = always include, 2 = use model default
A11: Ventilation
A12: Building 1 weighted average air changes | B12: air_changes_build1 | C12: =IF(build2_fp=0,(Air_changes_reactor*(reactor_fp+cntrl_fp+ups_fp)+Air_changes_pump*pump_fp+Air_changes_storage*(storage_fp+chem_fp+day_tank_fp)+Air_changes_office*office_fp)/build1_fp,(Air_changes_reactor*(reactor_fp+cntrl_fp+ups_fp)+Air_changes_pump*pump_fp+Air_changes_storage*(storage_fp+chem_fp+day_tank_fp))/build1_fp) -> 4.378835616 | D12: air changes/hr
A13: Building 2 weighted average air changes | B13: air_changes_build2 | C13: =IF(build2_fp=0,0,(Air_changes_pump*pump_fp+Air_changes_reactor*cntrl_fp+Air_changes_storage*(storage_fp+chem_fp+day_tank_fp)+Air_changes_office*office_fp)/build2_fp) -> 0 | D13: air changes/hr
A14: Building 1 ventilation | C14: =IF(include_HVAC=0,0,CHOOSE(ss_cat2,fan_days_build1_small,fan_days_build1_medium,fan_days_build1_large)*24*0.746*Fan_pressure_drop*build1_fp*Building_height*air_changes_build1/33000) -> 4162.256815 | D14: kWh/yr
A15: Building 2 ventilation | C15: =IF(include_HVAC=0,0,CHOOSE(ss_cat2,fan_days_build2_small,fan_days_build2_medium,fan_days_build2_large)*24*0.746*Fan_pressure_drop*build2_fp*Building_height*air_changes_build2/33000) -> 0 | D15: kWh/yr
A16: Total ventilation | B16: ventilation | C16: =IF(include_HVAC=0,0,SUM(C14:C15)/1000) -> 4.162256815 | D16: MWh/yr
A18: Building 1 air exchange rate | B18: build1_cfm | C18: =build1_fp*Building_height*air_changes_build1/60 -> 4262.066667 | D18: cfm
A19: Building 2 air exchange rate | B19: build2_cfm | C19: =build2_fp*Building_height*air_changes_build2/60 -> 0 | D19: cfm
A21: Heating and Cooling
A22: Include heating for building 1 | B22: build1_need_heat | C22: =IF(include_HVAC=0,0,IF(include_HVAC=1,1,VLOOKUP(IF(component_level_I="","low cost",component_level_I),IF(build1_fp<500,heating_table_shed,heating_table),ss_cat2+2,FALSE))) -> 1 | D22: 1 for yes, 0 for no | E22: Based on system size, building floorplan, and inputs
A23: Include cooling for building 1 | B23: build1_need_cool | C23: =IF(include_HVAC=0,0,IF(include_HVAC=1,1,VLOOKUP(IF(component_level_I="","low cost",component_level_I),IF(build1_fp<500,cooling_table_shed,cooling_table),ss_cat2+2,FALSE))) -> 0 | D23: 1 for yes, 0 for no
A24: Include heating for building 2 | B24: build2_need_heat | C24: =IF(build2_fp=0,0,IF(include_HVAC=0,0,IF(include_HVAC=1,1,VLOOKUP(IF(component_level_I="","low cost",component_level_I),IF(build2_fp<500,heating_table_shed,heating_table),ss_cat2+2,FALSE)))) -> 0 | D24: 1 for yes, 0 for no
A25: Include cooling for building 2 | B25: build2_need_cool | C25: =IF(build2_fp=0,0,IF(include_HVAC=0,0,IF(include_HVAC=1,1,VLOOKUP(IF(component_level_I="","low cost",component_level_I),IF(build2_fp<500,cooling_table_shed,cooling_table),ss_cat2+2,FALSE)))) -> 0 | D25: 1 for yes, 0 for no
A27: Heating Requirements
A28: Building 1 side conductance heat loss | C28: =4*build1_side*Building_height*heat_DD*24/R_wall -> 17679185.18 | D28: BTU/yr
A29: Buiding 1 ceiling conductance heat loss | C29: =build1_fp*heat_DD*24/R_ceiling -> 6092669.388 | D29: BTU/yr
A30: Building 1 air exchange heat loss | C30: =build1_cfm*heat_viload -> 718921143.3 | D30: BTU/yr
A31: Building 1 total annual heat loss | B31: build1_heat_loss_yr | C31: =SUM(C28:C30) -> 742692997.8 | D31: BTU/yr
A32: Building 1 heating requirement in thousand BTU/hr | B32: build1_heat_mbh | C32: =build1_heat_loss_yr/365.25/24/1000 -> 84.72427536 | D32: MBH
A33: Building 1 number of heating zones | B33: build1_heat_zones | C33: =ROUNDUP(build1_heat_mbh/max_heat_cl,0) -> 1
A35: Building 2 side conductance heat loss | C35: =4*build2_side*Building_height*heat_DD*24/R_wall -> 0 | D35: BTU/yr
A36: Buiding 2 ceiling conductance heat loss | C36: =build2_fp*heat_DD*24/R_ceiling -> 0 | D36: BTU/yr
A37: Building 2 air exchange heat loss | C37: =build2_cfm*heat_viload -> 0 | D37: BTU/yr
A38: Building 2 total annual heat loss | B38: build2_heat_loss_yr | C38: =SUM(C35:C37) -> 0 | D38: BTU/yr
A39: Building 2 heating requirement in thousand BTU/hr | B39: build2_heat_mbh | C39: =build2_heat_loss_yr/365.25/24/1000 -> 0 | D39: MBH
A40: Building 2 number of heating zones | B40: build2_heat_zones | C40: =ROUNDUP(build2_heat_mbh/max_heat_cl,0) -> 0
A42: Cooling Requirements
A43: Building 1 side conductance cooling loss | C43: =4*build1_side*Building_height*cool_DD*24/R_wall -> 5872311.51 | D43: BTU/yr
A44: Buiding 1 ceiling conductance cooling loss | C44: =build1_fp*cool_DD*24/R_ceiling -> 2023738.776 | D44: BTU/yr
A45: Building 1 air exchange cooling loss | C45: =build1_cfm*cool_viload -> 220651453.4 | D45: BTU/yr
A46: Building 1 total annual cooling loss | B46: build1_cooling_loss_yr | C46: =SUM(C43:C45) -> 228547503.7 | D46: BTU/yr
A47: Building 1 cooling loss per hour | B47: build1_cooling_loss_hr | C47: =build1_cooling_loss_yr/365.25/24 -> 26072.04012 | D47: BTU/hr
A49: Building 1 power lost: ballasts | B49: build1_eloss_ballasts | C49: =total_reactor_power/ballast_efficiency*(1-ballast_efficiency)*op_frac -> 21.95869565 | D49: kW
A50: Building 1 waste heat: ballasts | B50: build1_waste_heat_ballasts | C50: =build1_eloss_ballasts*3415 -> 74988.94565 | D50: BTU/hr
A51: Building 1 power lost: booster pumps | B51: build1_eloss_pumps | C51: =total_booster_pumps*pump_hp*(1-booster_pump_efficiency)*0.7457 -> 0 | D51: kW
A52: Building 1 waste heat: booster pumps | B52: build1_waste_heat_pumps | C52: =build1_eloss_pumps*3415 -> 0 | D52: BTU/hr
A54: Building 1 total cooling requirement | B54: build1_cooling_req | C54: =build1_cooling_loss_hr+build1_waste_heat_ballasts+build1_waste_heat_pumps -> 101060.9858 | D54: BTU/hr
A55: Building 1 annual cooling requirement | B55: build1_cooling_yr | C55: =build1_cooling_req*365.25*24 -> 885900601.3 | D55: BTU/yr
A56: Building 1 total cooling requirement in tons | B56: build1_cooling_tons | C56: =build1_cooling_req/12000 -> 8.421748814 | D56: tons
A57: Building 1 number of cooling zones | B57: build1_cool_zones | C57: =ROUNDUP(build1_cooling_tons/max_cool_cl,0) -> 1
A59: Building 2 side conductance cooling loss | C59: =4*build2_side*Building_height*cool_DD*24/R_wall -> 0 | D59: BTU/yr
A60: Buiding 2 ceiling conductance cooling loss | C60: =build2_fp*cool_DD*24/R_ceiling -> 0 | D60: BTU/yr
A61: Building 2 air exchange cooling loss | C61: =build2_cfm*cool_viload -> 0 | D61: BTU/yr
A62: Building 2 total annual cooling loss | B62: build2_cooling_loss_yr | C62: =SUM(C59:C61) -> 0 | D62: BTU/yr
A63: Building 2 cooling loss per hour | B63: build2_cooling_loss_hr | C63: =build2_cooling_loss_yr/365.25/24 -> 0 | D63: BTU/hr
A65: (No heat-generating equipment in Building 2)
A67: Building 2 total cooling requirement | B67: build2_cooling_req | C67: =build2_cooling_loss_hr -> 0 | D67: BTU/hr
A68: Building 2 annual cooling requirement | B68: build2_cooling_yr | C68: =build2_cooling_req*365.25*24 -> 0 | D68: BTU/yr
A69: Building 2 total cooling requirement in tons | B69: build2_cooling_tons | C69: =build2_cooling_req/12000 -> 0 | D69: tons
A70: Building 2 number of cooling zones | B70: build2_cool_zones | C70: =ROUNDUP(build2_cooling_tons/max_cool_cl,0) -> 0
A72: Heating Options
A74: Building 1 number of HVAC zones | B74: build1_zones | C74: =MAX(build1_heat_zones, build1_cool_zones) -> 1
A75: Building 2 number of HVAC zones | B75: build2_zones | C75: =MAX(build2_heat_zones, build2_cool_zones) -> 0
A77: Heat pump OK for building 1? | B77: hp_ok_1 | C77: =AND(build1_heat_mbh<=hp_max_heat_cl,build1_cooling_tons<=hp_max_cool_cl) -> TRUE | E77: For heat pumps, we check both heating and cooling capacities.
A78: Heat pump OK for building 2? | B78: hp_ok_2 | C78: =AND(build2_heat_mbh<=hp_max_heat_cl,build2_cooling_tons<=hp_max_cool_cl) -> TRUE
A80: Building 1 | B80: build1_heat_options
A81: Option | B81: Size needed per zone (MBH) | C81: Size selected (MBH) | D81: Direct Cost Per Zone | E81: Useful Life (yrs) | F81: Annualized Capital Cost, All Zones | G81: Energy/Yr | I81: Energy Unit Cost | K81: Annual Energy Cost | L81: Total Annual Cost
A82: Electric resistance | B82: =build1_heat_mbh/build1_zones -> 84.72427536 | C82: =IF(curve=1,B82,VLOOKUP(B82,hvac_elec_cost_cl,2)) -> 84.72427536 | D82: =IF(curve=1,hvac_elec_eq_1,VLOOKUP(B82,hvac_elec_cost_cl,3)) -> 34834.31821 | E82: =VLOOKUP(B82,hvac_elec_cost_cl,IF(ss_cat="large",4,5)) -> 25 | F82: =IF(D82="contact vendor","n/a",-PMT(Discount_rate,E82,D82)*build1_zones) -> 2989.150862 | G82: =build1_heat_loss_yr/3412000/resist_eff -> 222.1131295 | H82: MWh/yr | I82: =energy_cost_cl -> 0.1100175092 | J82: /kwh | K82: =I82*G82*1000 -> 24436.33328 | L82: =IF(OR(F82="n/a",K82="n/a"),"n/a",F82+K82) -> 27425.48414
A83: Heat pump | B83: capital costs are in the cooling table | F83: n/a | G83: =IF(hp_ok_1,build1_heat_loss_yr/3412000/COP,"n/a") -> 65.96086876 | H83: MWh/yr | I83: =energy_cost_cl -> 0.1100175092 | J83: /kwh | K83: =IF(G83="n/a","n/a",I83*G83*1000) -> 7256.850488 | L83: n/a
A84: Natural gas non-condensing furnace | B84: =build1_heat_mbh/build1_zones -> 84.72427536 | C84: =IF(curve=1,B84,VLOOKUP(B84,hvac_gas_non_cost_cl,2)) -> 84.72427536 | D84: =IF(curve=1,hvac_gas_non_eq_1,VLOOKUP(B84,hvac_gas_non_cost_cl,3)) -> 24780.90121 | E84: =VLOOKUP(B84,hvac_gas_non_cost_cl,IF(ss_cat="large",4,5)) -> 25 | F84: =IF(D84="contact vendor","n/a",-PMT(Discount_rate,E84,D84)*build1_zones) -> 2126.46195 | G84: =build1_heat_loss_yr/100000/gas_non_eff -> 8737.56468 | H84: therms/yr | I84: =gas_cost_cl -> 0.5785614035 | J84: /therm | K84: =I84*G84 -> 5055.217685 | L84: 7181.679635
A85: Natural gas condensing furnace | B85: =build1_heat_mbh/build1_zones -> 84.72427536 | C85: =IF(curve=1,B85,VLOOKUP(B85,hvac_gas_cost_cl,2)) -> 84.72427536 | D85: =IF(curve=1,hvac_gas_eq_1,VLOOKUP(B85,hvac_gas_cost_cl,3)) -> 24780.90121 | E85: =VLOOKUP(B85,hvac_gas_cost_cl,IF(ss_cat="large",4,5)) -> 25 | F85: =IF(D85="contact vendor","n/a",-PMT(Discount_rate,E85,D85)*build1_zones) -> 2126.46195 | G85: =build1_heat_loss_yr/100000/gas_eff -> 8252.14442 | H85: therms/yr | I85: =gas_cost_cl -> 0.5785614035 | J85: /therm | K85: =I85*G85 -> 4774.372258 | L85: 6900.834208
A86: Standard efficiency oil furnace | B86: =build1_heat_mbh/build1_zones -> 84.72427536 | C86: =IF(curve=1,B86,VLOOKUP(B86,hvac_oil_std_cost_cl,2)) -> 84.72427536 | D86: =IF(curve=1,hvac_oil_std_eq_1,VLOOKUP(B86,hvac_oil_std_cost_cl,3)) -> 28061.44694 | E86: =VLOOKUP(B86,hvac_oil_std_cost_cl,IF(ss_cat="large",4,5)) -> 25 | F86: =IF(D86="contact vendor","n/a",-PMT(Discount_rate,E86,D86)*build1_zones) -> 2407.967276 | G86: =build1_heat_loss_yr/diesel_heat_content/diesel_non_eff -> 6515.994015 | H86: gal/yr | I86: =diesel_cost_cl -> 3.829500772 | J86: /gal | K86: =I86*G86 -> 24953.00411 | L86: 27360.97139
A87: Mid-efficiency oil furnace | B87: =build1_heat_mbh/build1_zones -> 84.72427536 | C87: =IF(curve=1,B87,VLOOKUP(B87,hvac_oil_mid_cost_cl,2)) -> 84.72427536 | D87: =IF(curve=1,hvac_oil_mid_eq_1,VLOOKUP(B87,hvac_oil_mid_cost_cl,3)) -> 28061.44694 | E87: =VLOOKUP(B87,hvac_oil_mid_cost_cl,IF(ss_cat="large",4,5)) -> 25 | F87: =IF(D87="contact vendor","n/a",-PMT(Discount_rate,E87,D87)*build1_zones) -> 2407.967276 | G87: =build1_heat_loss_yr/diesel_heat_content/diesel_eff -> 5936.794547 | H87: gal/yr | I87: =diesel_cost_cl -> 3.829500772 | J87: /gal | K87: =I87*G87 -> 22734.9593 | L87: 25142.92658
A89: Building 2 | B89: build2_heat_options
A90: Option | B90: Size needed per zone (MBH) | C90: Size selected (MBH) | D90: Direct Cost Per Zone | E90: Useful Life (yrs) | F90: Annualized Capital Cost, All Zones | G90: Energy/Yr | I90: Energy Unit Cost | K90: Annual Energy Cost | L90: Total Annual Cost
A91: Electric resistance | B91: =IF(build2_zones = 0, "", build2_heat_mbh/build2_zones) ->  | C91: =IF(curve=1,B91,VLOOKUP(B91,hvac_elec_cost_cl,2)) ->  | D91: =IF(curve=1,hvac_elec_eq_2,VLOOKUP(B91,hvac_elec_cost_cl,3)) ->  | E91: =VLOOKUP(B91,hvac_elec_cost_cl,IF(ss_cat="large",4,5)) ->  | F91: =IF(D91="contact vendor","n/a",-PMT(Discount_rate,E91,D91)*build2_zones) ->  | G91: =build2_heat_loss_yr/3412000/resist_eff -> 0 | H91: MWh/yr | I91: =energy_cost_cl -> 0.1100175092 | J91: /kwh | K91: =I91*G91*1000 -> 0 | L91: =IF(F91="n/a","n/a",F91+K91) -> 
A92: Heat pump | B92: capital costs are in the cooling table | F92: n/a | G92: =IF(hp_ok_2,build2_heat_loss_yr/3412000/COP,"n/a") -> 0 | H92: MWh/yr | I92: =energy_cost_cl -> 0.1100175092 | J92: /kwh | K92: =IF(G92="n/a","n/a",I92*G92*1000) -> 0 | L92: =IF(OR(F92="n/a",K92="n/a"),"n/a",F92+K92) -> n/a
A93: Natural gas non-condensing furnace | B93: =IF(build2_zones = 0, "", build2_heat_mbh/build2_zones) ->  | C93: =IF(curve=1,B93,VLOOKUP(B93,hvac_gas_non_cost_cl,2)) ->  | D93: =IF(curve=1,hvac_gas_non_eq_2,VLOOKUP(B93,hvac_gas_non_cost_cl,3)) ->  | E93: =VLOOKUP(B93,hvac_gas_non_cost_cl,IF(ss_cat="large",4,5)) ->  | F93: =IF(D93="contact vendor","n/a",-PMT(Discount_rate,E93,D93)*build2_zones) ->  | G93: =build2_heat_loss_yr/100000/gas_non_eff -> 0 | H93: therms/yr | I93: =gas_cost_cl -> 0.5785614035 | J93: /therm | K93: =I93*G93 -> 0 | L93: =IF(F93="n/a","n/a",F93+K93) -> 
A94: Natural gas condensing furnace | B94: =IF(build2_zones = 0, "", build2_heat_mbh/build2_zones) ->  | C94: =IF(curve=1,B94,VLOOKUP(B94,hvac_gas_cost_cl,2)) ->  | D94: =IF(curve=1,hvac_gas_eq_2,VLOOKUP(B94,hvac_gas_cost_cl,3)) ->  | E94: =VLOOKUP(B94,hvac_gas_cost_cl,IF(ss_cat="large",4,5)) ->  | F94: =IF(D94="contact vendor","n/a",-PMT(Discount_rate,E94,D94)*build2_zones) ->  | G94: =build2_heat_loss_yr/100000/gas_eff -> 0 | H94: therms/yr | I94: =gas_cost_cl -> 0.5785614035 | J94: /therm | K94: =I94*G94 -> 0 | L94: =IF(F94="n/a","n/a",F94+K94) -> 
A95: Standard efficiency oil furnace | B95: =IF(build2_zones = 0, "", build2_heat_mbh/build2_zones) ->  | C95: =IF(curve=1,B95,VLOOKUP(B95,hvac_oil_std_cost_cl,2)) ->  | D95: =IF(curve=1,hvac_oil_std_eq_2,VLOOKUP(B95,hvac_oil_std_cost_cl,3)) ->  | E95: =VLOOKUP(B95,hvac_oil_std_cost_cl,IF(ss_cat="large",4,5)) ->  | F95: =IF(D95="contact vendor","n/a",-PMT(Discount_rate,E95,D95)*build2_zones) ->  | G95: =build2_heat_loss_yr/diesel_heat_content/diesel_non_eff -> 0 | H95: gal/yr | I95: =diesel_cost_cl -> 3.829500772 | J95: /gal | K95: =I95*G95 -> 0 | L95: =IF(F95="n/a","n/a",F95+K95) -> 
A96: Mid-efficiency oil furnace | B96: =IF(build2_zones = 0, "", build2_heat_mbh/build2_zones) ->  | C96: =IF(curve=1,B96,VLOOKUP(B96,hvac_oil_mid_cost_cl,2)) ->  | D96: =IF(curve=1,hvac_oil_mid_eq_2,VLOOKUP(B96,hvac_oil_mid_cost_cl,3)) ->  | E96: =VLOOKUP(B96,hvac_oil_mid_cost_cl,IF(ss_cat="large",4,5)) ->  | F96: =IF(D96="contact vendor","n/a",-PMT(Discount_rate,E96,D96)*build2_zones) ->  | G96: =build2_heat_loss_yr/diesel_heat_content/diesel_eff -> 0 | H96: gal/yr | I96: =diesel_cost_cl -> 3.829500772 | J96: /gal | K96: =I96*G96 -> 0 | L96: =IF(F96="n/a","n/a",F96+K96) -> 
A98: Cooling Options
A99: Building 1 | B99: build1_cool_options
A100: Option | B100: Size needed per zone (tons) | C100: Size selected (tons) | D100: Direct Cost Per Zone | E100: Useful Life (yrs) | F100: Annualized Capital Cost, All Zones | G100: Energy/Yr | I100: Energy Unit Cost | K100: Annual Energy Cost | L100: Total Annual Cost
A101: Air conditioner | B101: =build1_cooling_tons/build1_zones -> 8.421748814 | C101: =IF(curve=1,B101,VLOOKUP(B101,hvac_ac_cost_cl,2)) -> 8.421748814 | D101: =IF(curve=1,hvac_ac_eq_1,VLOOKUP(B101,hvac_ac_cost_cl,3)) -> 26959.59254 | E101: =VLOOKUP(B101,hvac_ac_cost_cl,IF(ss_cat="large",4,5)) -> 25 | F101: =IF(D101="contact vendor","n/a",-PMT(Discount_rate,E101,D101)*build1_zones) -> 2313.41658 | G101: =build1_cooling_yr/EER/10^6 -> 75.07632214 | H101: MWh/yr | I101: =energy_cost_cl -> 0.1100175092 | J101: /kwh | K101: =I101*G101*1000 -> 8259.709966 | L101: =IF(F101="n/a","n/a",F101+K101) -> 10573.12655
A102: Heat pump | B102: =build1_cooling_tons/build1_zones -> 8.421748814 | C102: =IF(hp_ok_1,IF(curve=1,B102,VLOOKUP(B102,hvac_hp_cost_cl,2)),"n/a") -> 8.421748814 | D102: =IF(C102="n/a","n/a",IF(curve=1,hvac_hp_eq_1,VLOOKUP(B102,hvac_hp_cost_cl,3))) -> 10935.99184 | E102: =IF(C102="n/a","n/a",VLOOKUP(B102,hvac_hp_cost_cl,IF(ss_cat="large",4,5))) -> 25 | F102: =IF(OR(D102="contact vendor",D102="n/a"),"n/a",-PMT(Discount_rate,E102,D102)*build1_zones) -> 938.4231164 | G102: =IF(C102="n/a","n/a",build1_cooling_yr/hp_EER/10^6) -> 75.07632214 | H102: MWh/yr | I102: =energy_cost_cl -> 0.1100175092 | J102: /kwh | K102: =IF(C102="n/a","n/a",I102*G102*1000) -> 8259.709966 | L102: =IF(F102="n/a","n/a",F102+K102) -> 9198.133082
A104: Building 2 | B104: build2_cool_options
A105: Option | B105: Size needed per zone (tons) | C105: Size selected (tons) | D105: Direct Cost Per Zone | E105: Useful Life (yrs) | F105: Annualized Capital Cost, All Zones | G105: Energy/Yr | I105: Energy Unit Cost | K105: Annual Energy Cost | L105: Total Annual Cost
A106: Air conditioner | B106: =IF(build2_zones = 0, "", build2_cooling_tons/build2_zones) ->  | C106: =IF(curve=1,B106,VLOOKUP(B106,hvac_ac_cost_cl,2)) ->  | D106: =IF(curve=1,hvac_ac_eq_2,VLOOKUP(B106,hvac_ac_cost_cl,3)) ->  | E106: =VLOOKUP(B106,hvac_ac_cost_cl,IF(ss_cat="large",4,5)) ->  | F106: =IF(D106="contact vendor","n/a",-PMT(Discount_rate,E106,D106)*build2_zones) ->  | G106: =build2_cooling_yr/EER/10^6 -> 0 | H106: MWh/yr | I106: =energy_cost_cl -> 0.1100175092 | J106: /kwh | K106: =I106*G106*1000 -> 0 | L106: =IF(F106="n/a","n/a",F106+K106) -> 
A107: Heat pump | B107: =IF(build2_zones = 0, "",build2_cooling_tons/build2_zones) ->  | C107: =IF(hp_ok_2,IF(curve=1,B107,VLOOKUP(B107,hvac_hp_cost_cl,2)),"n/a") ->  | D107: =IF(C107="n/a","n/a",IF(curve=1,hvac_hp_eq_2,VLOOKUP(B107,hvac_hp_cost_cl,3))) ->  | E107: =IF(C107="n/a","n/a",VLOOKUP(B107,hvac_hp_cost_cl,IF(ss_cat="large",4,5))) ->  | F107: =IF(OR(D107="contact vendor",D107="n/a"),"n/a",-PMT(Discount_rate,E107,D107)*build2_zones) ->  | G107: =IF(C107="n/a","n/a",build2_cooling_yr/hp_EER/10^6) -> 0 | H107: MWh/yr | I107: =energy_cost_cl -> 0.1100175092 | J107: /kwh | K107: =IF(C107="n/a","n/a",I107*G107*1000) -> 0 | L107: =IF(F107="n/a","n/a",F107+K107) -> 
A110: Heating and Cooling Selection | E110: We will select the option with the lowest annual cost for each building.
A112: Building 1 Selection
A113: Heating option | B113: Annual cost | C113: Cooling option | D113: Annual cost | E113: Total annual cost
A114: Electric resistance | B114: =IF(build1_need_heat,VLOOKUP(A114,build1_heat_options,12,FALSE),0) -> 27425.48414 | C114: Air conditioner | D114: =IF(build1_need_cool,VLOOKUP(C114,build1_cool_options,12,FALSE),0) -> 0 | E114: =IF(OR(B114="n/a",D114="n/a"),"n/a",ROUND(B114+D114,0)) -> 27425
A115: Natural gas non-condensing furnace | B115: =IF(build1_need_heat,VLOOKUP(A115,build1_heat_options,12,FALSE),0) -> 7181.679635 | C115: Air conditioner | D115: =IF(build1_need_cool,VLOOKUP(C115,build1_cool_options,12,FALSE),0) -> 0 | E115: 7182
A116: Natural gas condensing furnace | B116: =IF(build1_need_heat,VLOOKUP(A116,build1_heat_options,12,FALSE),0) -> 6900.834208 | C116: Air conditioner | D116: =IF(build1_need_cool,VLOOKUP(C116,build1_cool_options,12,FALSE),0) -> 0 | E116: 6901
A117: Standard efficiency oil furnace | B117: =IF(build1_need_heat,VLOOKUP(A117,build1_heat_options,12,FALSE),0) -> 27360.97139 | C117: Air conditioner | D117: =IF(build1_need_cool,VLOOKUP(C117,build1_cool_options,12,FALSE),0) -> 0 | E117: 27361
A118: Mid-efficiency oil furnace | B118: =IF(build1_need_heat,VLOOKUP(A118,build1_heat_options,12,FALSE),0) -> 25142.92658 | C118: Air conditioner | D118: =IF(build1_need_cool,VLOOKUP(C118,build1_cool_options,12,FALSE),0) -> 0 | E118: 25143
A119: Heat pump | B119: =IF(AND(build1_need_heat, build1_need_cool),K83,"n/a") -> n/a | C119: Heat pump | D119: =IF(AND(build1_need_heat,build1_need_cool),VLOOKUP(C119,build1_cool_options,12,FALSE),0) -> 0 | E119: n/a
A121: Row selected | B121: build1_row | C121: =MATCH(MIN(E114:E119),E114:E119,0) -> 3
A122: Building 1 heating selection | B122: build1_heat | C122: =IF(build1_need_heat,INDEX(A114:A119,build1_row),"n/a") -> Natural gas condensing furnace
A123: Building 1 cooling selection | B123: build1_cool | C123: =IF(build1_need_cool,INDEX(C114:C119,build1_row),"n/a") -> n/a
A126: Building 2 Selection
A127: Heating option | B127: Annual cost | C127: Cooling option | D127: Annual cost | E127: Total annual cost
A128: Electric resistance | B128: =IF(build2_need_heat,VLOOKUP(A128,build2_heat_options,12,FALSE),0) -> 0 | C128: Air conditioner | D128: =IF(build2_need_cool,VLOOKUP(C128,build2_cool_options,12,FALSE),0) -> 0 | E128: =IF(OR(B128="n/a",D128="n/a"),"n/a",ROUND(B128+D128,0)) -> 0
A129: Natural gas non-condensing furnace | B129: =IF(build2_need_heat,VLOOKUP(A129,build2_heat_options,12,FALSE),0) -> 0 | C129: Air conditioner | D129: =IF(build2_need_cool,VLOOKUP(C129,build2_cool_options,12,FALSE),0) -> 0 | E129: 0
A130: Natural gas condensing furnace | B130: =IF(build2_need_heat,VLOOKUP(A130,build2_heat_options,12,FALSE),0) -> 0 | C130: Air conditioner | D130: =IF(build2_need_cool,VLOOKUP(C130,build2_cool_options,12,FALSE),0) -> 0 | E130: 0
A131: Standard efficiency oil furnace | B131: =IF(build2_need_heat,VLOOKUP(A131,build2_heat_options,12,FALSE),0) -> 0 | C131: Air conditioner | D131: =IF(build2_need_cool,VLOOKUP(C131,build2_cool_options,12,FALSE),0) -> 0 | E131: 0
A132: Mid-efficiency oil furnace | B132: =IF(build2_need_heat,VLOOKUP(A132,build2_heat_options,12,FALSE),0) -> 0 | C132: Air conditioner | D132: =IF(build2_need_cool,VLOOKUP(C132,build2_cool_options,12,FALSE),0) -> 0 | E132: 0
A133: Heat pump | B133: =IF(AND(build2_need_heat, build2_need_cool),K92,"n/a") -> n/a | C133: Heat pump | D133: =IF(AND(build1_need_heat,build2_need_cool),VLOOKUP(C133,build2_cool_options,12,FALSE),0) -> 0 | E133: n/a
A135: Row selected | B135: build2_row | C135: =MATCH(MIN(E128:E133),E128:E133,0) -> 1
A136: Building 2 heating selection | B136: build2_heat | C136: =IF(build2_need_heat,INDEX(A128:A133,build2_row),"n/a") -> n/a
A137: Building 2 cooling selection | B137: build2_cool | C137: =IF(build2_need_cool,INDEX(C128:C133,build2_row),"n/a") -> n/a

Sheet Indirect
A1: Indirect and Add-on Cost Calculations
A3: Calculation | B3: Range Name | C3: Value | D3: Units | E3: Guidance
A4: Buildings and Land
A5: Include buildings? | B5: include_buildings | C5: =IF(include_buildings_I="no",0,1) -> 1 | D5: 1 = yes, 0 = no
A6: Include land? | B6: include_land | C6: =IF(include_land_I="no",0,1) -> 1 | D6: 1 = yes, 0 = no
A8: Standby Power
A9: Booster Pumps | C9: =IF(total_booster_pumps=0,0,pump_energy*design_flow/average_flow/365/24*1000) -> 0 | D9: kW
A10: UV reactors | C10: =max_uv_power -> 663.5333333 | D10: kW
A11: Lighting | C11: =IF(include_buildings=0,0,(build1_fp*lighting_energy_1+build2_fp*lighting_energy_2)/365/24) -> 0.876 | D11: kW
A12: Building 1 ventilation | C12: =IF(include_HVAC=0,0,0.746*Fan_pressure_drop*build1_fp*Building_height*air_changes_build1/33000) -> 1.445228061 | D12: kW
A13: Building 2 ventilation | C13: =IF(include_HVAC=0,0,0.746*Fan_pressure_drop*build2_fp*Building_height*air_changes_build2/33000) -> 0 | D13: kW
A14: Total base standby power requirement | B14: std_base | C14: =SUM(C9:C13) -> 665.8545614 | D14: kW
A16: Electric heating for Building 1? | B16: build1_elec_heat | C16: =IF(build1_need_heat=1,VLOOKUP(build1_heat,build1_heat_options,8,FALSE)="MWh/yr",FALSE) -> FALSE
A17: Power to heat Building 1 | B17: build1_elec_heat_power | C17: =IF(build1_elec_heat,VLOOKUP(build1_heat,build1_heat_options,7,FALSE),0)*365.25*24/1000 -> 0 | D17: kW
A18: Electric heating for Building 2? | B18: build2_elec_heat | C18: =IF(build2_need_heat,(VLOOKUP(build2_heat,build2_heat_options,8,FALSE)="MWh/yr"),FALSE) -> FALSE
A19: Power to heat Building 2 | B19: build2_elec_heat_power | C19: =IF(build2_elec_heat,VLOOKUP(build2_heat,build2_heat_options,7,FALSE),0)*365.25*24/1000 -> 0 | D19: kW
A20: Standby power for heating | B20: std_heat | C20: =IF(include_HVAC=0,0,build1_elec_heat_power+build2_elec_heat_power) -> 0 | D20: kW
A22: Electric cooling for Building 1? | B22: build1_elec_cool | C22: =IF(build1_need_cool,(VLOOKUP(build1_cool,build1_cool_options,8,FALSE)="MWh/yr"),FALSE) -> FALSE
A23: Power to cool Building 1 | B23: build1_elec_cool_power | C23: =IF(build1_elec_cool,VLOOKUP(build1_cool,build1_cool_options,7,FALSE),0)*365.25*24/1000 -> 0 | D23: kW
A24: Electric cooling for Building 2? | B24: build2_elec_cool | C24: =IF(build2_need_cool,(VLOOKUP(build2_cool,build2_cool_options,8,FALSE)="MWh/yr"),FALSE) -> FALSE
A25: Power to cool Building 2 | B25: build2_elec_cool_power | C25: =IF(build2_elec_cool,VLOOKUP(build2_cool,build2_cool_options,7,FALSE),0)*365.25*24/1000 -> 0 | D25: kW
A26: Standby power for cooling | B26: std_cool | C26: =IF(include_HVAC=0,0,build1_elec_cool_power+build2_elec_cool_power) -> 0 | D26: kW
A28: Total standby power requirements | B28: std_power | C28: =ROUND(2*MAX(min_standby,(IF(AND(need_heat=1,need_cool=1),MAX(std_heat,std_cool),need_heat*std_heat+need_cool*std_cool)+std_base)*(1+std_safety_factor)),0)/2 -> 666 | D28: kW
A29: Total standby power cost | B29: std_power_cost | C29: =VLOOKUP(std_power,std_gen_cost_cl,3)*std_power -> 187368
A31: Geotechnical & Sitework
A32: Total technology footprint | B32: tech_fp | C32: =total_fp -> 2920 | D32: square feet
A33: Maximum basin excavation depth | B33: max_excav_depth | C33: =excavation_depth -> 5 | D33: feet
A34: Borehole depth | B34: bore_depth | C34: =IF(max_excav_depth>bore_need,bore_depth_max,bore_depth_min) -> 25 | D34: feet
A35: Number of test pits | B35: num_pits | C35: =IF(tech_fp>bore_need,0,ROUNDUP(tech_fp/hole_per_sf,0)) -> 0
A36: Number of boreholes | B36: num_holes | C36: =IF(tech_fp<bore_need,0,IF(ROUNDUP(tech_fp/hole_per_sf,0)<min_holes,min_holes,ROUNDUP(tech_fp/hole_per_sf,0))) -> 4
A38: Costs
A39: Borings, initial field stake out & determination of elevations | C39: =IF(num_pits>0,1,ROUNDUP(num_holes/hole_per_job,0))*VLOOKUP(0,stake_out_cost_cl,3) -> 1475
A40: Borings, drawings showing boring details | C40: =ROUNDUP(num_holes/hole_per_job,0)*VLOOKUP(0,bore_draw_cost_cl,3) -> 425
A41: Borings, report and recommendations from P.E. | C41: =IF(num_pits>0,1,ROUNDUP(num_holes/hole_per_job,0))*VLOOKUP(0,bore_report_cost_cl,3) -> 970
A42: Borings, mobilization and demobilization, minimum | C42: =IF(num_pits>0,0,1)*VLOOKUP(0,bore_mob_cost_cl,3) -> 660
A43: Borings, drill rig and crew with truck mounted auger | C43: =ROUNDUP(bore_depth*num_holes/hole_per_day,0)*VLOOKUP(0,bore_rig_cost_cl,3) -> 5300
A44: Borings, cased borings in earth, w/samples, 2.5" dia | C44: =num_holes*bore_depth*VLOOKUP(0,bore_cost_cl,3) -> 6400
A45: Test pits | C45: =pit_width*pit_length*pit_depth/27*num_pits*VLOOKUP(0,pit_cost_cl,3) -> 0
A46: Total geotechnical cost | B46: geotech_cost | C46: =SUM(C39:C45) -> 15230
A48: Total sitework cost | B48: sitework_cost | C48: =tech_fp*sitework_sf_cl -> 44358.32967
A50: Yard Piping
A51: Actual yard piping diameter | B51: yard_pipe_diam | C51: =SUMPRODUCT(OUTPUT!G60:G64,OUTPUT!L60:L64) -> 10 | D51: in. diam | E51: Based on output sheet selection for influent and treated water pipe
A52: Trench depth to top of pipe | B52: trench_depth | C52: =MAX(frost,min_trench_depth) -> 38 | D52: inches
A53: Thrust force | B53: thrust_force | C53: =VLOOKUP(yard_pipe_diam,thrust_block_table_cl,2)*2.2 -> 17189.50337 | D53: lbs
A54: Bearing Area (L x H) | B54: bearing_area | C54: =1.5*thrust_force/(soil_dens*(trench_depth/12+yard_pipe_diam/12)*Coeff_Kp*Reduction) -> 47.43345155 | D54: square ft
A55: L | C55: =bearing_area/C56 -> 9.739964224 | D55: ft
A56: H | C56: =(bearing_area/2)^0.5 -> 4.869982112 | D56: ft
A57: F | C57: =MAX(0.5,yard_pipe_diam/12) -> 0.8333333333 | D57: ft | E57: Pipe diameter with a minimum of 6 inches
A58: T | C58: =C55/2 -> 4.869982112 | D58: ft
A59: Thrust block volume | B59: block_vol | C59: =(C58+(yard_pipe_diam/12)/2)*(C55+C57)/2*C56/27 -> 5.041090793 | D59: cy
A60: Trench Cross-section Area | B60: trench_area | C60: =(yard_pipe_diam/12+2)*(bedding_depth/12+yard_pipe_diam/12+trench_depth/12)+(bedding_depth/12+yard_pipe_diam/12+trench_depth/12)^2*TAN(trench_angle) -> 33 | D60: square ft
A61: Trench Volume Source Water | C61: =trench_area*yard_in/27 -> 0 | D61: cy
A62: Trench Volume Influent and Treated Water | C62: =((2*non_fire_buffer)+2*(build1_fp^0.5)/4)*trench_area/27 -> 57.46707043 | D62: cy
A63: Trench Volume Between Buildings | C63: =IF(build2_fp=0,0,((2*non_fire_buffer)+2*(build2_fp^0.5)/4)*trench_area/27) -> 0 | D63: cy
A64: Trench Volume to Distribution Network | C64: =trench_area*yard_out/27 -> 0 | D64: cy
A65: Trench Volume total | B65: trench_vol | C65: =SUM(C61:C64)+block_vol -> 62.50816123 | D65: cy
A66: Equivalent pipe length | B66: yard_pipe_length | C66: =yard_in+yard_out+2*((2*non_fire_buffer)+2*(build1_fp^0.5)/4+IF(build2_fp=0,0,((2*non_fire_buffer)+2*(build2_fp^0.5)/4))+2*(trench_depth+yard_pipe_diam)/12) -> 110.0370243 | D66: lf
A67: Bedding cross sectional surface area | C67: =(yard_pipe_diam/12+2)*(bedding_depth/12+yard_pipe_diam/12*bedding_pct)+(bedding_depth/12+yard_pipe_diam/12*bedding_pct)^2*TAN(trench_angle)-((yard_pipe_diam/12/2)^2*ACOS((yard_pipe_diam/12/2-bedding_pct*yard_pipe_diam/12)/(yard_pipe_diam/12/2))-(yard_pipe_diam/12/2-yard_pipe_diam/12*bedding_pct)*((2*yard_pipe_diam/12/2*yard_pipe_diam/12*bedding_pct-(yard_pipe_diam/12*bedding_pct)^2)^0.5)) -> 2.402051241 | D67: square ft
A68: Bedding volume | B68: bedding_vol | C68: =C67*yard_pipe_length/2/27 -> 4.894714276 | D68: cy
A70: Costs
A71: Bedding cost | C71: =VLOOKUP(0,bedding_cost_cl,3)*bedding_vol -> 221.9752924
A72: Excavation cost | C72: =trench_vol*VLOOKUP(0,excavate_cost_cl,3) -> 1930.252019
A73: Backfill cost | C73: =trench_vol*VLOOKUP(0,backfill_cost_cl,3) -> 1165.777207
A74: Thrust block cost | C74: =block_vol*VLOOKUP(0,conc_basin_cost_cl,3) -> 3728.418924
A75: Pipe cost | C75: =yard_pipe_length*SUMPRODUCT(OUTPUT!I60:I64,OUTPUT!L60:L64) -> 2107.010098 | E75: Based on output sheet selection for influent and treated water pipe
A76: Total yard piping cost | B76: yard_cost | C76: =SUM(C71:C75) -> 9153.433541
A78: Permits
A79: Building #1 value | C79: =SUMPRODUCT(OUTPUT!J178:J190,OUTPUT!L178:L190) -> 248429.6319 | E79: Determined using Use? Column of output sheet
A80: Building #2 value | C80: =SUMPRODUCT(OUTPUT!J192:J204,OUTPUT!L192:L204) -> 0 | E80: Determined using Use? Column of output sheet
A81: Building permit cost | C81: =VLOOKUP(design_flow,UBC_mult_table_cl,3)*(BPCost_UBC97(C79)+BPCost_UBC97(C80)) -> 2925.04 | E81: Uses custom function to apply formula and multiplier documented in Abt Associates, 2020, Permitting Requirement Costs for Drinking Water Treatment Cost Models. Prepared for USEPA. October.
A82: Storm water permit cost | C82: =VLOOKUP(land_required,SW_permit_cost_cl,2) -> 0 | E82: Applies to systems requiring 1 acre of land or greater
A83: Risk management plan | C83: 0 | E83: Not applicable for this technology
A84: NEPA compliance | C84: =CHOOSE(include_NEPA,0,VLOOKUP(land_required,NEPA_cost_cl,2),0) -> 0 | E84: Included only if technology discharges to surface water or if assumption "include_NEPA" is changed on CDA sheet
A85: Total permit cost | B85: permit_cost | C85: =SUM(C81:C84) -> 2925.04
A87: Construction Management and General Contractor Job Overhead
A88: Builder's risk insurance percentage | C88: =br_ins_pct*direct_cost -> 10797.98206
A89: Performance bond cost | C89: =include_bond*(VLOOKUP(direct_cost,performance_bond_table_cl,3)+VLOOKUP(direct_cost,performance_bond_table_cl,4)*(direct_cost-VLOOKUP(direct_cost,performance_bond_table_cl,5))) -> 33569.07808 | E89: Bracket determined from direct capital cost
A90: Construction management percentage | C90: =VLOOKUP(direct_cost,construction_mgt_table_cl,3) -> 0.05 | E90: Looked up from direct capital cost
A91: Construction management fee | C91: =include_cm*C90*direct_cost -> 158793.8538
A92: Total construction management/job overhead cost | B92: cm_cost | C92: =SUM(C88:C89,C91) -> 203160.914
A94: Percent Contributions to Annualized Cost
A95: Total annualized cost percent capital | B95: TAC_pct_cap | C95: =Annualized_Capital_Cost/Annualized_Cost -> 0.4591058036
A96: Total annualized cost percent O&M | B96: TAC_pct_OM | C96: =OM_cost/Annualized_Cost -> 0.5408941964

Sheet AOP References
A1: AOP References
A2: This sheet contains data from the literature on EED and EE/O under different treatment conditions
A3: ShortSource | B3: FullSource | C3: Publication Type | D3: Primary/Secondary (secondary reports another study's results) | E3: Contaminant | F3: CAS | G3: Lamp Type | H3: Cont Conc (uM) | I3: Cont Conc (mg/L) | J3: Cont Log Removal | K3: Oxidant Conc (mM) | L3: Oxidant Conc (mg/L) | M3: Oxidant | N3: pH | O3: Water matrix | P3: EED (kWh/kgal) | Q3: EED (kWh/m3) | R3: EE/O (kWh/kgal/order) | S3: Other Notes
A4: Crittenden1999_AKineticModel | B4: Crittenden, JC, S. Hu, DW Hand, & SA Green. "A Kinetic Model for H2O2/UV Process in a Completely Mixed Batch Reactor." Wat. Res. Vol. 33, No. 10, pp. 2315-2328, 1999 | C4: Journal | D4: Secondary | E4: DBCP | F4: 96-12-8 | G4: LP | H4: 1.63 | I4: 0.3852179 | K4: 4 | L4: 136.04 | M4: Hydrogen Peroxide | N4: 8.4 | O4: Distilled | R4: 14.6
A5: Crittenden1999_AKineticModel | B5: Crittenden, JC, S. Hu, DW Hand, & SA Green. "A Kinetic Model for H2O2/UV Process in a Completely Mixed Batch Reactor." Wat. Res. Vol. 33, No. 10, pp. 2315-2328, 1999 | C5: Journal | D5: Secondary | E5: DBCP | F5: 96-12-8 | G5: LP | H5: 1.43 | I5: 0.3379519 | K5: 4 | L5: 136.04 | M5: Hydrogen Peroxide | N5: 8.3 | O5: Distilled | R5: 12.6
A6: Crittenden1999_AKineticModel | B6: Crittenden, JC, S. Hu, DW Hand, & SA Green. "A Kinetic Model for H2O2/UV Process in a Completely Mixed Batch Reactor." Wat. Res. Vol. 33, No. 10, pp. 2315-2328, 1999 | C6: Journal | D6: Secondary | E6: DBCP | F6: 96-12-8 | G6: LP | H6: 1.42 | I6: 0.3355886 | K6: 4 | L6: 136.04 | M6: Hydrogen Peroxide | N6: 8.4 | O6: Distilled | R6: 6.3
A7: Crittenden1999_AKineticModel | B7: Crittenden, JC, S. Hu, DW Hand, & SA Green. "A Kinetic Model for H2O2/UV Process in a Completely Mixed Batch Reactor." Wat. Res. Vol. 33, No. 10, pp. 2315-2328, 1999 | C7: Journal | D7: Secondary | E7: DBCP | F7: 96-12-8 | G7: LP | H7: 1.55 | I7: 0.3663115 | K7: 4 | L7: 136.04 | M7: Hydrogen Peroxide | N7: 8.5 | O7: Distilled | R7: 4.77
A8: Crittenden1999_AKineticModel | B8: Crittenden, JC, S. Hu, DW Hand, & SA Green. "A Kinetic Model for H2O2/UV Process in a Completely Mixed Batch Reactor." Wat. Res. Vol. 33, No. 10, pp. 2315-2328, 1999 | C8: Journal | D8: Secondary | E8: DBCP | F8: 96-12-8 | G8: LP | H8: 1.83 | I8: 0.4324839 | K8: 4 | L8: 136.04 | M8: Hydrogen Peroxide | N8: 8.4 | O8: Distilled | R8: 3.67
A9: Crittenden1999_AKineticModel | B9: Crittenden, JC, S. Hu, DW Hand, & SA Green. "A Kinetic Model for H2O2/UV Process in a Completely Mixed Batch Reactor." Wat. Res. Vol. 33, No. 10, pp. 2315-2328, 1999 | C9: Journal | D9: Secondary | E9: DBCP | F9: 96-12-8 | G9: LP | H9: 1.77 | I9: 0.4183041 | K9: 4 | L9: 136.04 | M9: Hydrogen Peroxide | N9: 8.4 | O9: Distilled | R9: 3.6
A10: Crittenden1999_AKineticModel | B10: Crittenden, JC, S. Hu, DW Hand, & SA Green. "A Kinetic Model for H2O2/UV Process in a Completely Mixed Batch Reactor." Wat. Res. Vol. 33, No. 10, pp. 2315-2328, 1999 | C10: Journal | D10: Secondary | E10: DBCP | F10: 96-12-8 | G10: LP | H10: 1.5 | I10: 0.354495 | K10: 4 | L10: 136.04 | M10: Hydrogen Peroxide | N10: 8.4 | O10: Distilled | R10: 3.63
A11: Crittenden1999_AKineticModel | B11: Crittenden, JC, S. Hu, DW Hand, & SA Green. "A Kinetic Model for H2O2/UV Process in a Completely Mixed Batch Reactor." Wat. Res. Vol. 33, No. 10, pp. 2315-2328, 1999 | C11: Journal | D11: Secondary | E11: DBCP | F11: 96-12-8 | G11: LP | H11: 1.52 | I11: 0.3592216 | K11: 4 | L11: 136.04 | M11: Hydrogen Peroxide | N11: 8.4 | O11: Distilled | R11: 4.53
A12: Crittenden1999_AKineticModel | B12: Crittenden, JC, S. Hu, DW Hand, & SA Green. "A Kinetic Model for H2O2/UV Process in a Completely Mixed Batch Reactor." Wat. Res. Vol. 33, No. 10, pp. 2315-2328, 1999 | C12: Journal | D12: Secondary | E12: DBCP | F12: 96-12-8 | G12: LP | H12: 3.06 | I12: 0.7231698 | K12: 4 | L12: 136.04 | M12: Hydrogen Peroxide | N12: 8.5 | O12: Distilled | R12: 5.47
A13: Crittenden1999_AKineticModel | B13: Crittenden, JC, S. Hu, DW Hand, & SA Green. "A Kinetic Model for H2O2/UV Process in a Completely Mixed Batch Reactor." Wat. Res. Vol. 33, No. 10, pp. 2315-2328, 1999 | C13: Journal | D13: Secondary | E13: DBCP | F13: 96-12-8 | G13: LP | H13: 1.11 | I13: 0.2623263 | K13: 0.1 | L13: 3.401 | M13: Hydrogen Peroxide | N13: 8.1 | O13: Distilled | R13: 1.5
A14: Crittenden1999_AKineticModel | B14: Crittenden, JC, S. Hu, DW Hand, & SA Green. "A Kinetic Model for H2O2/UV Process in a Completely Mixed Batch Reactor." Wat. Res. Vol. 33, No. 10, pp. 2315-2328, 1999 | C14: Journal | D14: Secondary | E14: DBCP | F14: 96-12-8 | G14: LP | H14: 1.47 | I14: 0.3474051 | K14: 0.1 | L14: 3.401 | M14: Hydrogen Peroxide | N14: 8.4 | O14: Distilled | R14: 1.43
A15: Crittenden1999_AKineticModel | B15: Crittenden, JC, S. Hu, DW Hand, & SA Green. "A Kinetic Model for H2O2/UV Process in a Completely Mixed Batch Reactor." Wat. Res. Vol. 33, No. 10, pp. 2315-2328, 1999 | C15: Journal | D15: Secondary | E15: DBCP | F15: 96-12-8 | G15: LP | H15: 1.35 | I15: 0.3190455 | K15: 0.1 | L15: 3.401 | M15: Hydrogen Peroxide | N15: 8 | O15: Distilled | R15: 1.43
A16: Crittenden1999_AKineticModel | B16: Crittenden, JC, S. Hu, DW Hand, & SA Green. "A Kinetic Model for H2O2/UV Process in a Completely Mixed Batch Reactor." Wat. Res. Vol. 33, No. 10, pp. 2315-2328, 1999 | C16: Journal | D16: Secondary | E16: DBCP | F16: 96-12-8 | G16: LP | H16: 1.32 | I16: 0.3119556 | K16: 0.1 | L16: 3.401 | M16: Hydrogen Peroxide | N16: 8.2 | O16: Distilled | R16: 1.7
A17: Crittenden1999_AKineticModel | B17: Crittenden, JC, S. Hu, DW Hand, & SA Green. "A Kinetic Model for H2O2/UV Process in a Completely Mixed Batch Reactor." Wat. Res. Vol. 33, No. 10, pp. 2315-2328, 1999 | C17: Journal | D17: Secondary | E17: DBCP | F17: 96-12-8 | G17: LP | H17: 1.14 | I17: 0.2694162 | K17: 0.1 | L17: 3.401 | M17: Hydrogen Peroxide | N17: 8.2 | O17: Distilled | R17: 2.43
A18: Crittenden1999_AKineticModel | B18: Crittenden, JC, S. Hu, DW Hand, & SA Green. "A Kinetic Model for H2O2/UV Process in a Completely Mixed Batch Reactor." Wat. Res. Vol. 33, No. 10, pp. 2315-2328, 1999 | C18: Journal | D18: Secondary | E18: DBCP | F18: 96-12-8 | G18: LP | H18: 1.81 | I18: 0.4277573 | K18: 4 | L18: 136.04 | M18: Hydrogen Peroxide | N18: 8.3 | O18: Distilled | R18: 10.3
A19: Crittenden1999_AKineticModel | B19: Crittenden, JC, S. Hu, DW Hand, & SA Green. "A Kinetic Model for H2O2/UV Process in a Completely Mixed Batch Reactor." Wat. Res. Vol. 33, No. 10, pp. 2315-2328, 1999 | C19: Journal | D19: Secondary | E19: DBCP | F19: 96-12-8 | G19: LP | H19: 2.08 | I19: 0.4915664 | K19: 4 | L19: 136.04 | M19: Hydrogen Peroxide | N19: 8.3 | O19: Distilled | R19: 8.17
A20: Crittenden1999_AKineticModel | B20: Crittenden, JC, S. Hu, DW Hand, & SA Green. "A Kinetic Model for H2O2/UV Process in a Completely Mixed Batch Reactor." Wat. Res. Vol. 33, No. 10, pp. 2315-2328, 1999 | C20: Journal | D20: Secondary | E20: DBCP | F20: 96-12-8 | G20: LP | H20: 1.23 | I20: 0.2906859 | K20: 4 | L20: 136.04 | M20: Hydrogen Peroxide | N20: 8.4 | O20: Distilled | R20: 3.7
A21: Crittenden1999_AKineticModel | B21: Crittenden, JC, S. Hu, DW Hand, & SA Green. "A Kinetic Model for H2O2/UV Process in a Completely Mixed Batch Reactor." Wat. Res. Vol. 33, No. 10, pp. 2315-2328, 1999 | C21: Journal | D21: Secondary | E21: DBCP | F21: 96-12-8 | G21: LP | H21: 1.33 | I21: 0.3143189 | K21: 4 | L21: 136.04 | M21: Hydrogen Peroxide | N21: 8.4 | O21: Distilled | R21: 3.47
A22: Crittenden1999_AKineticModel | B22: Crittenden, JC, S. Hu, DW Hand, & SA Green. "A Kinetic Model for H2O2/UV Process in a Completely Mixed Batch Reactor." Wat. Res. Vol. 33, No. 10, pp. 2315-2328, 1999 | C22: Journal | D22: Secondary | E22: DBCP | F22: 96-12-8 | G22: LP | H22: 1.18 | I22: 0.2788694 | K22: 4 | L22: 136.04 | M22: Hydrogen Peroxide | N22: 8.5 | O22: Distilled | R22: 4.23
A23: Crittenden1999_AKineticModel | B23: Crittenden, JC, S. Hu, DW Hand, & SA Green. "A Kinetic Model for H2O2/UV Process in a Completely Mixed Batch Reactor." Wat. Res. Vol. 33, No. 10, pp. 2315-2328, 1999 | C23: Journal | D23: Secondary | E23: DBCP | F23: 96-12-8 | G23: LP | H23: 1.16 | I23: 0.2741428 | K23: 4 | L23: 136.04 | M23: Hydrogen Peroxide | N23: 8.3 | O23: Distilled | R23: 4.47
A24: Crittenden1999_AKineticModel | B24: Crittenden, JC, S. Hu, DW Hand, & SA Green. "A Kinetic Model for H2O2/UV Process in a Completely Mixed Batch Reactor." Wat. Res. Vol. 33, No. 10, pp. 2315-2328, 1999 | C24: Journal | D24: Secondary | E24: DBCP | F24: 96-12-8 | G24: LP | H24: 1.8 | I24: 0.425394 | K24: 4 | L24: 136.04 | M24: Hydrogen Peroxide | N24: 8.2 | O24: Distilled | R24: 7.23
A25: Crittenden1999_AKineticModel | B25: Crittenden, JC, S. Hu, DW Hand, & SA Green. "A Kinetic Model for H2O2/UV Process in a Completely Mixed Batch Reactor." Wat. Res. Vol. 33, No. 10, pp. 2315-2328, 1999 | C25: Journal | D25: Secondary | E25: DBCP | F25: 96-12-8 | G25: LP | H25: 1.38 | I25: 0.3261354 | K25: 4 | L25: 136.04 | M25: Hydrogen Peroxide | N25: 8.4 | O25: Distilled | R25: 3.2
A26: Crittenden1999_AKineticModel | B26: Crittenden, JC, S. Hu, DW Hand, & SA Green. "A Kinetic Model for H2O2/UV Process in a Completely Mixed Batch Reactor." Wat. Res. Vol. 33, No. 10, pp. 2315-2328, 1999 | C26: Journal | D26: Secondary | E26: DBCP | F26: 96-12-8 | G26: LP | H26: 1.23 | I26: 0.2906859 | K26: 4 | L26: 136.04 | M26: Hydrogen Peroxide | N26: 8.4 | O26: Distilled | R26: 3.7
A27: Crittenden1999_AKineticModel | B27: Crittenden, JC, S. Hu, DW Hand, & SA Green. "A Kinetic Model for H2O2/UV Process in a Completely Mixed Batch Reactor." Wat. Res. Vol. 33, No. 10, pp. 2315-2328, 1999 | C27: Journal | D27: Secondary | E27: DBCP | F27: 96-12-8 | G27: LP | H27: 1.16 | I27: 0.2741428 | K27: 4 | L27: 136.04 | M27: Hydrogen Peroxide | N27: 8.4 | O27: Distilled | R27: 3.83
A28: Crittenden1999_AKineticModel | B28: Crittenden, JC, S. Hu, DW Hand, & SA Green. "A Kinetic Model for H2O2/UV Process in a Completely Mixed Batch Reactor." Wat. Res. Vol. 33, No. 10, pp. 2315-2328, 1999 | C28: Journal | D28: Secondary | E28: DBCP | F28: 96-12-8 | G28: LP | H28: 1.83 | I28: 0.4324839 | K28: 4 | L28: 136.04 | M28: Hydrogen Peroxide | N28: 8.4 | O28: Distilled | R28: 3.67
A29: Crittenden1999_AKineticModel | B29: Crittenden, JC, S. Hu, DW Hand, & SA Green. "A Kinetic Model for H2O2/UV Process in a Completely Mixed Batch Reactor." Wat. Res. Vol. 33, No. 10, pp. 2315-2328, 1999 | C29: Journal | D29: Secondary | E29: DBCP | F29: 96-12-8 | G29: LP | H29: 1.09 | I29: 0.2575997 | K29: 4 | L29: 136.04 | M29: Hydrogen Peroxide | N29: 8.4 | O29: Distilled | R29: 3.83
A30: Crittenden1999_AKineticModel | B30: Crittenden, JC, S. Hu, DW Hand, & SA Green. "A Kinetic Model for H2O2/UV Process in a Completely Mixed Batch Reactor." Wat. Res. Vol. 33, No. 10, pp. 2315-2328, 1999 | C30: Journal | D30: Secondary | E30: DBCP | F30: 96-12-8 | G30: LP | H30: 1.33 | I30: 0.3143189 | K30: 4 | L30: 136.04 | M30: Hydrogen Peroxide | N30: 8.4 | O30: Distilled | R30: 3.47
A31: Crittenden1999_AKineticModel | B31: Crittenden, JC, S. Hu, DW Hand, & SA Green. "A Kinetic Model for H2O2/UV Process in a Completely Mixed Batch Reactor." Wat. Res. Vol. 33, No. 10, pp. 2315-2328, 1999 | C31: Journal | D31: Secondary | E31: DBCP | F31: 96-12-8 | G31: LP | H31: 1.44 | I31: 0.3403152 | K31: 4 | L31: 136.04 | M31: Hydrogen Peroxide | N31: 8.4 | O31: Distilled | R31: 3.5
A32: Crittenden1999_AKineticModel | B32: Crittenden, JC, S. Hu, DW Hand, & SA Green. "A Kinetic Model for H2O2/UV Process in a Completely Mixed Batch Reactor." Wat. Res. Vol. 33, No. 10, pp. 2315-2328, 1999 | C32: Journal | D32: Secondary | E32: DBCP | F32: 96-12-8 | G32: LP | H32: 1.77 | I32: 0.4183041 | K32: 4 | L32: 136.04 | M32: Hydrogen Peroxide | N32: 8.4 | O32: Distilled | R32: 3.6
A33: Crittenden1999_AKineticModel | B33: Crittenden, JC, S. Hu, DW Hand, & SA Green. "A Kinetic Model for H2O2/UV Process in a Completely Mixed Batch Reactor." Wat. Res. Vol. 33, No. 10, pp. 2315-2328, 1999 | C33: Journal | D33: Secondary | E33: DBCP | F33: 96-12-8 | G33: LP | H33: 2.34 | I33: 0.5530122 | K33: 0.01 | L33: 0.3401 | M33: Hydrogen Peroxide | N33: 7.2 | O33: Distilled | R33: 1.7
A34: Crittenden1999_AKineticModel | B34: Crittenden, JC, S. Hu, DW Hand, & SA Green. "A Kinetic Model for H2O2/UV Process in a Completely Mixed Batch Reactor." Wat. Res. Vol. 33, No. 10, pp. 2315-2328, 1999 | C34: Journal | D34: Secondary | E34: DBCP | F34: 96-12-8 | G34: LP | H34: 1.91 | I34: 0.4513903 | K34: 1 | L34: 34.01 | M34: Hydrogen Peroxide | N34: 8.1 | O34: Distilled | R34: 2.17
A35: Crittenden1999_AKineticModel | B35: Crittenden, JC, S. Hu, DW Hand, & SA Green. "A Kinetic Model for H2O2/UV Process in a Completely Mixed Batch Reactor." Wat. Res. Vol. 33, No. 10, pp. 2315-2328, 1999 | C35: Journal | D35: Secondary | E35: DBCP | F35: 96-12-8 | G35: LP | H35: 1.42 | I35: 0.3355886 | K35: 2 | L35: 68.02 | M35: Hydrogen Peroxide | N35: 8.4 | O35: Distilled | R35: 2.6
A36: Crittenden1999_AKineticModel | B36: Crittenden, JC, S. Hu, DW Hand, & SA Green. "A Kinetic Model for H2O2/UV Process in a Completely Mixed Batch Reactor." Wat. Res. Vol. 33, No. 10, pp. 2315-2328, 1999 | C36: Journal | D36: Secondary | E36: DBCP | F36: 96-12-8 | G36: LP | H36: 1.83 | I36: 0.4324839 | K36: 4 | L36: 136.04 | M36: Hydrogen Peroxide | N36: 8.4 | O36: Distilled | R36: 3.67
A37: Crittenden1999_AKineticModel | B37: Crittenden, JC, S. Hu, DW Hand, & SA Green. "A Kinetic Model for H2O2/UV Process in a Completely Mixed Batch Reactor." Wat. Res. Vol. 33, No. 10, pp. 2315-2328, 1999 | C37: Journal | D37: Secondary | E37: DBCP | F37: 96-12-8 | G37: LP | H37: 1.01 | I37: 0.2386933 | K37: 4 | L37: 136.04 | M37: Hydrogen Peroxide | N37: 10.4 | O37: Distilled | R37: 16.4
A38: Crittenden1999_AKineticModel | B38: Crittenden, JC, S. Hu, DW Hand, & SA Green. "A Kinetic Model for H2O2/UV Process in a Completely Mixed Batch Reactor." Wat. Res. Vol. 33, No. 10, pp. 2315-2328, 1999 | C38: Journal | D38: Secondary | E38: DBCP | F38: 96-12-8 | G38: LP | H38: 1.04 | I38: 0.2457832 | K38: 4 | L38: 136.04 | M38: Hydrogen Peroxide | N38: 9.4 | O38: Distilled | R38: 10.7
A39: Crittenden1999_AKineticModel | B39: Crittenden, JC, S. Hu, DW Hand, & SA Green. "A Kinetic Model for H2O2/UV Process in a Completely Mixed Batch Reactor." Wat. Res. Vol. 33, No. 10, pp. 2315-2328, 1999 | C39: Journal | D39: Secondary | E39: DBCP | F39: 96-12-8 | G39: LP | H39: 1.83 | I39: 0.4324839 | K39: 4 | L39: 136.04 | M39: Hydrogen Peroxide | N39: 8.4 | O39: Distilled | R39: 3.67
A40: Crittenden1999_AKineticModel | B40: Crittenden, JC, S. Hu, DW Hand, & SA Green. "A Kinetic Model for H2O2/UV Process in a Completely Mixed Batch Reactor." Wat. Res. Vol. 33, No. 10, pp. 2315-2328, 1999 | C40: Journal | D40: Secondary | E40: DBCP | F40: 96-12-8 | G40: LP | H40: 1.02 | I40: 0.2410566 | K40: 4 | L40: 136.04 | M40: Hydrogen Peroxide | N40: 7.4 | O40: Distilled | R40: 2.93
A41: Crittenden1999_AKineticModel | B41: Crittenden, JC, S. Hu, DW Hand, & SA Green. "A Kinetic Model for H2O2/UV Process in a Completely Mixed Batch Reactor." Wat. Res. Vol. 33, No. 10, pp. 2315-2328, 1999 | C41: Journal | D41: Secondary | E41: DBCP | F41: 96-12-8 | G41: LP | H41: 1.15 | I41: 0.2717795 | K41: 4 | L41: 136.04 | M41: Hydrogen Peroxide | N41: 6.4 | O41: Distilled | R41: 1.97
A42: Crittenden1999_AKineticModel | B42: Crittenden, JC, S. Hu, DW Hand, & SA Green. "A Kinetic Model for H2O2/UV Process in a Completely Mixed Batch Reactor." Wat. Res. Vol. 33, No. 10, pp. 2315-2328, 1999 | C42: Journal | D42: Secondary | E42: DBCP | F42: 96-12-8 | G42: LP | H42: 1.32 | I42: 0.3119556 | K42: 4 | L42: 136.04 | M42: Hydrogen Peroxide | N42: 5.4 | O42: Distilled | R42: 1.77
A43: Stefan2002_UVDirectPhotolysis | B43: Stefan, MI & JR Bolton. "UV Direct Photolysis of N-Nitrosodimethylamine (NDMA): Kinetic and Product Study." Helvetica Chimica Acta, 85 (2002) 1416-1426. | C43: Journal | D43: Primary | E43: NDMA | F43: 62-75-9 | G43: MP | H43: 1000 | I43: 74.08 | L43: 0 | M43: None | N43: 3 | O43: Distilled | Q43: 1.04 | R43: =+Q43/0.264 -> 3.939393939
A44: Stefan2002_UVDirectPhotolysis | B44: Stefan, MI & JR Bolton. "UV Direct Photolysis of N-Nitrosodimethylamine (NDMA): Kinetic and Product Study." Helvetica Chimica Acta, 85 (2002) 1416-1426. | C44: Journal | D44: Primary | E44: NDMA | F44: 62-75-9 | G44: MP | H44: 100 | I44: 7.408 | L44: 0 | M44: None | N44: 3 | O44: Distilled | Q44: 0.53 | R44: =+Q44/0.264 -> 2.007575758
A45: Stefan2002_UVDirectPhotolysis | B45: Stefan, MI & JR Bolton. "UV Direct Photolysis of N-Nitrosodimethylamine (NDMA): Kinetic and Product Study." Helvetica Chimica Acta, 85 (2002) 1416-1426. | C45: Journal | D45: Primary | E45: NDMA | F45: 62-75-9 | G45: MP | H45: 10 | I45: 0.7408 | L45: 0 | M45: None | N45: 3 | O45: Distilled | Q45: 0.34 | R45: 1.287878788
A46: Stefan2002_UVDirectPhotolysis | B46: Stefan, MI & JR Bolton. "UV Direct Photolysis of N-Nitrosodimethylamine (NDMA): Kinetic and Product Study." Helvetica Chimica Acta, 85 (2002) 1416-1426. | C46: Journal | D46: Primary | E46: NDMA | F46: 62-75-9 | G46: MP | H46: 1 | I46: 0.07408 | L46: 0 | M46: None | N46: 3 | O46: Distilled | Q46: 0.34 | R46: 1.287878788
A47: Stefan2002_UVDirectPhotolysis | B47: Stefan, MI & JR Bolton. "UV Direct Photolysis of N-Nitrosodimethylamine (NDMA): Kinetic and Product Study." Helvetica Chimica Acta, 85 (2002) 1416-1426. | C47: Journal | D47: Primary | E47: NDMA | F47: 62-75-9 | G47: MP | H47: 1000 | I47: 74.08 | L47: 0 | M47: None | N47: 7 | O47: Distilled | Q47: 4.3 | R47: 16.28787879
A48: Stefan2002_UVDirectPhotolysis | B48: Stefan, MI & JR Bolton. "UV Direct Photolysis of N-Nitrosodimethylamine (NDMA): Kinetic and Product Study." Helvetica Chimica Acta, 85 (2002) 1416-1426. | C48: Journal | D48: Primary | E48: NDMA | F48: 62-75-9 | G48: MP | H48: 1000 | I48: 74.08 | L48: 0 | M48: None | N48: 7 | O48: Distilled | Q48: 29.6 | R48: 112.1212121
A49: Stefan2002_UVDirectPhotolysis | B49: Stefan, MI & JR Bolton. "UV Direct Photolysis of N-Nitrosodimethylamine (NDMA): Kinetic and Product Study." Helvetica Chimica Acta, 85 (2002) 1416-1426. | C49: Journal | D49: Primary | E49: NDMA | F49: 62-75-9 | G49: MP | H49: 100 | I49: 7.408 | L49: 0 | M49: None | N49: 7 | O49: Distilled | Q49: 1.63 | R49: 6.174242424
A50: Stefan2002_UVDirectPhotolysis | B50: Stefan, MI & JR Bolton. "UV Direct Photolysis of N-Nitrosodimethylamine (NDMA): Kinetic and Product Study." Helvetica Chimica Acta, 85 (2002) 1416-1426. | C50: Journal | D50: Primary | E50: NDMA | F50: 62-75-9 | G50: MP | H50: 10 | I50: 0.7408 | L50: 0 | M50: None | N50: 7 | O50: Distilled | Q50: 1.29 | R50: 4.886363636
A51: Stefan2002_UVDirectPhotolysis | B51: Stefan, MI & JR Bolton. "UV Direct Photolysis of N-Nitrosodimethylamine (NDMA): Kinetic and Product Study." Helvetica Chimica Acta, 85 (2002) 1416-1426. | C51: Journal | D51: Primary | E51: NDMA | F51: 62-75-9 | G51: MP | H51: 1 | I51: 0.07408 | L51: 0 | M51: None | N51: 7 | O51: Distilled | Q51: 0.53 | R51: 2.007575758
A52: Barazesh2015_ModularAOP | B52: Barazesh, JM, T Henneble, JT Jasper & DL Sedlak. "Modular Advanced Oxidation Process Enabled by Cathodic Hydrogen Peroxide Production." Env. Sci. & Tech. 2015 (49) 7391-7399. | C52: Journal | D52: Primary | E52: Carbamazepine | F52: 298-46-4 | G52: LP | I52: 0.01 | L52: 0 | M52: None | N52: 5.36 | O52: Electrolyte | Q52: 12 | R52: 45.45454545
A53: Barazesh2015_ModularAOP | B53: Barazesh, JM, T Henneble, JT Jasper & DL Sedlak. "Modular Advanced Oxidation Process Enabled by Cathodic Hydrogen Peroxide Production." Env. Sci. & Tech. 2015 (49) 7391-7399. | C53: Journal | D53: Primary | E53: Carbamazepine | F53: 298-46-4 | G53: LP | I53: 0.01 | L53: 0 | M53: None | N53: 8.69 | O53: Synthetic groundwater | Q53: 17 | R53: 64.39393939
A54: Barazesh2015_ModularAOP | B54: Barazesh, JM, T Henneble, JT Jasper & DL Sedlak. "Modular Advanced Oxidation Process Enabled by Cathodic Hydrogen Peroxide Production." Env. Sci. & Tech. 2015 (49) 7391-7399. | C54: Journal | D54: Primary | E54: Carbamazepine | F54: 298-46-4 | G54: LP | I54: 0.01 | L54: 0 | M54: None | N54: 8.55 | O54: Synthetic surface water | Q54: 28 | R54: 106.0606061
A55: Barazesh2015_ModularAOP | B55: Barazesh, JM, T Henneble, JT Jasper & DL Sedlak. "Modular Advanced Oxidation Process Enabled by Cathodic Hydrogen Peroxide Production." Env. Sci. & Tech. 2015 (49) 7391-7399. | C55: Journal | D55: Primary | E55: Carbamazepine | F55: 298-46-4 | G55: LP | I55: 0.01 | L55: 0 | M55: None | N55: 8.17 | O55: Wastewater effluent | Q55: 27 | R55: 102.2727273
A56: Barazesh2015_ModularAOP | B56: Barazesh, JM, T Henneble, JT Jasper & DL Sedlak. "Modular Advanced Oxidation Process Enabled by Cathodic Hydrogen Peroxide Production." Env. Sci. & Tech. 2015 (49) 7391-7399. | C56: Journal | D56: Primary | E56: Carbamazepine | F56: 298-46-4 | G56: LP | I56: 0.01 | K56: 0.5 | L56: 17.005 | M56: Hydrogen Peroxide | N56: 5.36 | O56: Electrolyte | Q56: 0.2 | R56: 0.7575757576
A57: Barazesh2015_ModularAOP | B57: Barazesh, JM, T Henneble, JT Jasper & DL Sedlak. "Modular Advanced Oxidation Process Enabled by Cathodic Hydrogen Peroxide Production." Env. Sci. & Tech. 2015 (49) 7391-7399. | C57: Journal | D57: Primary | E57: Carbamazepine | F57: 298-46-4 | G57: LP | I57: 0.01 | K57: 0.5 | L57: 17.005 | M57: Hydrogen Peroxide | N57: 8.69 | O57: Synthetic groundwater | Q57: 2 | R57: 7.575757576
A58: Barazesh2015_ModularAOP | B58: Barazesh, JM, T Henneble, JT Jasper & DL Sedlak. "Modular Advanced Oxidation Process Enabled by Cathodic Hydrogen Peroxide Production." Env. Sci. & Tech. 2015 (49) 7391-7399. | C58: Journal | D58: Primary | E58: Carbamazepine | F58: 298-46-4 | G58: LP | I58: 0.01 | K58: 0.5 | L58: 17.005 | M58: Hydrogen Peroxide | N58: 8.55 | O58: Synthetic surface water | Q58: 1.08 | R58: 4.090909091
A59: Barazesh2015_ModularAOP | B59: Barazesh, JM, T Henneble, JT Jasper & DL Sedlak. "Modular Advanced Oxidation Process Enabled by Cathodic Hydrogen Peroxide Production." Env. Sci. & Tech. 2015 (49) 7391-7399. | C59: Journal | D59: Primary | E59: Carbamazepine | F59: 298-46-4 | G59: LP | I59: 0.01 | K59: 0.5 | L59: 17.005 | M59: Hydrogen Peroxide | N59: 8.17 | O59: Wastewater effluent | Q59: 2.84 | R59: 10.75757576
A60: Beerendonk2009_NewDBDLamp | B60: Beerendonk, EF, DJ Harmsen, DH Metz, AH Knol, J Geboers & GF IJpelaar. "New DBD-lamp combines the advantages of the mercury LP and MP UV lamps for UV/H2O2 oxidation." WQTC Seattle, November 2009. | C60: Proceedings | D60: Primary | E60: MTBE | F60: 1634-04-4 | G60: MP | L60: 10 | M60: Hydrogen Peroxide | O60: Pre-treated water Dunea | Q60: 1.8 | R60: 6.818181818
A61: Beerendonk2009_NewDBDLamp | B61: Beerendonk, EF, DJ Harmsen, DH Metz, AH Knol, J Geboers & GF IJpelaar. "New DBD-lamp combines the advantages of the mercury LP and MP UV lamps for UV/H2O2 oxidation." WQTC Seattle, November 2009. | C61: Proceedings | D61: Primary | E61: Alachlor | F61: 15972-60-8 | G61: MP | L61: 10 | M61: Hydrogen Peroxide | O61: Pre-treated water Dunea | Q61: 0.71 | R61: 2.689393939
A62: Beerendonk2009_NewDBDLamp | B62: Beerendonk, EF, DJ Harmsen, DH Metz, AH Knol, J Geboers & GF IJpelaar. "New DBD-lamp combines the advantages of the mercury LP and MP UV lamps for UV/H2O2 oxidation." WQTC Seattle, November 2009. | C62: Proceedings | D62: Primary | E62: Atrazine | F62: 1912-24-9 | G62: MP | L62: 10 | M62: Hydrogen Peroxide | O62: Pre-treated water Dunea | Q62: 1.06 | R62: 4.015151515
A63: Beerendonk2009_NewDBDLamp | B63: Beerendonk, EF, DJ Harmsen, DH Metz, AH Knol, J Geboers & GF IJpelaar. "New DBD-lamp combines the advantages of the mercury LP and MP UV lamps for UV/H2O2 oxidation." WQTC Seattle, November 2009. | C63: Proceedings | D63: Primary | E63: Cyanazine | F63: 21725-46-2 | G63: MP | L63: 10 | M63: Hydrogen Peroxide | O63: Pre-treated water Dunea | Q63: 1.47 | R63: 5.568181818
A64: Beerendonk2009_NewDBDLamp | B64: Beerendonk, EF, DJ Harmsen, DH Metz, AH Knol, J Geboers & GF IJpelaar. "New DBD-lamp combines the advantages of the mercury LP and MP UV lamps for UV/H2O2 oxidation." WQTC Seattle, November 2009. | C64: Proceedings | D64: Primary | E64: Metazachlor | G64: MP | L64: 10 | M64: Hydrogen Peroxide | O64: Pre-treated water Dunea | Q64: 0.58 | R64: 2.196969697
A65: Beerendonk2009_NewDBDLamp | B65: Beerendonk, EF, DJ Harmsen, DH Metz, AH Knol, J Geboers & GF IJpelaar. "New DBD-lamp combines the advantages of the mercury LP and MP UV lamps for UV/H2O2 oxidation." WQTC Seattle, November 2009. | C65: Proceedings | D65: Primary | E65: Erythromycine | F65: 114-07-8 | G65: MP | L65: 10 | M65: Hydrogen Peroxide | O65: Pre-treated water Dunea | Q65: 1 | R65: 3.787878788
A66: Beerendonk2009_NewDBDLamp | B66: Beerendonk, EF, DJ Harmsen, DH Metz, AH Knol, J Geboers & GF IJpelaar. "New DBD-lamp combines the advantages of the mercury LP and MP UV lamps for UV/H2O2 oxidation." WQTC Seattle, November 2009. | C66: Proceedings | D66: Primary | E66: Bezafibrate | F66: 41859-67-0 | G66: MP | L66: 10 | M66: Hydrogen Peroxide | O66: Pre-treated water Dunea | Q66: 0.64 | R66: 2.424242424
A67: Beerendonk2009_NewDBDLamp | B67: Beerendonk, EF, DJ Harmsen, DH Metz, AH Knol, J Geboers & GF IJpelaar. "New DBD-lamp combines the advantages of the mercury LP and MP UV lamps for UV/H2O2 oxidation." WQTC Seattle, November 2009. | C67: Proceedings | D67: Primary | E67: Carbamazepine | F67: 298-46-4 | G67: MP | L67: 10 | M67: Hydrogen Peroxide | O67: Pre-treated water Dunea | Q67: 0.77 | R67: 2.916666667
A68: Beerendonk2009_NewDBDLamp | B68: Beerendonk, EF, DJ Harmsen, DH Metz, AH Knol, J Geboers & GF IJpelaar. "New DBD-lamp combines the advantages of the mercury LP and MP UV lamps for UV/H2O2 oxidation." WQTC Seattle, November 2009. | C68: Proceedings | D68: Primary | E68: Diclofenac | F68: 15307-86-5 | G68: MP | L68: 10 | M68: Hydrogen Peroxide | O68: Pre-treated water Dunea | Q68: 0.27 | R68: 1.022727273
A69: Beerendonk2009_NewDBDLamp | B69: Beerendonk, EF, DJ Harmsen, DH Metz, AH Knol, J Geboers & GF IJpelaar. "New DBD-lamp combines the advantages of the mercury LP and MP UV lamps for UV/H2O2 oxidation." WQTC Seattle, November 2009. | C69: Proceedings | D69: Primary | E69: Ibuprofen | F69: 15687-27-1 | G69: MP | L69: 10 | M69: Hydrogen Peroxide | O69: Pre-treated water Dunea | Q69: 0.58 | R69: 2.196969697
A70: Beerendonk2009_NewDBDLamp | B70: Beerendonk, EF, DJ Harmsen, DH Metz, AH Knol, J Geboers & GF IJpelaar. "New DBD-lamp combines the advantages of the mercury LP and MP UV lamps for UV/H2O2 oxidation." WQTC Seattle, November 2009. | C70: Proceedings | D70: Primary | E70: Lincomycine | F70: 154-21-2 | G70: MP | L70: 10 | M70: Hydrogen Peroxide | O70: Pre-treated water Dunea | Q70: 0.48 | R70: 1.818181818
A71: Beerendonk2009_NewDBDLamp | B71: Beerendonk, EF, DJ Harmsen, DH Metz, AH Knol, J Geboers & GF IJpelaar. "New DBD-lamp combines the advantages of the mercury LP and MP UV lamps for UV/H2O2 oxidation." WQTC Seattle, November 2009. | C71: Proceedings | D71: Primary | E71: Metropolol | F71: 51384-51-1 | G71: MP | L71: 10 | M71: Hydrogen Peroxide | O71: Pre-treated water Dunea | Q71: 0.78 | R71: 2.954545455
A72: Beerendonk2009_NewDBDLamp | B72: Beerendonk, EF, DJ Harmsen, DH Metz, AH Knol, J Geboers & GF IJpelaar. "New DBD-lamp combines the advantages of the mercury LP and MP UV lamps for UV/H2O2 oxidation." WQTC Seattle, November 2009. | C72: Proceedings | D72: Primary | E72: Phenazone | F72: 60-80-0 | G72: MP | L72: 10 | M72: Hydrogen Peroxide | O72: Pre-treated water Dunea | Q72: 0.66 | R72: 2.5
A73: Beerendonk2009_NewDBDLamp | B73: Beerendonk, EF, DJ Harmsen, DH Metz, AH Knol, J Geboers & GF IJpelaar. "New DBD-lamp combines the advantages of the mercury LP and MP UV lamps for UV/H2O2 oxidation." WQTC Seattle, November 2009. | C73: Proceedings | D73: Primary | E73: Sotalol | F73: 3930-20-9 | G73: MP | L73: 10 | M73: Hydrogen Peroxide | O73: Pre-treated water Dunea | Q73: 0.38 | R73: 1.439393939
A74: Beerendonk2009_NewDBDLamp | B74: Beerendonk, EF, DJ Harmsen, DH Metz, AH Knol, J Geboers & GF IJpelaar. "New DBD-lamp combines the advantages of the mercury LP and MP UV lamps for UV/H2O2 oxidation." WQTC Seattle, November 2009. | C74: Proceedings | D74: Primary | E74: Sulfamethoxazole | F74: 723-46-6 | G74: MP | L74: 10 | M74: Hydrogen Peroxide | O74: Pre-treated water Dunea | Q74: 0.53 | R74: 2.007575758
A75: Beerendonk2009_NewDBDLamp | B75: Beerendonk, EF, DJ Harmsen, DH Metz, AH Knol, J Geboers & GF IJpelaar. "New DBD-lamp combines the advantages of the mercury LP and MP UV lamps for UV/H2O2 oxidation." WQTC Seattle, November 2009. | C75: Proceedings | D75: Primary | E75: MTBE | F75: 1634-04-4 | G75: LP | L75: 10 | M75: Hydrogen Peroxide | O75: Pre-treated water Dunea | Q75: 2 | R75: 7.575757576
A76: Beerendonk2009_NewDBDLamp | B76: Beerendonk, EF, DJ Harmsen, DH Metz, AH Knol, J Geboers & GF IJpelaar. "New DBD-lamp combines the advantages of the mercury LP and MP UV lamps for UV/H2O2 oxidation." WQTC Seattle, November 2009. | C76: Proceedings | D76: Primary | E76: Alachlor | F76: 15972-60-8 | G76: LP | L76: 10 | M76: Hydrogen Peroxide | O76: Pre-treated water Dunea | Q76: 0.35 | R76: 1.325757576
A77: Beerendonk2009_NewDBDLamp | B77: Beerendonk, EF, DJ Harmsen, DH Metz, AH Knol, J Geboers & GF IJpelaar. "New DBD-lamp combines the advantages of the mercury LP and MP UV lamps for UV/H2O2 oxidation." WQTC Seattle, November 2009. | C77: Proceedings | D77: Primary | E77: Atrazine | F77: 1912-24-9 | G77: LP | L77: 10 | M77: Hydrogen Peroxide | O77: Pre-treated water Dunea | Q77: 0.62 | R77: 2.348484848
A78: Beerendonk2009_NewDBDLamp | B78: Beerendonk, EF, DJ Harmsen, DH Metz, AH Knol, J Geboers & GF IJpelaar. "New DBD-lamp combines the advantages of the mercury LP and MP UV lamps for UV/H2O2 oxidation." WQTC Seattle, November 2009. | C78: Proceedings | D78: Primary | E78: Cyanazine | F78: 21725-46-2 | G78: LP | L78: 10 | M78: Hydrogen Peroxide | O78: Pre-treated water Dunea | Q78: 0.8 | R78: 3.03030303
A79: Beerendonk2009_NewDBDLamp | B79: Beerendonk, EF, DJ Harmsen, DH Metz, AH Knol, J Geboers & GF IJpelaar. "New DBD-lamp combines the advantages of the mercury LP and MP UV lamps for UV/H2O2 oxidation." WQTC Seattle, November 2009. | C79: Proceedings | D79: Primary | E79: Metazachlor | G79: LP | L79: 10 | M79: Hydrogen Peroxide | O79: Pre-treated water Dunea | Q79: 0.34 | R79: 1.287878788
A80: Beerendonk2009_NewDBDLamp | B80: Beerendonk, EF, DJ Harmsen, DH Metz, AH Knol, J Geboers & GF IJpelaar. "New DBD-lamp combines the advantages of the mercury LP and MP UV lamps for UV/H2O2 oxidation." WQTC Seattle, November 2009. | C80: Proceedings | D80: Primary | E80: Erythromycine | F80: 114-07-8 | G80: LP | L80: 10 | M80: Hydrogen Peroxide | O80: Pre-treated water Dunea | Q80: 0.42 | R80: 1.590909091
A81: Beerendonk2009_NewDBDLamp | B81: Beerendonk, EF, DJ Harmsen, DH Metz, AH Knol, J Geboers & GF IJpelaar. "New DBD-lamp combines the advantages of the mercury LP and MP UV lamps for UV/H2O2 oxidation." WQTC Seattle, November 2009. | C81: Proceedings | D81: Primary | E81: Bezafibrate | F81: 41859-67-0 | G81: LP | L81: 10 | M81: Hydrogen Peroxide | O81: Pre-treated water Dunea | Q81: 0.26 | R81: 0.9848484848
A82: Beerendonk2009_NewDBDLamp | B82: Beerendonk, EF, DJ Harmsen, DH Metz, AH Knol, J Geboers & GF IJpelaar. "New DBD-lamp combines the advantages of the mercury LP and MP UV lamps for UV/H2O2 oxidation." WQTC Seattle, November 2009. | C82: Proceedings | D82: Primary | E82: Carbamazepine | F82: 298-46-4 | G82: LP | L82: 10 | M82: Hydrogen Peroxide | O82: Pre-treated water Dunea | Q82: 0.4 | R82: 1.515151515
A83: Beerendonk2009_NewDBDLamp | B83: Beerendonk, EF, DJ Harmsen, DH Metz, AH Knol, J Geboers & GF IJpelaar. "New DBD-lamp combines the advantages of the mercury LP and MP UV lamps for UV/H2O2 oxidation." WQTC Seattle, November 2009. | C83: Proceedings | D83: Primary | E83: Diclofenac | F83: 15307-86-5 | G83: LP | L83: 10 | M83: Hydrogen Peroxide | O83: Pre-treated water Dunea | Q83: 0.1 | R83: 0.3787878788
A84: Beerendonk2009_NewDBDLamp | B84: Beerendonk, EF, DJ Harmsen, DH Metz, AH Knol, J Geboers & GF IJpelaar. "New DBD-lamp combines the advantages of the mercury LP and MP UV lamps for UV/H2O2 oxidation." WQTC Seattle, November 2009. | C84: Proceedings | D84: Primary | E84: Ibuprofen | F84: 15687-27-1 | G84: LP | L84: 10 | M84: Hydrogen Peroxide | O84: Pre-treated water Dunea | Q84: 0.32 | R84: 1.212121212
A85: Beerendonk2009_NewDBDLamp | B85: Beerendonk, EF, DJ Harmsen, DH Metz, AH Knol, J Geboers & GF IJpelaar. "New DBD-lamp combines the advantages of the mercury LP and MP UV lamps for UV/H2O2 oxidation." WQTC Seattle, November 2009. | C85: Proceedings | D85: Primary | E85: Lincomycine | F85: 154-21-2 | G85: LP | L85: 10 | M85: Hydrogen Peroxide | O85: Pre-treated water Dunea | Q85: 0.24 | R85: 0.9090909091
A86: Beerendonk2009_NewDBDLamp | B86: Beerendonk, EF, DJ Harmsen, DH Metz, AH Knol, J Geboers & GF IJpelaar. "New DBD-lamp combines the advantages of the mercury LP and MP UV lamps for UV/H2O2 oxidation." WQTC Seattle, November 2009. | C86: Proceedings | D86: Primary | E86: Metropolol | F86: 51384-51-1 | G86: LP | L86: 10 | M86: Hydrogen Peroxide | O86: Pre-treated water Dunea | Q86: 0.43 | R86: 1.628787879
A87: Beerendonk2009_NewDBDLamp | B87: Beerendonk, EF, DJ Harmsen, DH Metz, AH Knol, J Geboers & GF IJpelaar. "New DBD-lamp combines the advantages of the mercury LP and MP UV lamps for UV/H2O2 oxidation." WQTC Seattle, November 2009. | C87: Proceedings | D87: Primary | E87: Phenazone | F87: 60-80-0 | G87: LP | L87: 10 | M87: Hydrogen Peroxide | O87: Pre-treated water Dunea | Q87: 0.3 | R87: 1.136363636
A88: Beerendonk2009_NewDBDLamp | B88: Beerendonk, EF, DJ Harmsen, DH Metz, AH Knol, J Geboers & GF IJpelaar. "New DBD-lamp combines the advantages of the mercury LP and MP UV lamps for UV/H2O2 oxidation." WQTC Seattle, November 2009. | C88: Proceedings | D88: Primary | E88: Sotalol | F88: 3930-20-9 | G88: LP | L88: 10 | M88: Hydrogen Peroxide | O88: Pre-treated water Dunea | Q88: 0.2 | R88: 0.7575757576
A89: Beerendonk2009_NewDBDLamp | B89: Beerendonk, EF, DJ Harmsen, DH Metz, AH Knol, J Geboers & GF IJpelaar. "New DBD-lamp combines the advantages of the mercury LP and MP UV lamps for UV/H2O2 oxidation." WQTC Seattle, November 2009. | C89: Proceedings | D89: Primary | E89: Sulfamethoxazole | F89: 723-46-6 | G89: LP | L89: 10 | M89: Hydrogen Peroxide | O89: Pre-treated water Dunea | Q89: 0.14 | R89: 0.5303030303
A90: Beerendonk2009_NewDBDLamp | B90: Beerendonk, EF, DJ Harmsen, DH Metz, AH Knol, J Geboers & GF IJpelaar. "New DBD-lamp combines the advantages of the mercury LP and MP UV lamps for UV/H2O2 oxidation." WQTC Seattle, November 2009. | C90: Proceedings | D90: Primary | E90: MTBE | F90: 1634-04-4 | G90: DBD | L90: 10 | M90: Hydrogen Peroxide | O90: Pre-treated water Dunea | Q90: 1.12 | R90: 4.242424242
A91: Beerendonk2009_NewDBDLamp | B91: Beerendonk, EF, DJ Harmsen, DH Metz, AH Knol, J Geboers & GF IJpelaar. "New DBD-lamp combines the advantages of the mercury LP and MP UV lamps for UV/H2O2 oxidation." WQTC Seattle, November 2009. | C91: Proceedings | D91: Primary | E91: Alachlor | F91: 15972-60-8 | G91: DBD | L91: 10 | M91: Hydrogen Peroxide | O91: Pre-treated water Dunea | Q91: 0.4 | R91: 1.515151515
A92: Beerendonk2009_NewDBDLamp | B92: Beerendonk, EF, DJ Harmsen, DH Metz, AH Knol, J Geboers & GF IJpelaar. "New DBD-lamp combines the advantages of the mercury LP and MP UV lamps for UV/H2O2 oxidation." WQTC Seattle, November 2009. | C92: Proceedings | D92: Primary | E92: Atrazine | F92: 1912-24-9 | G92: DBD | L92: 10 | M92: Hydrogen Peroxide | O92: Pre-treated water Dunea | Q92: 0.59 | R92: 2.234848485
A93: Beerendonk2009_NewDBDLamp | B93: Beerendonk, EF, DJ Harmsen, DH Metz, AH Knol, J Geboers & GF IJpelaar. "New DBD-lamp combines the advantages of the mercury LP and MP UV lamps for UV/H2O2 oxidation." WQTC Seattle, November 2009. | C93: Proceedings | D93: Primary | E93: Cyanazine | F93: 21725-46-2 | G93: DBD | L93: 10 | M93: Hydrogen Peroxide | O93: Pre-treated water Dunea | Q93: 0.74 | R93: 2.803030303
A94: Beerendonk2009_NewDBDLamp | B94: Beerendonk, EF, DJ Harmsen, DH Metz, AH Knol, J Geboers & GF IJpelaar. "New DBD-lamp combines the advantages of the mercury LP and MP UV lamps for UV/H2O2 oxidation." WQTC Seattle, November 2009. | C94: Proceedings | D94: Primary | E94: Metazachlor | G94: DBD | L94: 10 | M94: Hydrogen Peroxide | O94: Pre-treated water Dunea | Q94: 0.34 | R94: 1.287878788
A95: Beerendonk2009_NewDBDLamp | B95: Beerendonk, EF, DJ Harmsen, DH Metz, AH Knol, J Geboers & GF IJpelaar. "New DBD-lamp combines the advantages of the mercury LP and MP UV lamps for UV/H2O2 oxidation." WQTC Seattle, November 2009. | C95: Proceedings | D95: Primary | E95: Erythromycine | F95: 114-07-8 | G95: DBD | L95: 10 | M95: Hydrogen Peroxide | O95: Pre-treated water Dunea | Q95: 0.6 | R95: 2.272727273
A96: Beerendonk2009_NewDBDLamp | B96: Beerendonk, EF, DJ Harmsen, DH Metz, AH Knol, J Geboers & GF IJpelaar. "New DBD-lamp combines the advantages of the mercury LP and MP UV lamps for UV/H2O2 oxidation." WQTC Seattle, November 2009. | C96: Proceedings | D96: Primary | E96: Bezafibrate | F96: 41859-67-0 | G96: DBD | L96: 10 | M96: Hydrogen Peroxide | O96: Pre-treated water Dunea | Q96: 0.59 | R96: 2.234848485
A97: Beerendonk2009_NewDBDLamp | B97: Beerendonk, EF, DJ Harmsen, DH Metz, AH Knol, J Geboers & GF IJpelaar. "New DBD-lamp combines the advantages of the mercury LP and MP UV lamps for UV/H2O2 oxidation." WQTC Seattle, November 2009. | C97: Proceedings | D97: Primary | E97: Carbamazepine | F97: 298-46-4 | G97: DBD | L97: 10 | M97: Hydrogen Peroxide | O97: Pre-treated water Dunea | Q97: 0.38 | R97: 1.439393939
A98: Beerendonk2009_NewDBDLamp | B98: Beerendonk, EF, DJ Harmsen, DH Metz, AH Knol, J Geboers & GF IJpelaar. "New DBD-lamp combines the advantages of the mercury LP and MP UV lamps for UV/H2O2 oxidation." WQTC Seattle, November 2009. | C98: Proceedings | D98: Primary | E98: Diclofenac | F98: 15307-86-5 | G98: DBD | L98: 10 | M98: Hydrogen Peroxide | O98: Pre-treated water Dunea | Q98: 0.12 | R98: 0.4545454545
A99: Beerendonk2009_NewDBDLamp | B99: Beerendonk, EF, DJ Harmsen, DH Metz, AH Knol, J Geboers & GF IJpelaar. "New DBD-lamp combines the advantages of the mercury LP and MP UV lamps for UV/H2O2 oxidation." WQTC Seattle, November 2009. | C99: Proceedings | D99: Primary | E99: Ibuprofen | F99: 15687-27-1 | G99: DBD | L99: 10 | M99: Hydrogen Peroxide | O99: Pre-treated water Dunea | Q99: 0.4 | R99: 1.515151515
A100: Beerendonk2009_NewDBDLamp | B100: Beerendonk, EF, DJ Harmsen, DH Metz, AH Knol, J Geboers & GF IJpelaar. "New DBD-lamp combines the advantages of the mercury LP and MP UV lamps for UV/H2O2 oxidation." WQTC Seattle, November 2009. | C100: Proceedings | D100: Primary | E100: Lincomycine | F100: 154-21-2 | G100: DBD | L100: 10 | M100: Hydrogen Peroxide | O100: Pre-treated water Dunea | Q100: 0.26 | R100: 0.9848484848
A101: Beerendonk2009_NewDBDLamp | B101: Beerendonk, EF, DJ Harmsen, DH Metz, AH Knol, J Geboers & GF IJpelaar. "New DBD-lamp combines the advantages of the mercury LP and MP UV lamps for UV/H2O2 oxidation." WQTC Seattle, November 2009. | C101: Proceedings | D101: Primary | E101: Metropolol | F101: 51384-51-1 | G101: DBD | L101: 10 | M101: Hydrogen Peroxide | O101: Pre-treated water Dunea | Q101: 0.42 | R101: 1.590909091
A102: Beerendonk2009_NewDBDLamp | B102: Beerendonk, EF, DJ Harmsen, DH Metz, AH Knol, J Geboers & GF IJpelaar. "New DBD-lamp combines the advantages of the mercury LP and MP UV lamps for UV/H2O2 oxidation." WQTC Seattle, November 2009. | C102: Proceedings | D102: Primary | E102: Phenazone | F102: 60-80-0 | G102: DBD | L102: 10 | M102: Hydrogen Peroxide | O102: Pre-treated water Dunea | Q102: 0.36 | R102: 1.363636364
A103: Beerendonk2009_NewDBDLamp | B103: Beerendonk, EF, DJ Harmsen, DH Metz, AH Knol, J Geboers & GF IJpelaar. "New DBD-lamp combines the advantages of the mercury LP and MP UV lamps for UV/H2O2 oxidation." WQTC Seattle, November 2009. | C103: Proceedings | D103: Primary | E103: Sotalol | F103: 3930-20-9 | G103: DBD | L103: 10 | M103: Hydrogen Peroxide | O103: Pre-treated water Dunea | Q103: 0.2 | R103: 0.7575757576
A104: Beerendonk2009_NewDBDLamp | B104: Beerendonk, EF, DJ Harmsen, DH Metz, AH Knol, J Geboers & GF IJpelaar. "New DBD-lamp combines the advantages of the mercury LP and MP UV lamps for UV/H2O2 oxidation." WQTC Seattle, November 2009. | C104: Proceedings | D104: Primary | E104: Sulfamethoxazole | F104: 723-46-6 | G104: DBD | L104: 10 | M104: Hydrogen Peroxide | O104: Pre-treated water Dunea | Q104: 0.34 | R104: 1.287878788
A105: Bertelkamp2010_GACFiltration | B105: Bertelkamp, C, K Lekkerkerker-Tenissen, AH Knol, JQJC Verberk, JC van Dijk & CJ Houtman. "Granular Activated Carbon Filtration or Ion Exchange as Pre-Treatment Option for the Advanced Oxidation Process; Advantages and Limitations." WQTC 2010. | C105: Proceedings | D105: Primary | E105: Atrazine | F105: 1912-24-9 | G105: MP | I105: 0.01 | L105: 10 | M105: Hydrogen Peroxide | O105: No pretreatment | Q105: 1.4 | R105: 5.303030303
A106: Bertelkamp2010_GACFiltration | B106: Bertelkamp, C, K Lekkerkerker-Tenissen, AH Knol, JQJC Verberk, JC van Dijk & CJ Houtman. "Granular Activated Carbon Filtration or Ion Exchange as Pre-Treatment Option for the Advanced Oxidation Process; Advantages and Limitations." WQTC 2010. | C106: Proceedings | D106: Primary | E106: Bromacil | F106: 314-40-9 | G106: MP | I106: 0.01 | L106: 10 | M106: Hydrogen Peroxide | O106: No pretreatment | Q106: 1.6 | R106: 6.060606061
A107: Bertelkamp2010_GACFiltration | B107: Bertelkamp, C, K Lekkerkerker-Tenissen, AH Knol, JQJC Verberk, JC van Dijk & CJ Houtman. "Granular Activated Carbon Filtration or Ion Exchange as Pre-Treatment Option for the Advanced Oxidation Process; Advantages and Limitations." WQTC 2010. | C107: Proceedings | D107: Primary | E107: Ibuprofen | F107: 15687-27-1 | G107: MP | I107: 0.02 | L107: 10 | M107: Hydrogen Peroxide | O107: No pretreatment | Q107: 1.35 | R107: 5.113636364
A108: Bertelkamp2010_GACFiltration | B108: Bertelkamp, C, K Lekkerkerker-Tenissen, AH Knol, JQJC Verberk, JC van Dijk & CJ Houtman. "Granular Activated Carbon Filtration or Ion Exchange as Pre-Treatment Option for the Advanced Oxidation Process; Advantages and Limitations." WQTC 2010. | C108: Proceedings | D108: Primary | E108: NDMA | F108: 62-75-9 | G108: MP | I108: 0.01 | L108: 10 | M108: Hydrogen Peroxide | O108: No pretreatment | Q108: 1 | R108: 3.787878788
A109: Bertelkamp2010_GACFiltration | B109: Bertelkamp, C, K Lekkerkerker-Tenissen, AH Knol, JQJC Verberk, JC van Dijk & CJ Houtman. "Granular Activated Carbon Filtration or Ion Exchange as Pre-Treatment Option for the Advanced Oxidation Process; Advantages and Limitations." WQTC 2010. | C109: Proceedings | D109: Primary | E109: Atrazine | F109: 1912-24-9 | G109: MP | I109: 0.01 | L109: 10 | M109: Hydrogen Peroxide | O109: GAC pretreatment | Q109: 0.7 | R109: 2.651515152
A110: Bertelkamp2010_GACFiltration | B110: Bertelkamp, C, K Lekkerkerker-Tenissen, AH Knol, JQJC Verberk, JC van Dijk & CJ Houtman. "Granular Activated Carbon Filtration or Ion Exchange as Pre-Treatment Option for the Advanced Oxidation Process; Advantages and Limitations." WQTC 2010. | C110: Proceedings | D110: Primary | E110: Bromacil | F110: 314-40-9 | G110: MP | I110: 0.01 | L110: 10 | M110: Hydrogen Peroxide | O110: GAC pretreatment | Q110: 1 | R110: 3.787878788
A111: Bertelkamp2010_GACFiltration | B111: Bertelkamp, C, K Lekkerkerker-Tenissen, AH Knol, JQJC Verberk, JC van Dijk & CJ Houtman. "Granular Activated Carbon Filtration or Ion Exchange as Pre-Treatment Option for the Advanced Oxidation Process; Advantages and Limitations." WQTC 2010. | C111: Proceedings | D111: Primary | E111: Ibuprofen | F111: 15687-27-1 | G111: MP | I111: 0.02 | L111: 10 | M111: Hydrogen Peroxide | O111: GAC pretreatment | Q111: 0.8 | R111: 3.03030303
A112: Bertelkamp2010_GACFiltration | B112: Bertelkamp, C, K Lekkerkerker-Tenissen, AH Knol, JQJC Verberk, JC van Dijk & CJ Houtman. "Granular Activated Carbon Filtration or Ion Exchange as Pre-Treatment Option for the Advanced Oxidation Process; Advantages and Limitations." WQTC 2010. | C112: Proceedings | D112: Primary | E112: NDMA | F112: 62-75-9 | G112: MP | I112: 0.01 | L112: 10 | M112: Hydrogen Peroxide | O112: GAC pretreatment | Q112: 0.6 | R112: 2.272727273
A113: Bertelkamp2010_GACFiltration | B113: Bertelkamp, C, K Lekkerkerker-Tenissen, AH Knol, JQJC Verberk, JC van Dijk & CJ Houtman. "Granular Activated Carbon Filtration or Ion Exchange as Pre-Treatment Option for the Advanced Oxidation Process; Advantages and Limitations." WQTC 2010. | C113: Proceedings | D113: Primary | E113: Atrazine | F113: 1912-24-9 | G113: LP | I113: 0.01 | L113: 10 | M113: Hydrogen Peroxide | O113: No pretreatment | Q113: 0.45 | R113: 1.704545455
A114: Bertelkamp2010_GACFiltration | B114: Bertelkamp, C, K Lekkerkerker-Tenissen, AH Knol, JQJC Verberk, JC van Dijk & CJ Houtman. "Granular Activated Carbon Filtration or Ion Exchange as Pre-Treatment Option for the Advanced Oxidation Process; Advantages and Limitations." WQTC 2010. | C114: Proceedings | D114: Primary | E114: Bromacil | F114: 314-40-9 | G114: LP | I114: 0.01 | L114: 10 | M114: Hydrogen Peroxide | O114: No pretreatment | Q114: 0.4 | R114: 1.515151515
A115: Bertelkamp2010_GACFiltration | B115: Bertelkamp, C, K Lekkerkerker-Tenissen, AH Knol, JQJC Verberk, JC van Dijk & CJ Houtman. "Granular Activated Carbon Filtration or Ion Exchange as Pre-Treatment Option for the Advanced Oxidation Process; Advantages and Limitations." WQTC 2010. | C115: Proceedings | D115: Primary | E115: Ibuprofen | F115: 15687-27-1 | G115: LP | I115: 0.02 | L115: 10 | M115: Hydrogen Peroxide | O115: No pretreatment | Q115: 0.4 | R115: 1.515151515
A116: Bertelkamp2010_GACFiltration | B116: Bertelkamp, C, K Lekkerkerker-Tenissen, AH Knol, JQJC Verberk, JC van Dijk & CJ Houtman. "Granular Activated Carbon Filtration or Ion Exchange as Pre-Treatment Option for the Advanced Oxidation Process; Advantages and Limitations." WQTC 2010. | C116: Proceedings | D116: Primary | E116: NDMA | F116: 62-75-9 | G116: LP | I116: 0.01 | L116: 10 | M116: Hydrogen Peroxide | O116: No pretreatment | Q116: 0.3 | R116: 1.136363636
A117: Bertelkamp2010_GACFiltration | B117: Bertelkamp, C, K Lekkerkerker-Tenissen, AH Knol, JQJC Verberk, JC van Dijk & CJ Houtman. "Granular Activated Carbon Filtration or Ion Exchange as Pre-Treatment Option for the Advanced Oxidation Process; Advantages and Limitations." WQTC 2010. | C117: Proceedings | D117: Primary | E117: Atrazine | F117: 1912-24-9 | G117: LP | I117: 0.01 | L117: 10 | M117: Hydrogen Peroxide | O117: GAC pretreatment | Q117: 0.3 | R117: 1.136363636
A118: Bertelkamp2010_GACFiltration | B118: Bertelkamp, C, K Lekkerkerker-Tenissen, AH Knol, JQJC Verberk, JC van Dijk & CJ Houtman. "Granular Activated Carbon Filtration or Ion Exchange as Pre-Treatment Option for the Advanced Oxidation Process; Advantages and Limitations." WQTC 2010. | C118: Proceedings | D118: Primary | E118: Bromacil | F118: 314-40-9 | G118: LP | I118: 0.01 | L118: 10 | M118: Hydrogen Peroxide | O118: GAC pretreatment | Q118: 0.3 | R118: 1.136363636
A119: Bertelkamp2010_GACFiltration | B119: Bertelkamp, C, K Lekkerkerker-Tenissen, AH Knol, JQJC Verberk, JC van Dijk & CJ Houtman. "Granular Activated Carbon Filtration or Ion Exchange as Pre-Treatment Option for the Advanced Oxidation Process; Advantages and Limitations." WQTC 2010. | C119: Proceedings | D119: Primary | E119: Ibuprofen | F119: 15687-27-1 | G119: LP | I119: 0.02 | L119: 10 | M119: Hydrogen Peroxide | O119: GAC pretreatment | Q119: 0.2 | R119: 0.7575757576
A120: Bertelkamp2010_GACFiltration | B120: Bertelkamp, C, K Lekkerkerker-Tenissen, AH Knol, JQJC Verberk, JC van Dijk & CJ Houtman. "Granular Activated Carbon Filtration or Ion Exchange as Pre-Treatment Option for the Advanced Oxidation Process; Advantages and Limitations." WQTC 2010. | C120: Proceedings | D120: Primary | E120: NDMA | F120: 62-75-9 | G120: LP | I120: 0.01 | L120: 10 | M120: Hydrogen Peroxide | O120: GAC pretreatment | Q120: 0.2 | R120: 0.7575757576
A121: Bertelkamp2010_GACFiltration | B121: Bertelkamp, C, K Lekkerkerker-Tenissen, AH Knol, JQJC Verberk, JC van Dijk & CJ Houtman. "Granular Activated Carbon Filtration or Ion Exchange as Pre-Treatment Option for the Advanced Oxidation Process; Advantages and Limitations." WQTC 2010. | C121: Proceedings | D121: Primary | E121: Atrazine | F121: 1912-24-9 | G121: MP | I121: 0.01 | L121: 10 | M121: Hydrogen Peroxide | O121: No pretreatment | Q121: 1.6 | R121: 6.060606061
A122: Bertelkamp2010_GACFiltration | B122: Bertelkamp, C, K Lekkerkerker-Tenissen, AH Knol, JQJC Verberk, JC van Dijk & CJ Houtman. "Granular Activated Carbon Filtration or Ion Exchange as Pre-Treatment Option for the Advanced Oxidation Process; Advantages and Limitations." WQTC 2010. | C122: Proceedings | D122: Primary | E122: Bromacil | F122: 314-40-9 | G122: MP | I122: 0.01 | L122: 10 | M122: Hydrogen Peroxide | O122: No pretreatment | Q122: 1.7 | R122: 6.439393939
A123: Bertelkamp2010_GACFiltration | B123: Bertelkamp, C, K Lekkerkerker-Tenissen, AH Knol, JQJC Verberk, JC van Dijk & CJ Houtman. "Granular Activated Carbon Filtration or Ion Exchange as Pre-Treatment Option for the Advanced Oxidation Process; Advantages and Limitations." WQTC 2010. | C123: Proceedings | D123: Primary | E123: Ibuprofen | F123: 15687-27-1 | G123: MP | I123: 0.02 | L123: 10 | M123: Hydrogen Peroxide | O123: No pretreatment | Q123: 1.2 | R123: 4.545454545
A124: Bertelkamp2010_GACFiltration | B124: Bertelkamp, C, K Lekkerkerker-Tenissen, AH Knol, JQJC Verberk, JC van Dijk & CJ Houtman. "Granular Activated Carbon Filtration or Ion Exchange as Pre-Treatment Option for the Advanced Oxidation Process; Advantages and Limitations." WQTC 2010. | C124: Proceedings | D124: Primary | E124: NDMA | F124: 62-75-9 | G124: MP | I124: 0.01 | L124: 10 | M124: Hydrogen Peroxide | O124: No pretreatment | Q124: 1.1 | R124: 4.166666667
A125: Bertelkamp2010_GACFiltration | B125: Bertelkamp, C, K Lekkerkerker-Tenissen, AH Knol, JQJC Verberk, JC van Dijk & CJ Houtman. "Granular Activated Carbon Filtration or Ion Exchange as Pre-Treatment Option for the Advanced Oxidation Process; Advantages and Limitations." WQTC 2010. | C125: Proceedings | D125: Primary | E125: Atrazine | F125: 1912-24-9 | G125: MP | I125: 0.01 | L125: 10 | M125: Hydrogen Peroxide | O125: Ion exchange pretreatment | Q125: 1 | R125: 3.787878788
A126: Bertelkamp2010_GACFiltration | B126: Bertelkamp, C, K Lekkerkerker-Tenissen, AH Knol, JQJC Verberk, JC van Dijk & CJ Houtman. "Granular Activated Carbon Filtration or Ion Exchange as Pre-Treatment Option for the Advanced Oxidation Process; Advantages and Limitations." WQTC 2010. | C126: Proceedings | D126: Primary | E126: Bromacil | F126: 314-40-9 | G126: MP | I126: 0.01 | L126: 10 | M126: Hydrogen Peroxide | O126: Ion exchange pretreatment | Q126: 1.2 | R126: 4.545454545
A127: Bertelkamp2010_GACFiltration | B127: Bertelkamp, C, K Lekkerkerker-Tenissen, AH Knol, JQJC Verberk, JC van Dijk & CJ Houtman. "Granular Activated Carbon Filtration or Ion Exchange as Pre-Treatment Option for the Advanced Oxidation Process; Advantages and Limitations." WQTC 2010. | C127: Proceedings | D127: Primary | E127: Ibuprofen | F127: 15687-27-1 | G127: MP | I127: 0.02 | L127: 10 | M127: Hydrogen Peroxide | O127: Ion exchange pretreatment | Q127: 0.8 | R127: 3.03030303
A128: Bertelkamp2010_GACFiltration | B128: Bertelkamp, C, K Lekkerkerker-Tenissen, AH Knol, JQJC Verberk, JC van Dijk & CJ Houtman. "Granular Activated Carbon Filtration or Ion Exchange as Pre-Treatment Option for the Advanced Oxidation Process; Advantages and Limitations." WQTC 2010. | C128: Proceedings | D128: Primary | E128: NDMA | F128: 62-75-9 | G128: MP | I128: 0.01 | L128: 10 | M128: Hydrogen Peroxide | O128: Ion exchange pretreatment | Q128: 1.3 | R128: 4.924242424
A129: Lekkerkerker-Teunissen2010_Performance | B129: , K, AH Knol, JG Derks, CJ Houtman, EF Beerendonk, JQJC Verberk & JC van Dijk. "Performance comparison of LP vs MP UV lamps for advanced oxidation process." WQTC 2010. | C129: Proceedings | D129: Primary | E129: Atrazine | F129: 1912-24-9 | G129: LP | I129: 0.01 | L129: 10 | M129: Hydrogen Peroxide | N129: 7.9 | O129: No pretreatment | Q129: 0.48 | R129: 1.818181818
A130: Lekkerkerker-Teunissen2010_Performance | B130: , K, AH Knol, JG Derks, CJ Houtman, EF Beerendonk, JQJC Verberk & JC van Dijk. "Performance comparison of LP vs MP UV lamps for advanced oxidation process." WQTC 2010. | C130: Proceedings | D130: Primary | E130: Bromacil | F130: 314-40-9 | G130: LP | I130: 0.01 | L130: 10 | M130: Hydrogen Peroxide | N130: 7.9 | O130: No pretreatment | Q130: 0.46 | R130: 1.742424242
A131: Lekkerkerker-Teunissen2010_Performance | B131: , K, AH Knol, JG Derks, CJ Houtman, EF Beerendonk, JQJC Verberk & JC van Dijk. "Performance comparison of LP vs MP UV lamps for advanced oxidation process." WQTC 2010. | C131: Proceedings | D131: Primary | E131: Ibuprofen | F131: 15687-27-1 | G131: LP | I131: 0.02 | L131: 10 | M131: Hydrogen Peroxide | N131: 7.9 | O131: No pretreatment | Q131: 0.41 | R131: 1.553030303
A132: Lekkerkerker-Teunissen2010_Performance | B132: , K, AH Knol, JG Derks, CJ Houtman, EF Beerendonk, JQJC Verberk & JC van Dijk. "Performance comparison of LP vs MP UV lamps for advanced oxidation process." WQTC 2010. | C132: Proceedings | D132: Primary | E132: NDMA | F132: 62-75-9 | G132: LP | I132: 0.01 | L132: 10 | M132: Hydrogen Peroxide | N132: 7.9 | O132: No pretreatment | Q132: 0.26 | R132: 0.9848484848
A133: Lekkerkerker-Teunissen2010_Performance | B133: , K, AH Knol, JG Derks, CJ Houtman, EF Beerendonk, JQJC Verberk & JC van Dijk. "Performance comparison of LP vs MP UV lamps for advanced oxidation process." WQTC 2010. | C133: Proceedings | D133: Primary | E133: Atrazine | F133: 1912-24-9 | G133: MP | I133: 0.01 | L133: 10 | M133: Hydrogen Peroxide | N133: 7.9 | O133: No pretreatment | Q133: 1.45 | R133: 5.492424242
A134: Lekkerkerker-Teunissen2010_Performance | B134: , K, AH Knol, JG Derks, CJ Houtman, EF Beerendonk, JQJC Verberk & JC van Dijk. "Performance comparison of LP vs MP UV lamps for advanced oxidation process." WQTC 2010. | C134: Proceedings | D134: Primary | E134: Bromacil | F134: 314-40-9 | G134: MP | I134: 0.01 | L134: 10 | M134: Hydrogen Peroxide | N134: 7.9 | O134: No pretreatment | Q134: 1.63 | R134: 6.174242424
A135: Lekkerkerker-Teunissen2010_Performance | B135: , K, AH Knol, JG Derks, CJ Houtman, EF Beerendonk, JQJC Verberk & JC van Dijk. "Performance comparison of LP vs MP UV lamps for advanced oxidation process." WQTC 2010. | C135: Proceedings | D135: Primary | E135: Ibuprofen | F135: 15687-27-1 | G135: MP | I135: 0.02 | L135: 10 | M135: Hydrogen Peroxide | N135: 7.9 | O135: No pretreatment | Q135: 1.54 | R135: 5.833333333
